{"text_format":"1","workbook":"xlsx","n_sheets":12,"sheets":["Sesión de Macros","Macro 01","Macro 02","Macro 03","Datos","Macro 04","Otros datos","Mac04 con Otros datos","Tempo","Macro 05","Macro 06","Macro 07 Consolidar"],"not_rendered":{"charts":0,"images":1,"macros":1,"external_links":0,"defined_names":8,"comments":1,"pivot_tables":1},"unopened":[],"bounds":{"document_bytes":16777216,"sheet_cells":100000,"rows_first":2000,"rows_last":500,"rows_between":2000,"halvings":0,"cell_chars":16384,"cell_head_chars":4096},"cells_cut":0,"cells_raw":0,"read":"whole","date_system":"1900"}

{"sheet":"Sesión de Macros","index":0,"n_rows":0,"n_cols":0,"rows_kept":0,"cut":false,"hidden":false,"merged":[[30,1,30,5],[15,1,15,5]]}

{"sheet":"Macro 01","index":1,"n_rows":42,"n_cols":8,"rows_kept":42,"cut":false,"hidden":false,"merged":[[1,2,1,3],[24,0,24,2],[14,0,14,1],[20,0,20,1],[17,0,17,1]]}
[]
[null,"Hola !!!",{"$f":"IF(HOUR(NOW())+MINUTE(NOW())/60<=12,\"Buenos días …\",IF(HOUR(NOW())+MINUTE(NOW())/60<19,\"Buenas tardes …\",\"Buenas noches\"))","v":"Buenos días …"},null,"Bye"]
[]
[null,"Dia","Tienda 1","Tienda 2","Tienda 3","Tienda 4","Tienda 5","Total"]
[null,"Lunes",2640,2310,2880,2410,2790,{"$f":"SUM(C5:G5)","v":13030}]
[null,"Martes",1000,2990,2820,2660,1310,10780]
[null,"Miércoles",2070,1710,2030,2370,1360,9540]
[null,"Jueves",1740,2340,2380,2170,1730,10360]
[null,"Viernes",1610,1110,1520,1980,1580,7800]
[null,"Sábado",1650,1670,2240,2760,2360,10680]
[null,"Total",{"$f":"SUM(C5:C10)","v":10710},{"$f":"SUM(D5:D10)","v":12130},{"$f":"SUM(E5:E10)","v":13870},{"$f":"SUM(F5:F10)","v":14350},{"$f":"SUM(G5:G10)","v":11130}]
[]
[]
[]
["Primero ubíquese en B2"]
["Primera macro: Nombre de macro: Macro01A; método abreviado: (m). Que B2 tenga tamaño de fuente: 14; Color de relleno: Agua marina, énfasis 5, oscuro 25%, Borde exterior grueso, fuente: negrita, blanco, subrayado"]
[]
["Primero ubíquese en B2"]
["Segunda macro: Nombre: Macro01Aborrar; método abreviado: (b). Tamaño de fuente: 10; color de relleno: ninguno; Sin borde; quitar negrita, quitar subrayado;dejar en color de fuente: automático."]
[]
["Primero ubíquese en C2"]
["Tercera macro: Macro01C: (o): Que C2 tenga tamaño: 16, Color de relleno: Agua marina, énfasis 5, claro 40%, Borde exterior grueso"]
[]
[]
["Que su cursor esté en cualquier celda"]
["Cuarta macro: Macro01D: (q): Que E2 esté en negrita, borde exterior grueso, color de relleno: Blanco, fondo 1, oscuro 25%."]
[]
["Una mcro adicional: Macro01E: (r): Que C2 no tenga ningún tipo de formato de texto ni de número"]
[]
["Una mcro adicional: Macro01F: (w): Que C2 tenga color de relleno verdeoliva, énfasis 3, claro 80%."]
[]
[]
["Preguntas:"]
["Puede aplicar la macro Macro01A para darle el formato a la columna de los días?"]
["Puede aplicar la macro Macro01C para darle el formato a la fila de los nombres de las tiendas?"]
["Puede aplicar la macro Macro01E para darle el formato al rango C5:G10?"]
["Aplique una de estas macros a la fila de Totales"]
["Aplique una de estas macros a la columna de Totales"]
[]
[]
["Nota: Antes de ejecutar la macro, debe seleccionar el rango para que la macro actúe como si fuera una celda."]
["Nota: Si no le gusta la macro aplicada en algún rango, aplique la macro Macro01D para borrarlo y aplique otro."]

{"sheet":"Macro 02","index":2,"n_rows":23,"n_cols":15,"rows_kept":23,"cut":false,"hidden":false,"merged":[[1,10,1,14],[16,10,16,14],[1,1,1,5],[16,1,16,5]]}
[]
[null,"NÚMERO DE CLIENTES ATENDIDOS POR DÍA",null,null,null,null,null,null,null,null,"NUMERO DE CLIENTES ATENDIDOS POR DIA"]
["Nombre del Operador","Lunes","Martes","Miércoles","Jueves","Viernes",null,null,null,"Nombre del Operador","Lunes","Martes","Miércoles","Jueves","Viernes"]
[]
[]
[]
[]
[]
[]
[]
[]
[]
[]
[]
[]
[]
[null,"ESTADÍSTICAS POR OPERADOR",null,null,null,null,null,null,null,null,"ESTADISTICAS POR OPERADOR"]
["Total de clientes atendidos",null,null,null,null,null,null,null,null,"Total de clientes atendidos"]
["Promedio de clientes atendidos",null,null,null,null,null,null,null,null,"Promedio de clientes atendidos"]
["Máximo número de clientes atendidos",null,null,null,null,null,null,null,null,"Máximo número de clientes atendidos"]
["Quién atendió más clientes",null,null,null,null,null,null,null,null,"Quién atendió más clientes"]
["Mínimo de clientes atendidos",null,null,null,null,null,null,null,null,"Mínimo de clientes atendidos"]
["Quién atendió menos clientes",null,null,null,null,null,null,null,null,"Quién atendió menos clientes"]

{"sheet":"Macro 03","index":3,"n_rows":27,"n_cols":6,"rows_kept":27,"cut":false,"hidden":false,"merged":[[1,1,1,5],[16,1,16,5]]}
[]
[null,"NUMERO DE CLIENTES ATENDIDOS POR DIA"]
["Nombre del Operador","Lunes","Martes","Miércoles","Jueves","Viernes"]
["ABELLAN COLODRON, FERNANDO",107,103,89,55,89]
["ALGUERO MARTIN, RUBEN",114,29,113,91,108]
["ALVAREZ DIEZ, CARLOS",28,81,43,76,37]
["ANDRES BAYO, ESTHER",65,66,36,36,67]
["BARRIO VIZAN, PEDRO",51,75,25,110,115]
["DIAZ FERREIRA, IVAN",50,115,46,52,94]
["GARCIA PETIT, CARLOS",67,60,81,47,95]
["LINDE DIAZ, NATALIA",78,105,114,107,74]
["MARTIN MARCOS, NOELIA",32,75,98,51,38]
["RAMOS LOPEZ, PATRICIA",57,113,30,86,55]
["TOBAR RIÑON, JOSE",118,108,35,86,110]
["VICENTE GONZALEZ, ROBERTO",116,119,40,25,47]
[]
[null,"ESTADISTICAS DIARIAS POR OPERADOR"]
[]
["Total de clientes atendidos"]
["Promedio de clientes atendidos"]
["Màximo nùmero de clientes atendidos"]
["Mìnimo nùmero de clientes atendidos"]
["Quièn atendiò màs clientes"]
["Quièn atendiò menos clientes"]
[]
[]
["Grabe otra macro llamada Macro02Borrar (x) que le permita borrar el contenido de las estadísticas y dejar las columnas en su ancho estándar"]

{"sheet":"Datos","index":4,"n_rows":498,"n_cols":5,"rows_kept":498,"cut":false,"hidden":false,"merged":[[0,0,0,4]]}
["PARTICIPANTES AL CUARTO CONGRESO MEDIO AMBIENTAL"]
["D.N.I.","APELLIDOS Y NOMBRE","RESERVA","IDIOMA","SEDE"]
[25900548,"ABAD GIL, JORGE","SI","I","MADRID"]
[25175035,"ABAD PARRIEGO, DAVID","SI","I","BARCELONA"]
[33294549,"ABALDE CAMPAÑA, ANA MARIA","NO","E","A CORUÑA"]
[32751022,"ABALO DOMINGUEZ, MARIA ISABEL","NO","I","A CORUÑA"]
[14309940,"ABARCA MORATE, SILVIA","NO","I","MADRID"]
[41536839,"ABBASTANTE CACERES, CLAUDIA YOLAND","NO","I","PALMA DE MALL."]
[33343143,"ABEL VAZQUEZ, MARIA","NO","I","A CORUÑA"]
[36026711,"ABELLA RODRIGUEZ, JOSE ANGEL","NO","F","A CORUÑA"]
[10864685,"ABELLAN COLODRON, FERNANDO","NO","E","VALLADOLID"]
[21516273,"ABELLAN DIAZ, MARIA ESTHER","SI","I","VALENCIA"]
[2629121,"ABERTURAS DEL OLMO, OLGA","NO","I","MADRID"]
[12776523,"ABRIL GONZALEZ, SERGIO","NO","E","VALLADOLID"]
[53230725,"ACOSTA LOPEZ, MARIA","NO","I","MALAGA"]
[11956603,"ACOSTA VILLALOBOS, ISABEL","NO","I","MADRID"]
[76821651,"ACUÑA GARCIA, MARIA DOLORES","SI","I","A CORUÑA"]
[47017285,"ADANERO LOPEZ, RAQUEL","NO","I","MADRID"]
[43823850,"AFONSO FERRANDEZ, NAYRA JOANAINA","SI","I","LAS PALMAS G.C."]
[29042557,"AGUADED GOMEZ, INMACULADA","NO","F","MADRID"]
[33330264,"AGUADO YAÑEZ, ISABEL","NO","I","A CORUÑA"]
[46801014,"AGUDO BORREGO, ALBERTO","NO","E","BARCELONA"]
[50440331,"AGUEDA MARTIN, ROBERTO","NO","I","MADRID"]
[24387703,"AGÜERA MAS, LAURA","NO","I","VALENCIA"]
[3115861,"AGUILAR AGUILAR, CRISTINA","SI","I","MADRID"]
[29181135,"AGUILAR ARREGUI, ROSA MARIA","NO","I","VALENCIA"]
[30797752,"AGUILAR CAMACHO, M. CARMEN","SI","F","SEVILLA"]
[50978238,"AGUILAR DELGADO, RAUL","NO","I","MADRID"]
[28634620,"AGUILAR GIL, ROCIO REYES","NO","E","SEVILLA"]
[2548335,"AGUILAR LOPEZ, JAVIER","NO","I","MADRID"]
[48809344,"AGUILERA SAEZ, VANESSA Mª","NO","I","SEVILLA"]
[11845751,"AGUILERA SUAREZ, JOSE MANUEL","NO","I","MADRID"]
[36110340,"AGULLA LOPEZ, SANDRA","NO","F","A CORUÑA"]
[72038198,"AJA MARDONES, MARTA","SI","I","VALLADOLID"]
[29185449,"ALAMAR SEGOVIA, MANUEL","NO","I","VALENCIA"]
[44449105,"ALARCON UROSA, MARIA TERESA","SI","E","A CORUÑA"]
[76573412,"ALBA GONZALEZ, ANA BELEN","NO","I","MADRID"]
[40896087,"ALBA LLORETA, JORGE","NO","F","BARCELONA"]
[28758078,"ALBEA BORREGUERO, CARLOS","NO","I","SEVILLA"]
[24362120,"ALBERO BELDA, JOSEFINA","SI","E","VALENCIA"]
[25423047,"ALCALA PEREZ, PABLO","NO","F","VALENCIA"]
[44810788,"ALCALDE GARCIA, BEATRIZ","SI","I","A CORUÑA"]
[53010609,"ALCAZAR TORRES, ANGEL","NO","I","MADRID"]
[43116794,"ALCOVER SANCHIS, ANTONI","SI","E","PALMA DE MALL."]
[43514321,"ALDEA SALOM, MERCEDES","NO","I","BARCELONA"]
[43514322,"ALDEA SALOM, MONTSERRAT","NO","I","BARCELONA"]
[48438023,"ALEIXANDRE SORIANO, Mª VANESSA","NO","I","VALENCIA"]
[25477452,"ALFARO CID, MANUEL","NO","F","VALENCIA"]
[44384777,"ALFARO MOLINA, ANGEL","SI","E","MADRID"]
[71011493,"ALFONSO GARZON, MANUEL","SI","E","VALLADOLID"]
[51928841,"ALGABA RAMIRO, JESUS MIGUEL","NO","I","MADRID"]
[30818225,"ALGAR GONZALEZ, JULIO RAIMUNDO","NO","I","MALAGA"]
[70881080,"ALGUERO MARTIN, RUBEN","NO","I","VALLADOLID"]
[48322471,"ALJIBE VAREA, INMACULADA","NO","I","VALENCIA"]
[75747254,"ALMADRO SMITH, LETICIA CARMEN","NO","I","MADRID"]
[50105766,"ALMOGUERA GARNACHO, ANA MARIA","NO","E","MADRID"]
[12771990,"ALMOHALLA DIEZ, RUBEN","SI","I","VALLADOLID"]
[25406756,"ALMONACID LOPEZ, CARLOS ENRIQUE","NO","F","VALENCIA"]
[76927420,"ALONSO BARCIA, OLALLA","NO","I","A CORUÑA"]
[42918410,"ALONSO BARRETO, JESUS MANUEL","NO","E","LAS PALMAS G.C."]
[2609768,"ALONSO CASADO, ANGEL","NO","I","MADRID"]
[36126876,"ALONSO CASTRO, CRISTINA","NO","I","A CORUÑA"]
[16580747,"ALONSO FERNANDEZ, LUIS","NO","I","MADRID"]
[11817483,"ALONSO LABRADOR, JESUS","SI","E","MADRID"]
[3439788,"ALONSO MAROTO, JESUS","NO","I","MADRID"]
[52181840,"ALONSO MARTIN, MARIA JESUS","NO","E","MADRID"]
[11946263,"ALONSO MARTIN, VERONICA","NO","I","VALLADOLID"]
[7990229,"ALONSO MIGUEL, MARIA CONCEPCI","NO","I","MADRID"]
[50102803,"ALONSO RUIZ, SARA","NO","E","MADRID"]
[70879778,"ALONSO SOTO, DANIEL","NO","I","VALLADOLID"]
[48287975,"ALTABERT CALATAYUD, JUAN PEDRO","NO","I","VALENCIA"]
[32878506,"ALVAREZ ALVAREZ, ALVARO","SI","F","VALLADOLID"]
[2905684,"ALVAREZ AMIGO, JUAN ANTONIO","NO","I","MADRID"]
[12385492,"ALVAREZ ARIAS, MARIA JOSE","NO","F","VALLADOLID"]
[10085682,"ALVAREZ BAELO, MIGUEL ANGEL","SI","I","A CORUÑA"]
[34899422,"ALVAREZ BARRAL, DAVID","NO","I","A CORUÑA"]
[9779879,"ALVAREZ DIEZ, CARLOS","SI","E","VALLADOLID"]
[5205975,"ALVAREZ GHIA, ANA","NO","I","MADRID"]
[51411372,"ALVAREZ GONZALEZ, NOEMI ASUNCION","SI","I","MADRID"]
[33522700,"ALVAREZ JUSTO, SUSANA","NO","I","MADRID"]
[7228145,"ALVAREZ LOSA, CRISTINA","NO","I","MADRID"]
[50868541,"ALVAREZ LLORENS, MERCEDES","NO","E","MADRID"]
[51423426,"ALVAREZ MARTINEZ, RAMON","SI","I","MADRID"]
[44450187,"ALVAREZ PEREZ, FCO.ALEJANDRO","NO","I","A CORUÑA"]
[44461780,"ALVAREZ RODRIGUEZ, ALMUDENA","SI","I","A CORUÑA"]
[34986614,"ALVAREZ SOMOZA, JACINTO","NO","I","A CORUÑA"]
[73196666,"ALVIRA PERUGA, JOSE ANTONIO","NO","E","BARCELONA"]
[71424668,"ALLER ORDAS, ROCIO","NO","E","VALLADOLID"]
[71263012,"AMBEL GARCIA, M. ANGUSTIAS","NO","I","VALLADOLID"]
[53044063,"AMEZCUA PEREZ, M.ARANZAZU","SI","I","MADRID"]
[44811927,"AMIGO BARCIA, MARIA FERNANDA","NO","F","A CORUÑA"]
[52642814,"AMIGO LOPEZ, DAVID","SI","I","VALENCIA"]
[51621947,"AMORES MAZA, JOAQUIN","NO","F","MADRID"]
[44805207,"ANCA TARDÁGUILA, PABLO","NO","I","A CORUÑA"]
[46737548,"ANDREA PEREZ, MARIANO","NO","I","BARCELONA"]
[70873085,"ANDRES BAYO, ESTHER","SI","I","VALLADOLID"]
[45424935,"ANDRES RODERO, JOSE MIGUEL","NO","E","VALLADOLID"]
[45675904,"ANDRES VALIN, SARAI","SI","I","MADRID"]
[17753218,"ANDREU PACO, Mª DEL MAR","NO","F","MADRID"]
[7984893,"ANDRINO REY, MARIA EUGENIA","NO","I","VALLADOLID"]
[51417913,"ANSEDES LOPEZ, IGNACIO","NO","I","MADRID"]
[3888994,"APARICIO AGUADO, DIANA","NO","I","MADRID"]
[44863288,"APARICIO CUBAS, BLANCA","SI","I","VALENCIA"]
[37361343,"APARICIO GUTIERREZ, MARIA","SI","F","BARCELONA"]
[51390260,"APARICIO MU/OZ, CARLOS","NO","I","MADRID"]
[10899375,"APARICIO PACHECO, BLANCA ESTHER","NO","I","VALLADOLID"]
[43736400,"AQUILUE CAVA, JAVIER","SI","E","BARCELONA"]
[11841607,"ARA DEL HOYO, CRISTINA","SI","I","MADRID"]
[18438441,"ARANA PARDO, MARIA PILAR","SI","I","BARCELONA"]
[43742350,"ARANDA GONZALEZ, MARIA ASTRID","NO","I","BARCELONA"]
[5682012,"ARANGUEZ TORQUEMADA, PEDRO","NO","I","MADRID"]
[52318214,"ARANSAY ALEJANDRE, ANA MARIA","SI","E","MADRID"]
[46876500,"ARAUZO GONZALEZ, JOSE MARIA","NO","I","MADRID"]
[12764266,"AREÑOS QUINTANILLA, JOSE ANTONIO","NO","F","VALLADOLID"]
[53010641,"ARESTE GIL, DAVID","SI","I","MADRID"]
[52779499,"ARGILES SAN MARTIN, CONCEPCION","NO","F","MADRID"]
[44461175,"ARIAS CARBAJALES, HORTENSIA","NO","I","A CORUÑA"]
[34981982,"ARIAS GONZALEZ, GERARDO","NO","E","MADRID"]
[33322813,"ARIAS LOPEZ, M.YOLANDA","SI","I","A CORUÑA"]
[76620185,"ARIAS POMBO, BAUTISTA","NO","F","A CORUÑA"]
[44818297,"ARIAS RODRIGUEZ, BELEN","SI","I","A CORUÑA"]
[" 44446912","ARIAS RODRIGUEZ, REBECA MARIA","SI","F","MADRID"]
[9436276,"ARIAS VELAZQUEZ, LUCIA","SI","I","A CORUÑA"]
[72978901,"ARIÑO LOPEZ, CARLOTA","NO","E","MADRID"]
[52683526,"ARMERO RONCERO, YOLANDA","NO","F","VALENCIA"]
[8851450,"ARNAEZ BLAZQUEZ, CARMEN LUZ","SI","I","SEVILLA"]
[53046857,"ARNES LAGO, MARCO ANTONIO","NO","I","MADRID"]
[9309732,"ARRANZ GARCIA, ANA ISABEL","SI","I","VALLADOLID"]
[2653464,"ARRANZ HERNANDEZ, MARIA","NO","E","MADRID"]
[13164324,"ARREBA MARTINEZ, SUSANA","NO","I","VALLADOLID"]
[46144279,"ARREDONDA NEGRE, PALMIRA","SI","E","BARCELONA"]
[17438327,"ARREGUI MELUS, MARIA LUISA","NO","I","MADRID"]
[33268136,"ARRIBAS LOPEZ-ANGLADA, MARIA JESUS","NO","I","A CORUÑA"]
[33343727,"ARROJO VAZQUEZ, ZULEIKA","NO","I","A CORUÑA"]
[1925256,"ARTACHO IZQUIERDO, FRANCISCO JOSE","NO","E","MADRID"]
[48537738,"ASENSI GISBERT, MARIA TERESA","NO","E","VALENCIA"]
[2541717,"ASENSIO GARCIA, VICENTE JACOBO","NO","I","MADRID"]
[33336338,"ASOREY VARELA, ELENA","NO","I","MADRID"]
[32806723,"ASTRAY YEPES, EMILIO","SI","I","A CORUÑA"]
[44381458,"ATIENZA GARCIA, JOSE ANTONIO","NO","I","MADRID"]
[47063739,"AVENDAÑO MUÑOZ, MARIA FELIX","NO","F","MADRID"]
[24264131,"AVILA AVILA, FRANCISCO JESU","SI","I","MALAGA"]
[4201584,"AVILA GONZALEZ, FELIPE","NO","I","MADRID"]
[77468696,"AVILA PEÑUELA, MARIA BEGOÑA","NO","I","MALAGA"]
[79262261,"AYUSO VERDE, MARIA CARMEN","NO","I","MADRID"]
[16017738,"AZAGRA GALINDO, EVA MARIA","NO","I","MADRID"]
[52443023,"AZNAREZ JIMENEZ, REGINA","NO","I","MADRID"]
[25173300,"AZPEITIA LUCEA, JAVIER","NO","I","MADRID"]
[74648502,"BAENA GORDILLO, ANGELICA","NO","I","MALAGA"]
[52640614,"BAIXAULI FORTEA, FRANCISCO JOSE","SI","F","VALENCIA"]
[71429478,"BALBOA OREJAS, CRISTINA","NO","I","VALLADOLID"]
[36102244,"BALBUENA FERNANDEZ, PABLO","NO","I","A CORUÑA"]
[13795688,"BALMASEDA VILLEGAS, GUILLERMO","NO","I","MADRID"]
[80064334,"BALSERA BERNARDO, MARIA JOSE","NO","I","SEVILLA"]
[29122975,"BALLANO CUENCA, EMILIO ERNESTO","NO","I","MADRID"]
[29193509,"BALLESTER CERVELLO, M. PILAR","NO","I","VALENCIA"]
[20240002,"BALLESTEROS RODRIGUEZ, LUIS","NO","I","VALENCIA"]
[46795404,"BAÑO APARICIO, ANA MARIA","SI","I","BARCELONA"]
[44455946,"BARANDELA SALGADO, M. CRISTINA","SI","F","A CORUÑA"]
[50461754,"BARBA CALDERON, ANA MARIA","SI","I","MADRID"]
[53142148,"BARBA TORRES, MARIA JOSE","NO","I","MADRID"]
[5415349,"BARBERA LECHA, BARBARA","SI","I","MADRID"]
[32660918,"BARCIA VAZQUEZ, FRANCISCO J.","NO","I","A CORUÑA"]
[36157564,"BARGE RUIDO, ELENA","SI","I","A CORUÑA"]
[13778934,"BARQUIN LAVIN, ELENA","NO","I","MADRID"]
[18440460,"BARRADO MELENDEZ, ELVIRA","SI","I","VALENCIA"]
[76907952,"BARRAL LAMAZARES, ISABEL","NO","I","A CORUÑA"]
[76023314,"BARRANTES POLO, MARIA MAROZIA","NO","F","MADRID"]
[50439775,"BARREIRA IGUAL, EVA ANGELINA","SI","I","MADRID"]
[44807683,"BARREIRO FONTENLA, MARCOS ANTONI0","SI","I","A CORUÑA"]
[33348262,"BARREIRO GOMEZ, PABLO","NO","I","A CORUÑA"]
[71639355,"BARRIL TESTERA, EVA","NO","I","A CORUÑA"]
[71419792,"BARRIO ALONSO, VERONICA","NO","I","MADRID"]
[12731776,"BARRIO PRIMO, CARLOS","SI","I","MADRID"]
[71018274,"BARRIO VIZAN, PEDRO","SI","I","VALLADOLID"]
[48905988,"BARROSO PENCO, CAROLINA","SI","I","SEVILLA"]
[7991622,"BARRUECO GARCIA, ANGEL","NO","I","VALLADOLID"]
[3466707,"BARTOLOME MARTIN, MARTA","NO","I","MADRID"]
[20206903,"BARTOLOME SOLIS, MARIA PILAR","SI","I","MADRID"]
[78211821,"BAUZA MATAS, GABRIEL","NO","I","BARCELONA"]
[11735432,"BAZ GAGO, ANA MARIA","NO","I","VALLADOLID"]
[33468304,"BAZAN CERDAN, RUBEN","SI","I","VALENCIA"]
[4602813,"BEAMUD SIMARRO, M. CRISTINA","NO","I","MADRID"]
[37382366,"BECERRA ROMAN, FLORENTINA","SI","F","BARCELONA"]
[50100848,"BECERRIL MUÑOZ, DAVID","NO","I","MADRID"]
[7969557,"BECERRO FERNANDEZ, BEATRIZ","SI","I","VALLADOLID"]
[52654727,"BEJAR VALERO, MARIA CARMEN","SI","I","VALENCIA"]
[22141992,"BELDA CANTO, FRANCISCO","SI","E","VALENCIA"]
[44397134,"BELMONTE SIMON, ANTONIO JOSE","SI","I","VALENCIA"]
[53161541,"BELLO GOTI, PATRICIA","NO","I","A CORUÑA"]
[29190985,"BELLOT SANCHEZ, IGNACIO","SI","E","VALENCIA"]
[16594903,"BENITO GALILEA, JOSE ANTONIO","SI","I","VALLADOLID"]
[7491116,"BENITO DEL VALLE, EDUARDO","SI","I","MADRID"]
[2547947,"BERDEJO DIAZ, CRISTINA","NO","I","MADRID"]
[38449501,"BERGADA MUÑOZ, DANIEL","NO","I","BARCELONA"]
[43450389,"BERLANGA TORRES, MARTA","SI","E","BARCELONA"]
[9014558,"BERMEJO MOYA, ANA ISABEL","SI","I","MADRID"]
[32450147,"BERMUDEZ BARGO, ALVARO ELOY","NO","I","A CORUÑA"]
[24370304,"BERNADES CASTELLANOS, NOELIA","NO","I","VALENCIA"]
[3445036,"BERNARDOS PALOMO, AMALIO","NO","I","MADRID"]
[72730649,"BERRIDI MANCISIDOR, ISABEL","NO","I","MADRID"]
[20218937,"BERROCAL DEL AGUA, ALEJANDRO M.","SI","I","VALLADOLID"]
[35119275,"BERTOMEU VILCHEZ, JOSE FRANCISCO","NO","E","BARCELONA"]
[45625557,"BILBAO ORTUZAR, JOANA","NO","I","MADRID"]
[71131004,"BILBATUA GARCIA, ESTER","NO","I","VALLADOLID"]
[74853444,"BLANCAS GONZALEZ, ANA ISABEL","NO","I","MALAGA"]
[44811127,"BLANCO BARRAL, MARIA DEL MAR","NO","I","A CORUÑA"]
[35469938,"BLANCO ESPERON, MARIA LORENA","NO","I","A CORUÑA"]
[44450749,"BLANCO JESUS, JULIO ANTONIO","NO","I","A CORUÑA"]
[34991967,"BLANCO LOPEZ, CARMEN IRIA","NO","I","A CORUÑA"]
[10041465,"BLANCO LOPEZ, JOSE LUIS","SI","F","BARCELONA"]
[7983093,"BLANCO MARTIN, MARTA","SI","I","VALLADOLID"]
[51068728,"BLANCO MEDINA, ANA","SI","I","MADRID"]
[2901422,"BLANCO MORENO, HORACIO","SI","E","MADRID"]
[47703302,"BLANCO MORILLO, RUBEN","NO","I","BARCELONA"]
[53531615,"BLANCO PARAJA, LAURA","SI","I","A CORUÑA"]
[27336236,"BLANCO PARAMIO, M. DOLORES","NO","I","MALAGA"]
[29121017,"BLANCO SANCHO, MARIA CRISTINA","SI","I","MADRID"]
[2917180,"BLANCO SOTO, BARBARA","NO","I","MADRID"]
[10904876,"BLANCO VEGA, ALBERTO","NO","I","MADRID"]
[29107467,"BLASCO MERINO, JUAN ANTONIO","SI","E","BARCELONA"]
[9404173,"BLAZQUEZ GONZALEZ, MARIA BLANCA","SI","I","BARCELONA"]
[77453025,"BLAZQUEZ RAMIREZ, PEDRO JAVIER","SI","I","MALAGA"]
[71119412,"BOCOS RUEDA, ESTER","SI","I","VALLADOLID"]
[8937157,"BOIX GORBEA, MARIA PILAR DE","SI","E","MADRID"]
[25394934,"BOLUFER CORELL, M. ELVIRA","NO","F","VALENCIA"]
[18435348,"BONAFONTE VELA, EVA","NO","I","MADRID"]
[2914652,"BORDEJE SANCHEZ, DAVID","NO","I","MADRID"]
[2917674,"BORDONS MESONERO, JAVIER","SI","E","MADRID"]
[18985465,"BORILLO ESTEVE, CRISTINA Mª","NO","I","VALENCIA"]
[23799405,"BOSCH ALONSO, BRIGIDA","NO","I","VALENCIA"]
[32830353,"BOTANA CARBAJALES, CRISTINA","NO","I","A CORUÑA"]
[32688968,"BOUZA FERNANDEZ, CARMEN","NO","E","A CORUÑA"]
[16583063,"BOZALONGO LACALLE, ANA","NO","I","MADRID"]
[28641206,"BRAVO FALCON, INMACULADA","SI","I","SEVILLA"]
[8866395,"BRAVO GALAN, ISABEL","NO","I","SEVILLA"]
[24254687,"BRAVO HERNANDEZ, JUAN MANUEL","NO","I","MALAGA"]
[30828309,"BRAVO NACARINO, ANIBAL","NO","E","SEVILLA"]
[51421796,"BRAVO RODRIGUEZ, ADELAIDA","NO","I","MADRID"]
[44464565,"BRETAÑA CID, MARIA BELEN","SI","I","A CORUÑA"]
[70877207,"BRIZ IGLESIAS, ALBERTO","NO","I","VALLADOLID"]
[51647456,"BUENACHE FERNANDEZ, MARIA ROSARIO","NO","I","MADRID"]
[43538837,"BUENDIA HERAS, FRANCESC","NO","I","BARCELONA"]
[18442951,"BUESO RAMO, ELENA","SI","I","VALENCIA"]
[29095412,"BUIGUES PRADEL, M. CRISTINA","SI","I","MADRID"]
[25463934,"BUIL TORRALBA, MARIA CRISTINA","SI","E","MADRID"]
[77323538,"BUITRAGO GARRIDO, FRANCISCO.JOSE","NO","I","SEVILLA"]
[25478890,"BURGUETE MONLEON, ESTHER","NO","I","MADRID"]
[52619087,"BUSTO CORNEJO, AVELINO","NO","I","MADRID"]
[44604719,"CABALLERO ALVAREZ, MANUEL","NO","I","SEVILLA"]
[7969756,"CABALLERO FIEL, JORGE","SI","E","VALLADOLID"]
[33508481,"CABALLERO RUBIATO, LUIS ALFONSO","NO","I","MADRID"]
[71432728,"CABALLO GAGO, LORENA","NO","I","VALLADOLID"]
[28764548,"CABANILLAS LEÓN, PEDRO PABLO","NO","I","SEVILLA"]
[32841667,"CABEZAS ALVAREZ, PAULA","NO","I","A CORUÑA"]
[27465915,"CABEZAS CALVO-RUBIO, JOSE CARLOS","SI","E","SEVILLA"]
[2847067,"CABEZON FERRER, ELENA","NO","I","MADRID"]
[30948983,"CABRERA MOYA, MIGUEL ANGEL","NO","I","SEVILLA"]
[71763630,"CABRERA RAMALLAL, ALEJANDRO","NO","I","VALLADOLID"]
[50812062,"CABRERO GARCIA, EMILIO A.","NO","E","MADRID"]
[18436444,"CACERES GOMEZ, MARIA DOLORES","NO","I","VALENCIA"]
[32674000,"CAGIGAO CARRACEDO, MARIA DOLORES","SI","I","A CORUÑA"]
[26032209,"CALAHORRO HIDALGO, VICTOR","SI","I","MADRID"]
[44253440,"CALIZ MAZENOD, SIGFRIDO ERIK","NO","E","MALAGA"]
[72057359,"CALOCA POLO, BRUNO","NO","I","MADRID"]
[38444572,"CALVET LLUIS, SONIA","SI","I","BARCELONA"]
[9433714,"CALVILLO RODRIGUEZ, ANA ISABEL","SI","E","VALLADOLID"]
[70159185,"CALVO ALIAGA, AURELIO","NO","F","MADRID"]
[6581420,"CALVO ANIBARRO, MIGUEL","SI","I","MADRID"]
[25183942,"CALVO CATALAN, MARTA","NO","I","MADRID"]
[30949519,"CALVO FERNANDEZ, ANGELES","SI","I","SEVILLA"]
[36086710,"CALVO PEREZ, ANFONSO","NO","I","A CORUÑA"]
[36555128,"CALVO VAZQUEZ, JOSE DARIO","NO","F","BARCELONA"]
[9433309,"CALZON VAZQUEZ, NIEVES","NO","I","VALLADOLID"]
[43743560,"CALL COSTA, ESTER","NO","I","BARCELONA"]
[30618821,"CALLE LEDO, JON ANDER","SI","I","VALLADOLID"]
[71017674,"CALLEJA CARBAJOSA, FRANCISCO","SI","I","VALLADOLID"]
[3431495,"CALLEJO GOMEZ, JESUS","SI","I","MADRID"]
[12406745,"CAMINO LANGA, LAURA","NO","I","VALLADOLID"]
[26009082,"CAMPAÑA HERVAS, M. FUENSANTA","NO","I","MALAGA"]
[13149326,"CAMPO GIL, CRISTINA DEL","SI","I","MADRID"]
[38863295,"CAMPOS LOZANO, M. DEL MAR","NO","I","BARCELONA"]
[9428232,"CANCIO CUERVO, VANESA","SI","E","A CORUÑA"]
[11938143,"CANITROT ALONSO, JOSE ANTONIO","SI","I","VALLADOLID"]
[35324987,"CANITROT JANEIRO, MIGUEL","SI","I","A CORUÑA"]
[5665295,"CANO ARANGUEZ, JOSE JUAN","NO","I","MADRID"]
[21467595,"CANO ESQUIBEL, MIGUEL JAIME","NO","E","VALENCIA"]
[5279570,"CANOVAS IMPUESTO, JOSE LUIS","NO","E","MADRID"]
[53526269,"CANTERO ESPADAS, SERGIO","NO","I","VALLADOLID"]
[43146268,"CANTERO PERAL, BEATRIZ","NO","I","VALENCIA"]
[28911525,"CANTILLANA MERCHANTE, PILAR","NO","I","SEVILLA"]
[48373229,"CANTO NIETO, IRENE","NO","I","VALENCIA"]
[22140182,"CANTO RICO, SERGIO","SI","F","VALENCIA"]
[4845541,"CAÑAS COSTA, RAFAEL","NO","I","MADRID"]
[18948683,"CAPSIR PERIS, MARIA JESUS","NO","I","VALENCIA"]
[37282338,"CARAL GARCIA, JORDI","SI","I","BARCELONA"]
[71120188,"CARAZO SARDON, RUBEN","NO","E","VALLADOLID"]
[34965905,"CARBALLO NOGUEIRA, ENRIQUE","NO","I","A CORUÑA"]
[2909323,"CARCELEN AYCART, ALVARO","NO","I","MADRID"]
[10829633,"CARCELES COSIO, EDUARDO","NO","E","VALLADOLID"]
[28480142,"CARDENAL PIRIS, LUIS","SI","I","SEVILLA"]
[34979855,"CARDERO BLANCO, M. REYES","SI","I","A CORUÑA"]
[24383074,"CARDIEL MORA, ESTER","NO","E","VALENCIA"]
[73779240,"CARLOS MORALES, Mª ELENA","NO","I","VALENCIA"]
[44277927,"CARO MARTINEZ, JUAN MANUEL","SI","I","MALAGA"]
[52106390,"CARRASCO ARMERO, MARIA PILAR","NO","I","MADRID"]
[77325582,"CARRASCO CABRERIZO, ANA ELENA","NO","I","MADRID"]
[29788268,"CARRASCO CARRASCO, MARIA TERESA","NO","I","SEVILLA"]
[52564176,"CARRASCO MARTINEZ, ANA MARIA","NO","I","SEVILLA"]
[7520147,"CARRETO DEVORA, JUAN CARLOS","NO","I","MADRID"]
[9809019,"CARRIZO LOPEZ, OLIVA MARIA","NO","F","VALLADOLID"]
[32819727,"CARRO BARALLOBRE, MONICA","NO","I","A CORUÑA"]
[2910605,"CASADO MORALES, SUSANA","NO","I","MADRID"]
[73562543,"CASAÑ VILA, NOELIA","NO","I","VALENCIA"]
[52870617,"CASILLAS GARCIA, ENRIQUE","NO","I","MADRID"]
[9422194,"CASTAÑON SUAREZ, MARCOS","SI","I","VALLADOLID"]
[22976963,"CASTEJON GARCERAN, DAVID","NO","I","MADRID"]
[70864417,"CASTELLO BOVEDA, ANA AGUSTINA","NO","I","VALLADOLID"]
[75018443,"CASTILLA RUIZ, MIGUEL","NO","I","SEVILLA"]
[46742581,"CASTILLEJO BELLA, INGRID","NO","I","BARCELONA"]
[7980717,"CASTILLO GONZALEZ, Mª. DEL MAR","NO","I","VALLADOLID"]
[35118833,"CASTILLO PORTELA, GREGORIA","NO","F","BARCELONA"]
[25180408,"CASTILLO DEL PRADO, LUIS ANTONIO","NO","I","MADRID"]
[25584260,"CASTRO ALVAREZ, MARIA NIEVES","NO","I","MALAGA"]
[32835471,"CASTRO AMARELLE, MARIA CARMEN","SI","I","A CORUÑA"]
[79325449,"CASTRO CAAMAÑO, LAURA","NO","I","A CORUÑA"]
[32662339,"CASTRO FREIRE, MARIA MERCEDES","NO","I","A CORUÑA"]
[76412183,"CASTRO PICO, ROCIO","NO","I","A CORUÑA"]
[20190889,"CASTRO PRIETO, MARTA","SI","I","VALLADOLID"]
[25424414,"CASTRO RODRIGUEZ, ANTONIO JOSE","NO","F","VALENCIA"]
[50866221,"CATARINEU COLLADOS, LUISA","NO","F","MADRID"]
[41095885,"CAUBET MARIN, ROSA","SI","I","BARCELONA"]
[25693262,"CAZORLA LOPEZ, LIDIA","NO","I","MALAGA"]
[8858908,"CEBALLOS GONZALEZ, BEATRIZ","NO","I","SEVILLA"]
[47372593,"CEBREIRO SANTAMARTA, ANTONIA","NO","F","A CORUÑA"]
[20824253,"CEBRIA MURILLO, RAQUEL","SI","I","VALENCIA"]
[13160785,"CELIS MARTIN, NURIA","SI","I","MADRID"]
[28934431,"CEMBELLIN PEREZ, CARMEN MARIA","NO","I","SEVILLA"]
[22566801,"CENTELLES MARTINEZ, ISABEL","NO","I","VALENCIA"]
[2655893,"CENTOL MARTINEZ, PAULA","SI","E","MADRID"]
[29133924,"CERCADILLO PURAS, SUSANA","SI","I","MADRID"]
[52818752,"CERDAN NOGUERA, ALBERTO","NO","I","VALENCIA"]
[73260228,"CERDEIRA GRACIA, MARIA ANGELES","NO","E","BARCELONA"]
[71419450,"CEREZAL DE LA VARGA, BEATRIZ","NO","I","VALLADOLID"]
[7979988,"CEREZO APARICIO, MARIA JOSE","SI","I","MADRID"]
[76939913,"CERNUDA CASCUDO, MARIA DOLORES","NO","E","MADRID"]
[2248569,"CERRO GORDO, JOSE MARIA DEL","SI","I","MADRID"]
[7239223,"CERRO SALADO, CARLOS","NO","I","SEVILLA"]
[33520377,"CICUENDEZ ROLDAN, ANA MARIA","NO","F","MADRID"]
[3251782,"CID LAJO, MARIA","SI","F","MADRID"]
[28962820,"CID NISO, JOSE ALBERTO","NO","I","MADRID"]
[30815963,"CINTAS JURADO DE FLOREZ, CARMEN MARIA","NO","I","MADRID"]
[71262306,"CIRUELOS SANTACRUZ, CARLOS","NO","I","VALLADOLID"]
[7877690,"CLAVERO HERNANDEZ, JUAN OLEGARIO","NO","I","MADRID"]
[46635605,"CLAVIJO TOMAS, M. JOSE","SI","I","BARCELONA"]
[18040468,"COARASA PARDO, LUIS ESTEBAN","NO","I","MADRID"]
[38559781,"COBA DENNINGER, GABRIEL DE LA","SI","A","BARCELONA"]
[20210053,"COBO SANCHEZ, HECTOR","NO","I","VALLADOLID"]
[9775763,"COBOS CARRIZO, CRISTINA","NO","I","A CORUÑA"]
[73257218,"COLAS GRACIA, MIGUEL ANGEL","NO","I","VALENCIA"]
[2537881,"COLOMA DELGADO, BLANCA","SI","I","MADRID"]
[7996239,"COLLAZOS MARTIN, M. MERCEDES","NO","F","VALLADOLID"]
[75884018,"COMINO DIAZ CARRALERO, MILAGROS","SI","I","SEVILLA"]
[76907449,"CONCHA DURAN, IVONNE","SI","I","A CORUÑA"]
[9792522,"CONDE LOPEZ, AURORA","NO","I","BARCELONA"]
[2545074,"CONDE MARTINEZ, ALFONSO","NO","I","MADRID"]
[75749112,"CONDE RIOS, JUDIT","NO","I","A CORUÑA"]
[76995069,"CONDE VIZOSO, CARLOS GUSTAVO","SI","I","A CORUÑA"]
[24337665,"CONEJERO GIMENEZ, JOSE MELCHOR","NO","I","VALENCIA"]
[52413334,"CORCHERO MARTIN, JUAN MARIA","SI","F","VALLADOLID"]
[50110946,"CORCHON GONZALEZ, MONICA","NO","I","MADRID"]
[53507071,"CORPAS IBIRICU, LAURA","NO","I","MADRID"]
[52358033,"CORRALIZA TAPIA, EMILIO","NO","I","SEVILLA"]
[30824638,"CORREDERA GARCIA, SILVIA","NO","I","SEVILLA"]
[52479033,"CORTES JIMENEZ, LUCIA","NO","I","MADRID"]
[25432799,"CORTES POBLADOR, MARIA DOLORES","NO","I","MADRID"]
[52169196,"CORTINA MARTI, MARIA MERCE","NO","I","BARCELONA"]
[29119614,"CORZAN GARCIA, JOSE","SI","I","MADRID"]
[51070061,"COS MENENDEZ-RIVAS, ENRIQUE","NO","I","MADRID"]
[36088051,"COSTAS SOUSA, MARCOS","NO","I","A CORUÑA"]
[53540337,"COTO SEGURA, COVADONGA","NO","I","VALLADOLID"]
[46894529,"COVARRUBIAS SALAZAR, ROCIO","NO","I","MADRID"]
[7045912,"CREHUET BERNALDEZ, JOAQUIN","SI","I","MADRID"]
[2639913,"CRESPO BRAVO, M. BELEN","NO","I","MADRID"]
[36173420,"CRESPO CIBRAN, MIGUEL ANGEL","NO","I","A CORUÑA"]
[16582051,"CRESPO DELGADO, ALVARO","SI","I","MADRID"]
[52875489,"CRESPO FLORES, LAURA","NO","I","MADRID"]
[52738326,"CRESPO MONTORO, M.DESAMPARADOS","NO","I","VALENCIA"]
[7990860,"CRESPO PEREZ, JORGE","NO","F","VALLADOLID"]
[53139501,"CRIADO LOPEZ, DANIEL","SI","I","MADRID"]
[42176608,"CRUZ MOLINA, GLADYS TERESA","SI","I","LAS PALMAS G.C."]
[42189811,"CRUZ MOLINA, SANDRA","NO","I","LAS PALMAS G.C."]
[28961454,"CRUZ QUINTANILLA, EVA","SI","I","MADRID"]
[44280063,"CUADRA BELMAR, RICARDO","NO","I","MALAGA"]
[10885382,"CUBILES VAZQUEZ, PAULA MARIA","NO","I","MADRID"]
[10864413,"CUBILLAS LASTRA, FCO. JAVIER","NO","I","A CORUÑA"]
[3461430,"CUELLAR BARRIO, MARIA SONIA","SI","I","MADRID"]
[14304675,"CUENCA DIAZ, ENRIQUE DE","NO","I","MADRID"]
[13156037,"CUESTA ARAUZO, MARIA BELEN","NO","I","VALLADOLID"]
[26231013,"CUEVAS MUÑOZ, FLORENTINA","NO","I","MALAGA"]
[35316632,"CUIÑA FERNANDEZ, SOFIA","SI","I","A CORUÑA"]
[44447231,"CUIÑAS CID, REBECA","SI","I","A CORUÑA"]
[11905324,"CURTO PEREZ, ENRIQUE M.","SI","I","MADRID"]
[52507153,"CHAMORRO DE SAN ANSELMO, M. PILAR","SI","I","MADRID"]
[9784723,"CHAMORRO FERNANDEZ, GERARDO","SI","I","VALLADOLID"]
[32429843,"CHAS COUTO, ELOY","NO","F","A CORUÑA"]
[1820056,"CHECA HERRANZ, CIRIACO","NO","F","MADRID"]
[76149746,"CHECA MARTINEZ, LIDIA","NO","I","MALAGA"]
[50037429,"CHENA MARTINEZ, TOMAS","SI","I","MADRID"]
[16064122,"CHILLON CLERIGO, MARIA NOEMI","SI","I","MADRID"]
[44575100,"CHITO RUIE, ROSARIO ISABEL","NO","I","MADRID"]
[33487339,"CHUECOS MORENILLA, JUAN ANTONIO","NO","I","VALENCIA"]
[21670591,"DAUDER ALCARAZ, JORGE PABLO","SI","I","VALENCIA"]
[76906276,"DAVILA LORES, ALEJANDRO","NO","I","A CORUÑA"]
[70876729,"DE DIOS FUENTE, LAURA","NO","I","VALLADOLID"]
[7989711,"DE DIOS RODRIGUEZ, DAVID","SI","I","VALLADOLID"]
[2265556,"DE FRANCISCO GARRIDO, ROBERTO","SI","I","MADRID"]
[33289767,"DE FRUTOS GONZALEZ, RAMON ISIDRO","NO","I","A CORUÑA"]
[50862740,"DE LA HERRAN ELORRIAGA, IÑAKI","NO","I","MADRID"]
[24379081,"DE LA MORENA SEGURA, FELIPE","SI","I","VALENCIA"]
[26036293,"DE LA TORRE GUTIERREZ, ARACELI","NO","I","SEVILLA"]
[2540039,"DE LA VEGA RODRIGUEZ, ANTONIO","NO","I","MADRID"]
[10893916,"DE LARREA ARGIZ, LAURA","SI","I","VALLADOLID"]
[30943718,"DE LUQUE PIÑANA, RAFAELA","NO","I","SEVILLA"]
[46907325,"DE LLANO YAÑEZ, JAVIER","NO","I","A CORUÑA"]
[31691176,"DE MIGUEL TRUJILLO, M. CARMEN","NO","I","SEVILLA"]
[5671770,"DE NOVA LABIAN, MARIA ISABEL","NO","I","MADRID"]
[46737070,"DEALBERT AMOROS, ANA","SI","I","BARCELONA"]
[12394417,"DEL ALAMO CABALLERO, M PILAR","NO","I","VALLADOLID"]
[50858767,"DEL CAMPO PEDRERO, CRISTINA","NO","I","MADRID"]
[51644410,"DEL CAMPO REDONDO, PAULINO","NO","F","MADRID"]
[25694603,"DEL OTERO FRAILE, ANGEL JOSE","NO","I","MALAGA"]
[2612610,"DEL POZO ASENSIO, BELEN","NO","I","MADRID"]
[8852344,"DEL POZO REYNOLDS, MARIA CRISTINA","NO","I","SEVILLA"]
[8852343,"DEL POZO REYNOLDS, MARIA OLGA","NO","I","SEVILLA"]
[30677583,"DEL RIEGO DE FUENTES, CESAR CARLOS","NO","I","MADRID"]
[71123245,"DEL RIO MORO, MIGUEL ANGEL","SI","I","VALLADOLID"]
[32885038,"DEL VALLE DIAZ, MARIA","NO","I","A CORUÑA"]
[28962506,"DELGADO CASERO, NIEVES JUDIT","NO","I","MADRID"]
[29185185,"DELGADO HERNANDEZ, ANA","SI","I","VALENCIA"]
[24229743,"DELGADO RODRIGUEZ, EXPIRACION","NO","F","MALAGA"]
[18441981,"DELGADO SAEZ, MANUEL","NO","I","MADRID"]
[53006266,"DELGADO TOME, BERTA LUCIA","NO","I","MADRID"]
[73563992,"DEVAL TORRENT, ENRIQUE MOISES","NO","I","BARCELONA"]
[80075433,"DIAZ BAGULHO, ANA MARIA","NO","F","MADRID"]
[7003229,"DIAZ BERNARDO, PEDRO MIGUEL","NO","F","MADRID"]
[76021126,"DIAZ CAMARERO, CAROLINA","NO","I","MADRID"]
[53535693,"DIAZ CANAL, ANA MATILDE","NO","I","VALLADOLID"]
[13159291,"DIAZ CUESTA, ANA ROSA","NO","I","VALLADOLID"]
[71642085,"DIAZ FERREIRA, IVAN","NO","I","VALLADOLID"]
[3865922,"DIAZ GARCIA, GENOVEVA","NO","I","MADRID"]
[5682502,"DIAZ GARCIA, TOMAS","SI","I","MADRID"]
[5422110,"DIAZ GOMEZ, ROSA MARIA","NO","I","MADRID"]
[6575965,"DIAZ MARTIN, ANA DELIA","NO","I","MADRID"]
[33965671,"DIAZ RAFALES, ANTONIO","SI","I","BARCELONA"]
[7240568,"DIAZ YRAOLA, JAIME","NO","I","MADRID"]
[44298589,"DIAZ ZABALA, PEDRO","NO","-","MALAGA"]
[71267422,"DIEGO ARRIBAS, TERESA DEL","NO","I","VALLADOLID"]
[9420438,"DIEGO FERNANDEZ, MARIA PAZ","NO","I","A CORUÑA"]
[50092485,"DIEGUEZ NUÑEZ, ANA ISABEL","NO","I","MADRID"]
[2257299,"DIEZ DEL RIO, LUIS DELFIN","SI","I","MADRID"]
[38114944,"DIEZ GARCIA, JOSE MARIA","SI","I","BARCELONA"]
[9810756,"DIEZ GARCIA, RAFAEL","NO","I","VALLADOLID"]
[30624169,"DIEZ GOMEZ, OSCAR","NO","I","VALLADOLID"]
[13154386,"DIEZ MARTINEZ, ALVARO","NO","I","MADRID"]
[14886195,"DIEZ MARTINEZ, JOSE","SI","I","MADRID"]
[17450785,"DIEZ MORENO, M. PILAR","NO","I","MADRID"]
[12362423,"DIEZ ORTEGA, JESUS ANGEL","NO","I","VALLADOLID"]
[7978477,"DIOS HERNANDEZ, CAROLINA DE","SI","I","VALLADOLID"]
[36462783,"DOMENECH GABARRO, JOSE","NO","F","BARCELONA"]
[45635923,"DOMINGUEZ CERRAJERIA, SONIA","NO","I","VALENCIA"]
[18441260,"DOMINGUEZ CIVERA, CRISTINA","SI","I","VALENCIA"]
[44324267,"DOMINGUEZ DE MARIA, JORGE","NO","I","MADRID"]
[53133332,"DOMINGUEZ ENEBRA, ANA SANDRA","NO","F","MADRID"]
[75954730,"DOMINGUEZ HERRERO, MARIA VANESA","NO","I","MALAGA"]
[50464544,"DOMINGUEZ PEREZ, MARIA","NO","I","MADRID"]
[35470104,"DOMINGUEZ VILAS, LORENA","SI","I","VALLADOLID"]
[44449176,"DORREGO ANTA, CARLOS JOSE","NO","I","A CORUÑA"]
[71936910,"DUARTE APARICIO, Mª ISABEL","NO","I","MADRID"]
[43683248,"DUBAU FIGUERA, ROSA MARIA","NO","F","BARCELONA"]
[45462535,"DURO MONTIEL, JUANA","NO","F","BARCELONA"]
[28799752,"ECHARTE FELIU, PILAR","NO","F","SEVILLA"]
[77800186,"EGLER BRAÑA, ALVARO","NO","I","SEVILLA"]
[51930751,"ESCALADA HERRAIZ, ANTONIO","NO","I","MADRID"]
[76411582,"ESCOLA ROCA, VERONICA","NO","I","A CORUÑA"]
[18444181,"ESCRICHE RUFANGES, MARIA AMPARO","NO","I","VALENCIA"]
[44863207,"ESCRIVA BELTRAN, LAURA GRACIA","NO","I","VALENCIA"]
[53202026,"ESCUDERO PRADAS, ARACELI","SI","I","VALENCIA"]
[78035411,"ESCUDERO PUGA, Mª INMACULADA","SI","I","MADRID"]
[1802562,"ESPASANDIN SANCHEZ, ENCARNACION","NO","I","MADRID"]
[38025780,"ESPINAL FABREGAT, JOSE MARIA","NO","I","PALMA DE MALL."]
[25413023,"ESPINOZA SARRIÓ, MARIA PILAR","NO","I","VALENCIA"]
[36156194,"ESPIÑEIRA VILAR, SUSANA","NO","I","A CORUÑA"]
[33343400,"ESPIÑO RODRIGUEZ, YOLANDA","SI","I","A CORUÑA"]
[71017042,"ESTEBAN GARCIA, LEONARDO","SI","I","VALLADOLID"]
[50469002,"ESTEBAN LUIS, M CARMEN","SI","I","MADRID"]
[45582284,"ESTELLER VAZQUEZ, CESAR ALFREDO","NO","I","SEVILLA"]
[8869562,"ESTEVEZ JIMENO, JOSE LUIS","NO","I","MADRID"]

{"sheet":"Macro 04","index":5,"n_rows":3,"n_cols":5,"rows_kept":3,"cut":false,"hidden":false,"merged":[]}
[]
["D.N.I.","APELLIDOS Y NOMBRE","RESERVA","IDIOMA","SEDE"]
[null,null,null,null,"BARCELONA"]

{"sheet":"Otros datos","index":6,"n_rows":787,"n_cols":8,"rows_kept":787,"cut":false,"hidden":false,"merged":[]}
["CODIGO","NOMBREPELI","TIPO","FECHAING","PRECIO","ESTADO","CANTIDAD","TOTAL"]
[143,"DRESSED TO KILL","A",35940,20.7,"D",9,{"$f":"E2*G2","v":186.29999999999998}]
[78,"JULIET OF THE SPIRITS","A",35898,20.7,"N/D",2,{"$f":"E3*G3","v":41.4}]
[478,"MATEWAN","B",35864,16.5,"D",1,16.5]
[630,"WIZARD OF OZ, THE","C",36054,12.8,"D",6,76.800000000000011]
[72,"KRAMER VS. KRAMER","A",35875,20.7,"N/D",5,103.5]
[468,"HAND THAT ROCKS THE CRADLE, TH","B",36035,16.399999999999999,"D",1,16.399999999999999]
[1006,"F/X","E",35857,8.1999999999999993,"D",4,32.799999999999997]
[833,"MONEY PIT, THE","D",36043,10,"D",2,20]
[873,"WAR OF THE ROSES, THE","D",35996,10.3,"D",9,92.7]
[968,"INN OF THE SIXTH HAPPINESS, TH","D",35882,10.5,"N/D",8,84]
[470,"K-9","B",36052,16.899999999999999,"N/D",4,67.599999999999994]
[11,"BAD BOYS","A",36056,20.6,"N/D",8,164.8]
[8,"BLACK SUNDAY","A",35953,20.5,"D",1,20.5]
[897,"FX2 - THE DEADLY ART OF ILLUSI","D",35942,10.4,"N/D",6,62.400000000000006]
[656,"BARTON FINK","C",35863,12.2,"D",1,12.2]
[659,"GLENN MILLER STORY, THE","C",35905,12.1,"D",5,60.5]
[1019,"KING AND I, THE","E",35983,8.8000000000000007,"N/D",5,44]
[855,"SWIMMING TO CAMBODIA","D",36133,10.7,"D",7,74.899999999999991]
[742,"UNDER SIEGE","C",35980,12.5,"D",8,100]
[434,"HARVEY","B",35906,16,"D",6,96]
[706,"LAST OF THE MOHICANS, THE","C",35918,12.9,"D",9,116.10000000000001]
[119,"SNOW WHITE","A",36095,20.100000000000001,"D",3,60.300000000000004]
[737,"ZELIG","C",35998,12.6,"D",5,63]
[543,"TRADING PLACES","C",35999,12.2,"D",3,36.599999999999994]
[679,"HITCHER, THE","C",36078,12.1,"D",2,24.2]
[435,"COLORS","B",35903,16.7,"D",10,167]
[432,"EDUCATING RITA","B",36082,16,"D",2,32]
[585,"JAWS 2","C",36157,12.7,"D",10,127]
[533,"O LUCKY MAN!","C",36075,12.5,"D",4,50]
[35,"SWEET DREAMS","A",35881,20.2,"D",9,181.79999999999998]
[902,"FRANTIC","D",36057,10,"D",3,30]
[92,"SOME LIKE IT HOT","A",36045,20.8,"D",7,145.6]
[1010,"DIRTY DANCING","E",36020,8.6,"N/D",9,77.399999999999991]
[122,"MY BRILLIANT CAREER","A",35940,20.100000000000001,"N/D",6,120.60000000000001]
[749,"FOUL PLAY","C",36140,12.7,"D",10,127]
[678,"BIG TROUBLE IN LITTLE CHINA","C",35998,12.7,"D",1,12.7]
[668,"MY BEAUTIFUL LAUNDERETTE","C",36038,12.4,"D",6,74.400000000000006]
[925,"DEATH BECOMES HER","D",36107,10.5,"N/D",7,73.5]
[40,"SMALL CHANGE","A",36009,20.5,"D",10,205]
[810,"VAMPIRE'S KISS","D",36145,10.1,"D",2,20.2]
[949,"STORMY WEATHER","D",36145,10.6,"D",8,84.8]
[1001,"FLOWERS IN THE ATTIC","E",36133,8.8000000000000007,"D",7,61.600000000000009]
[822,"REGARDING HENRY","D",36081,10.6,"D",9,95.399999999999991]
[603,"FLASHDANCE","C",36091,12.2,"D",1,12.2]
[1014,"CITIZEN KANE","E",36157,8.4,"D",8,67.2]
[30,"PORKY'S REVENGE","A",35851,20.5,"D",1,20.5]
[38,"BULL DURHAM","A",35965,20.3,"D",9,182.70000000000002]
[875,"FERRIS BUELLER'S DAY OFF","D",35934,10.7,"D",3,32.099999999999994]
[768,"BANG THE DRUM SLOWLY","D",36113,10.4,"D",6,62.400000000000006]
[711,"POSEIDON ADVENTURE","C",35866,12.5,"D",5,62.5]
[555,"LITTLE MERMAID, THE","C",36128,12,"N/D",3,36]
[58,"DRACULA (1931)","A",35894,20.100000000000001,"D",8,160.80000000000001]
[950,"FROM HERE TO ETERNITY","D",35884,10.3,"D",4,41.2]
[680,"SLEEPING WITH THE ENEMY","C",36067,12.1,"D",0,0]
[420,"FERNGULLY... THE LAST RAINFORE","B",36020,16.100000000000001,"D",5,80.5]
[848,"DAS BOOT (THE BOAT)","D",36092,10.4,"N/D",1,10.4]
[151,"CHRISTMAS CAROL, A","A",36145,20.399999999999999,"D",3,61.199999999999996]
[131,"WORLD ACCORDING TO GARP, THE","A",35962,20.7,"D",1,20.7]
[684,"CARMEN","C",36024,12.8,"N/D",0,0]
[708,"THIS PROPERTY IS CONDEMNED","C",35936,12,"D",8,96]
[636,"JFK","C",36056,12,"D",3,36]
[901,"WIZARDS","D",35874,10.9,"D",7,76.3]
[752,"USED PEOPLE","D",35965,10.9,"N/D",3,32.700000000000003]
[686,"MOULIN ROUGE","C",35939,12.9,"D",4,51.6]
[497,"PURPLE RAIN","B",35979,16.100000000000001,"D",10,161]
[986,"DO THE RIGHT THING","D",36025,10.6,"N/D",9,{"$f":"E67*G67","v":95.399999999999991}]
[405,"BODY HEAT","B",35941,16,"D",1,16]
[854,"DIVA","D",36029,10.1,"D",7,70.7]
[827,"HARD DAY'S NIGHT, A","D",35926,10.3,"D",10,103]
[19,"UP IN SMOKE","A",35929,20.5,"D",8,164]
[721,"KISS ME DEADLY","C",36115,12.1,"N/D",0,0]
[512,"BACK TO THE FUTURE 2","C",35873,12.5,"D",8,100]
[1020,"NIGHTMARE ON ELM STREET, A","E",35986,8.1999999999999993,"D",8,65.599999999999994]
[440,"FIDDLER ON THE ROOF","B",36106,16.600000000000001,"D",5,83]
[550,"BEAUTY AND THE BEAST (ANIMATED","C",35997,12.6,"D",4,50.4]
[570,"JERK, THE","C",35963,12.5,"D",6,75]
[814,"HOPE AND GLORY","D",35993,10.199999999999999,"N/D",2,20.399999999999999]
[824,"WUTHERING HEIGHTS","D",36033,10.7,"N/D",1,10.7]
[499,"ADVENTURES OF MILO AND OTIS, T","B",36052,16.2,"D",10,162]
[862,"TO SLEEP WITH ANGER","D",36089,10.5,"D",4,42]
[84,"KING OF HEARTS","A",35984,20.3,"D",0,0]
[674,"RYAN'S DAUGHTER","C",36153,12.3,"D",5,61.5]
[561,"TOWN LIKE ALICE, A","C",36135,12.8,"N/D",9,115.2]
[829,"CANNONBALL RUN 1","D",36056,10.5,"N/D",2,21]
[937,"BECKET","D",35943,10.8,"N/D",7,75.600000000000009]
[453,"LOST IN AMERICA","B",35928,16.5,"D",2,33]
[108,"TAMING OF THE SHREW, THE","A",36001,20.399999999999999,"D",2,40.799999999999997]
[681,"MIDNIGHT COWBOY","C",36119,12.5,"N/D",0,0]
[59,"BAGDAD CAFE","A",35899,20.399999999999999,"D",5,102]
[403,"APRIL FOOL'S DAY","B",36123,16.3,"N/D",9,146.70000000000002]
[892,"GREMLINS 2 - THE NEW BATCH","D",36059,10.9,"D",9,98.100000000000009]
[536,"PRETTY IN PINK","C",35867,12,"N/D",5,60]
[724,"BUFFY THE VAMPIRE SLAYER","C",36006,12.5,"D",8,100]
[975,"LAST PICTURE SHOW, THE","D",35942,10.6,"D",10,106]
[756,"JUNGLE BOOK, THE (1942)","D",36006,10.4,"D",0,0]
[775,"CHILD'S PLAY 2","D",36091,10.9,"D",7,76.3]
[806,"STEPFATHER 2 - MAKE ROOM FOR D","D",36032,10.1,"D",4,40.4]
[859,"GOODBYE GIRL, THE","D",35896,10.5,"D",9,94.5]
[790,"ROCKY 3","D",35965,10,"D",4,40]
[965,"INHERIT THE WIND","D",36099,10.3,"D",3,30.900000000000002]
[773,"BORN ON THE FOURTH OF JULY","D",36055,10.6,"N/D",2,21.2]
[698,"WILD ORCHID","C",36010,12.2,"D",8,97.6]
[484,"BILL & TED'S EXCELLENT ADVENTU","B",36133,16.2,"D",6,97.199999999999989]
[1002,"TAPS","E",35982,8,"N/D",2,16]
[819,"GOLDEN CHILD, THE","D",36136,10.5,"D",7,73.5]
[26,"ZORBA THE GREEK","A",36080,20.7,"D",4,82.8]
[730,"HARD TO KILL","C",35855,12.9,"D",10,129]
[608,"OCTOPUSSY","C",36020,12.4,"D",9,111.60000000000001]
[112,"HOOSIERS","A",36101,20.100000000000001,"D",4,80.400000000000006]
[1012,"WALL, THE","E",35959,8.9,"D",2,17.8]
[798,"WITNESS FOR THE PROSECUTION","D",35918,10.9,"N/D",10,109]
[110,"ARSENIC AND OLD LACE","A",35993,20.8,"D",10,208]
[611,"SOUND OF MUSIC, THE","C",35870,12,"D",8,96]
[654,"ABYSS, THE","C",36037,12.4,"N/D",9,111.60000000000001]
[640,"JEWEL OF THE NILE, THE","C",36145,12.6,"D",9,113.39999999999999]
[888,"BEVERLY HILLS COP 2","D",36050,10.6,"D",3,31.799999999999997]
[397,"SHINING THROUGH","B",35945,16.3,"N/D",7,114.10000000000001]
[660,"WAYNE'S WORLD","C",35980,12.8,"D",6,76.800000000000011]
[572,"GROUNDHOG DAY","C",36123,12.5,"D",6,75]
[886,"SINGIN' IN THE RAIN","D",36005,10.5,"D",7,73.5]
[481,"NATIONAL LAMPOON'S VACATION","B",36125,16.600000000000001,"D",8,132.80000000000001]
[801,"LADY VANISHES, THE","D",35902,10.6,"D",0,0]
[563,"ADAM'S RIB","C",36117,12.6,"D",1,12.6]
[720,"WITCHES OF EASTWICK, THE","C",36099,12.6,"D",3,37.799999999999997]
[853,"CREEPSHOW 2","D",36034,10.199999999999999,"D",0,0]
[878,"FIRST BLOOD","D",36097,10.1,"D",9,90.899999999999991]
[962,"SLEUTH","D",35869,10.4,"N/D",0,0]
[500,"GRAPES OF WRATH, THE","B",35900,16.2,"D",8,129.6]
[627,"BRAM STOKER'S DRACULA","C",35879,12.6,"D",4,50.4]
[735,"ALWAYS","C",36063,12.8,"N/D",0,{"$f":"E131*G131","v":0}]
[995,"KISS OF THE SPIDER WOMAN","D",35933,10.6,"N/D",8,84.8]
[984,"DAMAGE","D",36124,10.7,"D",0,0]
[559,"BANANAS","C",36157,12.1,"N/D",10,121]
[1018,"SOMMERSBY","E",35868,8.9,"N/D",9,80.100000000000009]
[409,"AROUND THE WORLD IN 80 DAYS","B",36107,16.600000000000001,"N/D",8,132.80000000000001]
[954,"BRAZIL","D",36099,10.3,"N/D",4,41.2]
[115,"PEOPLE UNDER THE STAIRS, THE","A",35893,20.8,"D",9,187.20000000000002]
[113,"LOVE CRIMES","A",36040,20.5,"N/D",1,20.5]
[36,"SLEEPING BEAUTY","A",36068,20.2,"N/D",10,202]
[98,"TENDER MERCIES","A",35856,20.399999999999999,"D",5,102]
[957,"WEST SIDE STORY","D",36042,10.8,"D",5,54]
[548,"MY DARLING CLEMENTINE","C",35940,12.8,"D",6,76.800000000000011]
[719,"DOWN BY LAW","C",36159,12.2,"D",4,48.8]
[57,"CLOSE ENCOUNTERS OF THE THIRD","A",35937,20.399999999999999,"N/D",5,102]
[79,"GOLD RUSH, THE","A",36107,20.6,"D",1,20.6]
[961,"OUT OF THE PAST","D",36040,10.9,"D",7,76.3]
[477,"SECRET OF MY SUCCESS","B",35881,16.8,"D",10,168]
[21,"GREEN BERETS, THE","A",36022,20,"D",3,60]
[456,"ROCKY 4","B",36058,16.100000000000001,"D",2,32.200000000000003]
[568,"RIVER'S EDGE, THE","C",35933,12.5,"N/D",0,0]
[907,"TROOP BEVERLY HILLS","D",36100,10.6,"D",5,53]
[671,"BONNIE AND CLYDE","C",36391,12.6,"N/D",1,12.6]
[652,"M.A.S.H.","C",36293,12.3,"D",10,123]
[442,"LIFE IS SWEET","B",36400,16.5,"D",2,33]
[584,"ATLANTIC CITY","C",36222,12,"D",8,96]
[547,"EASY MONEY","C",36491,12.1,"D",1,12.1]
[867,"ADVENTURES OF FORD FAIRLANE, T","D",36275,10.199999999999999,"D",5,51]
[64,"BADLANDS","A",36518,20.2,"N/D",5,101]
[577,"AMERICAN ME","C",36249,12.7,"D",8,101.6]
[658,"NORTH DALLAS FORTY","C",36329,12.9,"D",5,64.5]
[689,"SHOW BOAT","C",36522,12,"D",10,120]
[758,"CHARLOTTE'S WEB","D",36254,10.6,"D",3,31.799999999999997]
[525,"HELLRAISER 2","C",36262,12.7,"D",5,63.5]
[504,"LIONHEART","C",36367,12.4,"D",7,86.8]
[29,"SMOKEY AND THE BANDIT","A",36238,20.100000000000001,"D",0,0]
[731,"ANIMAL HOUSE (NATIONAL LAMPOON","C",36268,12.6,"D",5,63]
[96,"ROAD WARRIOR, THE","A",36233,20.100000000000001,"D",8,160.80000000000001]
[675,"YOUNG GUNS 2","C",36297,12.7,"D",7,88.899999999999991]
[450,"MECHANIC, THE","B",36291,16.100000000000001,"D",10,161]
[865,"OUT-OF-TOWNERS, THE","D",36489,10.1,"D",0,0]
[148,"IT","A",36407,20.7,"D",5,103.5]
[999,"ABOVE THE LAW","D",36344,10.6,"D",9,95.399999999999991]
[992,"PRINCE OF TIDES, THE","D",36513,10.4,"D",3,31.200000000000003]
[469,"FATAL ATTRACTION","B",36370,16,"D",2,32]
[406,"HAMLET (1991 - MEL GIBSON)","B",36240,16,"D",4,64]
[82,"VIDEODROME","A",36498,20.3,"D",5,101.5]
[50,"HIGHLANDER","A",36392,20.8,"D",4,83.2]
[915,"FOR A FEW DOLLARS MORE","D",36499,10.5,"D",2,21]
[725,"YOUNG GUNS","C",36494,12.9,"N/D",4,51.6]
[573,"DEEP COVER","C",36488,12.6,"D",0,0]
[650,"LITTLE BIG MAN","C",36456,12.6,"D",2,25.2]
[762,"STOP MAKING SENSE","D",36286,10.7,"N/D",3,32.099999999999994]
[876,"HAIRSPRAY","D",36284,10.5,"D",1,10.5]
[881,"RETURN OF THE PINK PANTHER","D",36423,10.3,"D",5,51.5]
[891,"MR. SMITH GOES TO WASHINGTON","D",36343,10.1,"D",0,0]
[657,"NIGHTMARE ON ELM STREET 2, A -","C",36368,12.5,"D",0,0]
[540,"IT HAPPENED ONE NIGHT","C",36426,12.8,"D",4,51.2]
[1021,"REVENGE","E",36268,8.6,"D",3,25.799999999999997]
[718,"PAPER MOON","C",36463,12,"D",6,72]
[429,"GHOST","B",36269,16.8,"N/D",2,33.6]
[844,"TEMPEST , THE","D",36475,10.199999999999999,"D",0,0]
[1011,"NECESSARY ROUGHNESS","E",36420,8.3000000000000007,"D",2,16.600000000000001]
[52,"REAR WINDOW","A",36357,20.8,"D",5,104]
[754,"JAWS","D",36377,10.5,"N/D",6,{"$f":"E195*G195","v":63}]
[870,"I SPIT ON YOUR GRAVE","D",36390,10.6,"D",6,63.599999999999994]
[726,"CAT'S EYE","C",36360,12.2,"D",6,73.199999999999989]
[3,"ANDY GRIFFITH SHOW, THE - A CH","A",36295,20.3,"D",0,0]
[539,"AMERICAN TAIL, AN - FIEVEL GOE","C",36473,12.9,"D",4,51.6]
[904,"BEACHES","D",36286,10.3,"D",2,20.6]
[560,"RICOCHET","C",36394,12.2,"N/D",1,12.2]
[734,"ROBIN HOOD","C",36371,12.7,"D",0,0]
[25,"BRIDGE ON THE RIVER KWAI, THE","A",36250,20.3,"D",4,81.2]
[643,"PRESUMED INNOCENT","C",36483,12,"D",7,84]
[634,"LEAGUE OF THEIR OWN, A","C",36305,12.7,"D",2,25.4]
[423,"DIAL M FOR MURDER","B",36238,16.100000000000001,"D",0,0]
[460,"MIGHTY DUCKS, THE","B",36384,16,"D",4,64]
[770,"NIGHTBREED","D",36406,10.4,"N/D",6,62.400000000000006]
[703,"HOUSE PARTY 2","C",36453,12.2,"D",5,61]
[93,"EDDIE MURPHY - RAW","A",36274,20.3,"D",0,0]
[727,"WATERDANCE, THE","C",36242,12,"D",0,0]
[101,"OBSESSION","A",36414,20.9,"D",1,20.9]
[960,"MY GIRL","D",36355,10.8,"D",5,54]
[43,"BLACK STALLION, THE","A",36420,20.100000000000001,"N/D",6,120.60000000000001]
[966,"NIGHTMARE ON ELM STREET 5, A -","D",36402,10.1,"N/D",3,30.299999999999997]
[605,"REBEL WITHOUT A CAUSE","C",36319,12.7,"D",4,50.8]
[998,"TOTO THE HERO","D",36408,10.9,"D",6,65.400000000000006]
[924,"SERGEANT YORK","D",36269,10.9,"D",5,54.5]
[581,"HOT TO TROT","C",36270,12.3,"D",3,36.900000000000006]
[786,"ALL THAT JAZZ","D",36302,10.6,"D",7,74.2]
[1013,"HUSTLER, THE","E",36521,8,"D",10,80]
[451,"PATTON","B",36244,16,"D",0,0]
[845,"BLAZING SADDLES","D",36428,10.7,"D",0,0]
[39,"STAGECOACH","A",36293,20.3,"D",2,40.6]
[745,"AIRPLANE","C",36251,12.6,"D",0,0]
[502,"JACOB'S LADDER","C",36411,12.9,"D",1,12.9]
[154,"HARDER THEY COME, THE","A",36239,20.6,"D",5,103]
[812,"AFFAIR TO REMEMBER, AN","D",36309,10.1,"D",8,80.8]
[732,"THOMAS CROWN AFFAIR, THE","C",36446,12.9,"D",1,12.9]
[757,"IRON EAGLE","D",36493,10.8,"D",7,75.600000000000009]
[655,"AVALON","C",36528,12.7,"D",1,12.7]
[644,"MIRACLE ON 34TH STREET","C",36278,12.5,"D",3,37.5]
[616,"WHAT ABOUT BOB?","C",36525,12.6,"D",4,50.4]
[75,"RIGHT STUFF, THE","A",36289,20.2,"D",2,40.4]
[120,"GREAT SANTINI, THE","A",36461,20.5,"D",9,184.5]
[794,"PINK PANTHER, THE","D",36253,10.7,"D",7,74.899999999999991]
[598,"KICKBOXER","C",36319,12.9,"D",9,116.10000000000001]
[970,"CAT ON A HOT TIN ROOF","D",36391,10.3,"D",10,103]
[882,"DARK PASSAGE","D",36399,10.5,"D",5,52.5]
[816,"DERSU UZALA","D",36232,10.6,"D",1,10.6]
[747,"EVIL DEAD, THE","C",36520,12.1,"D",4,48.4]
[622,"KENTUCKY FRIED MOVIE","C",36411,12.3,"D",0,0]
[416,"BABETTE'S FEAST","B",36331,16.2,"D",9,145.79999999999998]
[963,"UNCLE BUCK","D",36496,10.9,"D",0,0]
[670,"ROAD HOUSE","C",36230,12.4,"D",10,124]
[1003,"LEAN ON ME","E",36340,8.8000000000000007,"D",5,44]
[87,"PRETTY WOMAN","A",36481,20.2,"D",8,161.6]
[471,"BEST YEARS OF OUR LIVES, THE","B",36353,16.399999999999999,"D",4,65.599999999999994]
[766,"GLORY","D",36487,10.1,"D",3,30.299999999999997]
[449,"IN COLD BLOOD","B",36415,16.2,"D",8,129.6]
[779,"TERMINATOR, THE","D",36387,10.199999999999999,"D",2,20.399999999999999]
[465,"MYSTIC PIZZA","B",36288,16.3,"D",10,163]
[936,"AIRPLANE 2 - THE SEQUEL","D",36362,10.6,"D",6,63.599999999999994]
[574,"MAN AND A WOMAN, A","C",36381,12.4,"D",5,62]
[780,"KILLING FIELDS, THE","D",36259,10.5,"D",7,73.5]
[774,"REUBEN, REUBEN","D",36434,10.1,"D",6,60.599999999999994]
[792,"HOMBRE","D",36486,10.3,"D",7,72.100000000000009]
[601,"ENCHANTED APRIL","C",36398,12.5,"D",7,87.5]
[541,"INDIANA JONES AND THE TEMPLE O","C",36313,12.6,"D",9,{"$f":"E259*G259","v":113.39999999999999}]
[42,"SERPENT AND THE RAINBOW","A",36420,20.399999999999999,"D",8,163.19999999999999]
[626,"DANCES WITH WOLVES","C",36515,12.6,"D",6,75.599999999999994]
[618,"HENRY V (1989)","C",36483,12.2,"D",7,85.399999999999991]
[701,"DYING YOUNG","C",36508,12.9,"N/D",10,129]
[135,"RAGING BULL","A",36397,20.100000000000001,"D",8,160.80000000000001]
[522,"ARACHNOPHOBIA","C",36499,12.4,"D",7,86.8]
[22,"CYBORG","A",36481,20.6,"D",4,82.4]
[796,"BIG CHILL, THE","D",36430,10,"D",8,80]
[514,"OVERBOARD","C",36270,12.2,"D",3,36.599999999999994]
[989,"ONE CRAZY SUMMER","D",36218,10.4,"D",7,72.8]
[147,"ROMAN HOLIDAY","A",36521,20.100000000000001,"D",5,100.5]
[857,"CAMELOT","D",36442,10.8,"D",9,97.2]
[606,"HUD","C",36474,12,"D",10,120]
[129,"MOBY DICK","A",36329,20,"D",5,100]
[404,"CRYING GAME, THE","B",36434,16.100000000000001,"D",8,128.80000000000001]
[750,"BRINGING UP BABY","C",36415,12.9,"D",3,38.700000000000003]
[542,"ADDAMS FAMILY, THE","C",36520,12.2,"D",8,97.6]
[121,"ROMANCING THE STONE","A",36396,20,"D",4,80]
[446,"GOOD, THE BAD AND THE UGLY, TH","B",36228,16.100000000000001,"D",3,48.300000000000004]
[783,"HOWARD THE DUCK","D",36254,10.199999999999999,"D",3,30.599999999999998]
[945,"GODFATHER PART 2, THE","D",36320,10.1,"D",9,90.899999999999991]
[637,"MISSION, THE","C",36488,12.5,"D",1,12.5]
[94,"FOOTLOOSE","A",36461,20.8,"D",1,20.8]
[813,"TRUE GRIT","D",36491,10.9,"D",4,43.6]
[661,"BIG","C",36482,12.6,"D",9,113.39999999999999]
[530,"RIDE THE HIGH COUNTRY","C",36529,12.9,"D",7,90.3]
[942,"WAY WE WERE, THE","D",36286,10.5,"D",6,63]
[150,"AMERICAN NINJA","A",36216,20.100000000000001,"D",8,160.80000000000001]
[841,"GREASE","D",36300,10.1,"D",8,80.8]
[554,"IT'S A MAD, MAD, MAD, MAD WORL","C",36403,12.6,"D",5,63]
[860,"I COME IN PEACE","D",36513,10.1,"D",4,40.4]
[793,"MR. MOM","D",36411,10.1,"D",6,60.599999999999994]
[24,"AMARCORD","A",36311,20.9,"D",5,104.5]
[438,"MERMAIDS","B",36463,16.5,"D",9,148.5]
[439,"SAMMY AND ROSIE GET LAID","B",36401,16.7,"D",1,16.7]
[787,"RETURN OF THE LIVING DEAD","D",36351,10.3,"D",10,103]
[738,"SCANNERS","C",36335,12.3,"D",7,86.100000000000009]
[838,"TAXI DRIVER","D",36386,10,"D",5,50]
[894,"MOBSTERS","D",36390,10.199999999999999,"D",9,91.8]
[433,"KINDERGARTEN COP","B",36504,16.100000000000001,"D",8,128.80000000000001]
[948,"CARNAL KNOWLEDGE","D",36409,10.6,"D",7,74.2]
[717,"ALL THE PRESIDENT'S MEN","C",36494,12.5,"N/D",8,100]
[6,"POSTMAN ALWAYS RINGS TWICE, TH","A",36267,20.9,"D",8,167.2]
[746,"HANDMAID'S TALE, THE","C",36522,12.3,"D",2,24.6]
[707,"CITY LIGHTS","C",36422,12.9,"D",5,64.5]
[964,"POLTERGEIST","D",36357,10.199999999999999,"D",3,30.599999999999998]
[846,"GAMBLER, THE","D",36392,10.7,"D",6,64.199999999999989]
[1015,"STAND BY ME","E",36251,8.9,"D",6,53.400000000000006]
[5,"INTERNAL AFFAIRS","A",36445,20,"D",7,140]
[699,"POLICE ACADEMY","C",36348,12.2,"N/D",0,0]
[130,"POINT BREAK","A",36403,20.7,"D",8,165.6]
[66,"GRADUATE, THE","A",36358,20.9,"D",10,209]
[422,"OPERATION PETTICOAT","B",36507,16.5,"D",2,33]
[583,"ROOM WITH A VIEW, A","C",36306,12.5,"D",10,125]
[95,"SHATTERED","A",36516,20.100000000000001,"D",4,80.400000000000006]
[586,"REDS","C",36287,12.9,"D",10,129]
[617,"YEAR OF LIVING DANGEROUSLY, TH","C",36279,12.4,"D",5,62]
[519,"DOMINICK AND EUGENE","C",36348,12.7,"D",2,25.4]
[837,"LOVE FIELD","D",36501,10.1,"D",0,0]
[931,"RETURN OF THE SECAUCUS SEVEN","D",36504,10.9,"D",7,76.3]
[427,"CHEECH AND CHONG'S - THE CORSI","B",36216,16.399999999999999,"D",10,164]
[782,"KIND HEARTS AND CORONETS","D",36342,10,"D",1,10]
[77,"SOUTH CENTRAL","A",36467,20.6,"D",1,20.6]
[981,"IRMA LA DOUCE","D",36516,10.8,"D",10,{"$f":"E323*G323","v":108}]
[612,"CHILD'S PLAY","C",36409,12.8,"D",5,64]
[667,"I'M GONNA GIT YOU SUCKA","C",36432,12.6,"D",1,12.6]
[663,"HIGH PLAINS DRIFTER","C",36418,12.2,"D",5,61]
[141,"NIGHTMARE ON ELM STREET 3, A -","A",36294,20.9,"N/D",8,167.2]
[54,"FRIDAY THE 13TH","A",36344,20.2,"D",1,20.2]
[941,"VERTIGO","D",36272,10.4,"D",2,20.8]
[494,"FANTASIA","B",36303,16.600000000000001,"D",6,99.600000000000009]
[934,"KUFFS","D",36289,10.1,"D",3,30.299999999999997]
[840,"HER ALIBI","D",36261,10.3,"D",2,20.6]
[146,"BICYCLE THIEF, THE","A",36428,20.8,"D",9,187.20000000000002]
[909,"TIN DRUM, THE","D",36243,10.5,"D",0,0]
[710,"REVERSAL OF FORTUNE","C",36411,12.4,"D",10,124]
[997,"SPACEBALLS","D",36457,10.8,"D",6,64.800000000000011]
[696,"SHANE","C",36510,12.7,"D",6,76.199999999999989]
[393,"PETER'S FRIENDS","B",36463,16.399999999999999,"D",2,32.799999999999997]
[123,"STAR TREK 3 - THE SEARCH FOR S","A",36518,20.3,"D",7,142.1]
[68,"FRIED GREEN TOMATOES","A",36500,20.5,"D",1,20.5]
[791,"DEATH WISH","D",36495,10.9,"D",2,21.8]
[71,"FLATLINERS","A",36337,20.7,"D",5,103.5]
[532,"HOME ALONE","C",36509,12.3,"D",2,24.6]
[926,"BIG SLEEP, THE","D",36838,10.1,"D",0,0]
[70,"LOLITA","A",36799,20.3,"D",7,142.1]
[669,"PEE-WEE'S BIG ADVENTURE","C",36553,12.7,"D",9,114.3]
[76,"FAT CITY","A",36864,20.9,"D",3,62.699999999999996]
[137,"ALL ABOUT EVE","A",36777,20.100000000000001,"D",7,140.70000000000002]
[492,"BROADCAST NEWS","B",36836,16,"D",5,80]
[864,"RUGGLES OF RED GAP","D",36828,10,"D",5,50]
[811,"PAINT YOUR WAGON","D",36643,10.7,"D",3,32.099999999999994]
[13,"ROCKY","A",36804,20.2,"D",9,181.79999999999998]
[17,"BEDAZZLED","A",36548,20.5,"D",6,123]
[868,"CANDYMAN","D",36856,10.3,"D",2,20.6]
[116,"BLACK ORPHEUS","A",36787,20.100000000000001,"D",1,20.100000000000001]
[111,"MY DINNER WITH ANDRE","A",36625,20.399999999999999,"D",10,204]
[850,"SILVER STREAK","D",36853,10.8,"N/D",10,108]
[571,"TREASURE OF THE SIERRA MADRE","C",36803,12.9,"D",0,0]
[41,"RAISIN IN THE SUN, A","A",36775,20.9,"D",8,167.2]
[520,"FRESH HORSES","C",36662,12.3,"D",7,86.100000000000009]
[694,"BORN IN EAST L.A.","C",36614,12.2,"D",10,122]
[923,"COCKTAIL","D",36679,10.6,"D",3,31.799999999999997]
[31,"MONA LISA","A",36879,20.8,"N/D",3,62.400000000000006]
[826,"BROADWAY DANNY ROSE","D",36640,10.6,"N/D",0,0]
[1005,"PEEPING TOM","E",36701,8,"D",3,24]
[476,"HONEY, I SHRUNK THE KIDS","B",36721,16.100000000000001,"D",3,48.300000000000004]
[619,"THREE AMIGOS!","C",36823,12.3,"D",10,123]
[979,"YANKEE DOODLE DANDY","D",36854,10.3,"N/D",7,72.100000000000009]
[461,"FORCE 10 FROM NAVARONE","B",36803,16.5,"N/D",3,49.5]
[552,"LAIR OF THE WHITE WORM, THE","C",36795,12.7,"D",3,38.099999999999994]
[489,"BAMBI","B",36703,16.3,"D",1,16.3]
[592,"SAY ANYTHING","C",36878,12.2,"D",1,12.2]
[588,"SHINING, THE","C",36703,12.6,"N/D",4,50.4]
[958,"DIE HARD 2","D",36777,10.4,"N/D",4,41.6]
[580,"HEAVEN CAN WAIT","C",36850,12.2,"D",1,12.2]
[149,"ROOTS - VOL. 1","A",36879,20.9,"D",3,62.699999999999996]
[912,"FANDANGO","D",36807,10.8,"D",4,43.2]
[109,"SIXTEEN CANDLES","A",36720,20.399999999999999,"N/D",10,204]
[27,"CHINATOWN","A",36589,20.5,"D",7,143.5]
[509,"BODY CHEMISTRY","C",36758,12.2,"D",9,109.8]
[508,"GANDHI","C",36640,12.1,"D",0,0]
[86,"BASIC INSTINCT","A",36732,20.6,"D",4,82.4]
[419,"MRS. SOFFEL","B",36553,16.2,"D",0,0]
[133,"BATMAN","A",36599,20.100000000000001,"D",8,160.80000000000001]
[921,"MEDITERRANEO","D",36760,10,"D",3,30]
[562,"DIRTY HARRY","C",36676,12.2,"D",9,109.8]
[709,"RE-ANIMATOR","C",36791,12.2,"N/D",3,{"$f":"E387*G387","v":36.599999999999994}]
[642,"ANOTHER 48 HRS.","C",36876,12.1,"D",2,24.2]
[32,"ALL DOGS GO TO HEAVEN","A",36786,20.8,"D",10,208]
[638,"AT PLAY IN THE FIELDS OF THE L","C",36587,12,"D",1,12]
[482,"FRIENDLY PERSUASION","B",36736,16.600000000000001,"D",2,33.200000000000003]
[107,"AMERICAN NINJA 2 - THE CONFRON","A",36591,20.7,"D",6,124.19999999999999]
[156,"CLASS OF 1984","A",36884,20.399999999999999,"D",6,122.39999999999999]
[395,"DICK TRACY","B",36814,16.7,"D",8,133.6]
[910,"BLOODSPORT","D",36845,10.8,"D",9,97.2]
[835,"CONVERSATION, THE","D",36720,10.8,"N/D",5,54]
[788,"CRIMES AND MISDEMEANORS","D",36716,10.7,"D",0,0]
[103,"CADDYSHACK","A",36637,20.6,"D",0,0]
[761,"HAROLD AND MAUDE","D",36646,10.3,"D",5,51.5]
[83,"PRIDE AND PREJUDICE","A",36884,20.9,"D",5,104.5]
[513,"LION IN WINTER, THE","C",36868,12,"D",6,72]
[691,"LORENZO'S OIL","C",36825,12.5,"D",5,62.5]
[459,"JENNIFER 8","B",36602,16.899999999999999,"D",1,16.899999999999999]
[402,"ROSE , THE","B",36780,16.7,"D",5,83.5]
[85,"DOORS, THE","A",36773,20.5,"D",3,61.5]
[615,"SALEM'S LOT - THE MOVIE","C",36786,12.6,"D",10,126]
[879,"WHO'S AFRAID OF VIRGINIA WOOLF","D",36700,10.4,"N/D",5,52]
[690,"BARBARELLA","C",36708,12.6,"N/D",8,100.8]
[132,"TAKE THE MONEY AND RUN","A",36846,20.2,"D",6,121.19999999999999]
[537,"SUSPICION","C",36861,12.2,"D",4,48.8]
[411,"COMING HOME","B",36859,16.8,"D",10,168]
[933,"DIRTY DOZEN, THE","D",36634,10.5,"D",10,105]
[412,"FATHER OF THE BRIDE","B",36591,16.2,"D",4,64.8]
[631,"LAST UNICORN, THE","C",36815,12.2,"D",7,85.399999999999991]
[927,"DIRTY ROTTEN SCOUNDRELS","D",36574,10.6,"D",8,84.8]
[714,"DOG DAY AFTERNOON","C",36751,12.2,"D",1,12.2]
[729,"STAR WARS","C",36675,12.3,"D",8,98.4]
[486,"NIGHT OF THE LIVING DEAD","B",36639,16.100000000000001,"D",10,161]
[632,"MAN IN THE MOON, THE","C",36872,12.1,"D",6,72.599999999999994]
[558,"SEVEN SAMURAI, THE","C",36593,12.4,"D",0,0]
[506,"ORDINARY PEOPLE","C",36678,12.8,"D",2,25.6]
[444,"REPO MAN","B",36611,16.7,"D",10,167]
[55,"REVENGE OF THE NERDS","A",36865,20,"D",10,200]
[527,"NIGHTMARE ON ELM STREET 4, A -","C",36564,12.2,"N/D",2,24.4]
[967,"FRENCH CONNECTION, THE","D",36859,10.4,"D",8,83.2]
[90,"GOODFELLAS","A",36689,20,"D",10,200]
[974,"GUESS WHO'S COMING TO DINNER","D",36727,10,"D",4,40]
[106,"FIREFOX","A",36818,20.2,"D",4,80.8]
[743,"JUICE","C",36857,12.3,"D",5,61.5]
[97,"BIRD ON A WIRE","A",36823,20.100000000000001,"D",8,160.80000000000001]
[662,"LAST DETAIL, THE","C",36760,12,"D",5,60]
[988,"Z","D",36766,10.199999999999999,"D",5,51]
[932,"RETURN OF MARTIN GUERRE, THE","D",36615,10.5,"D",0,0]
[815,"HELLRAISER","D",36650,10.7,"D",7,74.899999999999991]
[982,"MEDICINE MAN","D",36705,10.7,"D",7,74.899999999999991]
[723,"AMERICAN GRAFFITI","C",36693,12.1,"D",1,12.1]
[1009,"BANK DICK, THE","E",36613,8.6999999999999993,"D",3,26.099999999999998]
[821,"RESCUERS, THE","D",36545,10,"D",6,60]
[556,"EATING RAOUL","C",36722,12.6,"D",9,113.39999999999999]
[523,"WOMEN ON THE VERGE OF A NERVOU","C",36690,12.7,"D",2,25.4]
[529,"GRAND CANYON","C",36789,12.2,"D",5,61]
[515,"LA BAMBA","C",36582,12.9,"D",7,90.3]
[483,"LAWRENCE OF ARABIA","B",36816,16.100000000000001,"D",3,48.300000000000004]
[978,"DECEIVED","D",36837,10.6,"D",8,84.8]
[535,"TERMS OF ENDEARMENT","C",36749,12.6,"D",2,25.2]
[869,"FRIDAY THE 13TH, PART 3","D",36629,10.9,"D",5,54.5]
[785,"MANON OF THE SPRING","D",36651,10.6,"D",3,31.799999999999997]
[118,"SWING KIDS","A",36573,20.8,"D",6,124.80000000000001]
[127,"HIGH NOON","A",36601,20.100000000000001,"D",5,100.5]
[505,"MAN FOR ALL SEASONS, A","C",36764,12.3,"D",5,61.5]
[100,"GRAND ILLUSION","A",36644,20.5,"D",4,{"$f":"E451*G451","v":82}]
[795,"ST. ELMO'S FIRE","D",36810,10.4,"D",9,93.600000000000009]
[517,"SUNSET BOULEVARD","C",36845,12.1,"D",9,108.89999999999999]
[15,"BLACK ROBE","A",36540,20,"D",7,140]
[863,"HERO","D",36880,10.4,"D",2,20.8]
[557,"DIE HARD","C",36767,12.1,"D",8,96.8]
[564,"RUTHLESS PEOPLE","C",36580,12.7,"D",3,38.099999999999994]
[666,"CREEPSHOW","C",36882,12.2,"D",2,24.4]
[916,"MY COUSIN VINNY","D",36775,10.199999999999999,"D",6,61.199999999999996]
[900,"TEN COMMANDMENTS, THE","D",36630,10.199999999999999,"D",7,71.399999999999991]
[713,"LITTLE MAN TATE","C",36554,12.4,"D",3,37.200000000000003]
[695,"TOTAL RECALL","C",36854,12.4,"D",10,124]
[884,"DOCTOR, THE","D",36564,10.4,"D",6,62.400000000000006]
[599,"HONEYMOON IN VEGAS","C",36578,12.4,"D",8,99.2]
[67,"FINAL ANALYSIS","A",36701,20.399999999999999,"D",3,61.199999999999996]
[922,"FIELD OF DREAMS","D",36856,10.6,"D",8,84.8]
[553,"STRIPES","C",36657,12.5,"D",0,0]
[973,"CROCODILE DUNDEE 2","D",36835,10,"D",0,0]
[392,"MALCOLM X","B",36789,16.100000000000001,"D",6,96.600000000000009]
[991,"SCHOOL TIES","D",36812,10,"D",2,20]
[809,"CROSSING DELANCEY","D",36729,10.1,"D",0,0]
[944,"SEA OF LOVE","D",36556,10.199999999999999,"D",9,91.8]
[114,"AMADEUS","A",36879,20.3,"D",2,40.6]
[69,"SILENCE OF THE LAMBS, THE","A",36539,20.3,"D",3,60.900000000000006]
[683,"LETHAL WEAPON 3","C",36737,12.7,"D",5,63.5]
[763,"COMMITMENTS, THE","D",36695,10.199999999999999,"D",5,51]
[441,"HIGH ROAD TO CHINA","B",36862,16.600000000000001,"D",3,49.800000000000004]
[928,"MAJOR LEAGUE","D",36874,10.8,"D",0,0]
[776,"RISKY BUSINESS","D",36741,10.8,"D",6,64.800000000000011]
[990,"ANGEL HEART","D",36713,10.9,"D",6,65.400000000000006]
[480,"FULL METAL JACKET","B",36789,16.899999999999999,"D",7,118.29999999999998]
[764,"NORMA RAE","D",36912,10.4,"D",8,83.2]
[510,"ROXANNE","C",37193,12.3,"D",7,86.100000000000009]
[899,"SEVENTH SIGN, THE","D",37220,10.3,"D",7,72.100000000000009]
[893,"LAVENDER HILL MOB, THE","D",37241,10.3,"D",8,82.4]
[818,"JUMPIN' JACK FLASH","D",37037,10.8,"D",6,64.800000000000011]
[463,"WALL STREET","B",37087,16.899999999999999,"D",6,101.39999999999999]
[20,"MAGNIFICENT SEVEN","A",37070,20.9,"D",5,104.5]
[458,"GOTHIC","B",37175,16.8,"D",7,117.60000000000001]
[88,"GUNS OF NAVARONE","A",36950,20.2,"D",4,80.8]
[834,"TANGO & CASH","D",37094,10.4,"D",4,41.6]
[736,"CATCH-22","C",37251,12.5,"D",0,0]
[602,"SNOW WHITE AND THE SEVEN DWARF","C",37117,12.9,"D",3,38.700000000000003]
[1000,"MARKED FOR DEATH","D",37015,10,"D",5,50]
[575,"KEY LARGO","C",37169,12.7,"D",4,50.8]
[445,"MARATHON MAN","B",37059,16.7,"D",7,116.89999999999999]
[526,"TO KILL A MOCKINGBIRD","C",36985,12.3,"D",9,110.7]
[938,"DUCK SOUP","D",36944,10.9,"D",6,65.400000000000006]
[531,"STEPFATHER, THE","C",36999,12.3,"D",8,98.4]
[609,"BARFLY","C",36915,12,"D",0,0]
[34,"DREAM TEAM, THE","A",37139,20.5,"D",1,20.5]
[518,"EXCALIBUR","C",36919,12,"D",7,84]
[1007,"SHOCK TO THE SYSTEM, A","E",37099,8.1999999999999993,"D",3,24.599999999999998]
[817,"INVASION OF THE BODY SNATCHERS","D",36976,10.5,"D",8,84]
[797,"KING OF COMEDY, THE","D",37047,10.8,"D",1,10.8]
[410,"BILL & TED'S BOGUS JOURNEY","B",37145,16.7,"D",0,0]
[903,"DRUGSTORE COWBOY","D",37133,10,"D",4,40]
[1008,"FISH CALLED WANDA, A","E",37168,8.1999999999999993,"D",0,0]
[832,"DOUBLE IMPACT","D",37192,10,"D",6,60]
[498,"FLIGHT OF THE INTRUDER","B",37223,16.100000000000001,"D",3,48.300000000000004]
[677,"LOVER, THE","C",37221,12.8,"D",2,25.6]
[33,"TWIN PEAKS","A",37233,20.6,"D",2,41.2]
[676,"COLOR OF MONEY, THE","C",37136,12.2,"D",7,85.399999999999991]
[37,"COCOON","A",37163,20.8,"D",2,41.6]
[455,"TESS","B",37071,16.899999999999999,"D",0,{"$f":"E515*G515","v":0}]
[673,"BEASTMASTER, THE","C",37241,12.4,"D",0,0]
[755,"SILENT RUNNING","D",37206,10.7,"D",10,107]
[672,"PET SEMATARY","C",36987,12.3,"D",8,98.4]
[1004,"JUDGEMENT AT NUREMBURG","E",37080,8.4,"D",7,58.800000000000004]
[856,"EAST OF EDEN","D",37208,10.199999999999999,"D",10,102]
[417,"FIVE HEARTBEATS, THE","B",37233,16.2,"D",6,97.199999999999989]
[155,"RAISING ARIZONA","A",37109,20.7,"D",10,207]
[91,"SINGLE WHITE FEMALE","A",37031,20,"D",10,200]
[457,"RED RIVER","B",37066,16.2,"D",6,97.199999999999989]
[759,"FRANCES","D",37174,10.7,"D",3,32.099999999999994]
[544,"BLADE RUNNER","C",37120,12.5,"D",4,50]
[516,"EVERYBODY'S FINE (STANNO TUTTI","C",37041,12.2,"D",9,109.8]
[569,"PURE LUCK","C",36972,12.3,"D",7,86.100000000000009]
[828,"GIRLS JUST WANT TO HAVE FUN","D",37110,10.1,"D",10,101]
[9,"ON GOLDEN POND","A",36909,20.9,"D",9,188.1]
[996,"FLIRTING","D",36984,10.3,"D",8,82.4]
[63,"FAST TIMES AT RIDGEMONT HIGH","A",37193,20.399999999999999,"D",3,61.199999999999996]
[593,"THIS IS SPINAL TAP","C",37249,12.4,"D",10,124]
[929,"SPARTACUS","D",37010,10.4,"D",6,62.400000000000006]
[414,"ANNIE HALL","B",37033,16.3,"D",5,81.5]
[491,"AMERICAN TAIL, AN","B",37134,16.3,"D",9,146.70000000000002]
[466,"DEEP, THE","B",37108,16.8,"D",2,33.6]
[836,"RAGTIME","D",36960,10.7,"D",9,96.3]
[635,"CARRIE","C",37137,12.6,"D",10,126]
[804,"THIRD MAN, THE","D",37077,10.3,"D",7,72.100000000000009]
[452,"BOB ROBERTS","B",37240,16.2,"D",4,64.8]
[914,"TWELVE CHAIRS, THE","D",37207,10.1,"D",4,40.4]
[595,"TWO WOMEN","C",37111,12.2,"D",6,73.199999999999989]
[971,"BLUE LAGOON, THE","D",37054,10.6,"D",6,63.599999999999994]
[789,"PILLOW TALK","D",37051,10.7,"D",5,53.5]
[830,"MONTY PYTHON'S THE MEANING OF","D",37118,10,"D",8,80]
[582,"MAMBO KINGS, THE","C",36922,12.4,"D",7,86.8]
[805,"PARIS, TEXAS","D",37001,10.199999999999999,"D",0,0]
[426,"BLACK RAIN","B",36896,16.600000000000001,"D",7,116.20000000000002]
[807,"JAGGED EDGE","D",37239,10.8,"D",6,64.800000000000011]
[613,"MISSING","C",37002,12.9,"D",9,116.10000000000001]
[578,"KING OF NEW YORK","C",37224,12.5,"D",7,87.5]
[488,"BLUE VELVET","B",37094,16.2,"D",6,97.199999999999989]
[421,"WORKING GIRL","B",36898,16.399999999999999,"D",10,164]
[474,"THREE MUSKETEERS, THE","B",37235,16.100000000000001,"D",10,161]
[447,"BURGLAR","B",37126,16.100000000000001,"D",2,32.200000000000003]
[604,"BACK TO THE FUTURE","C",36902,12.6,"D",8,100.8]
[607,"SOMETHING WILD","C",37046,12.5,"D",1,12.5]
[23,"TREMORS","A",37151,20.3,"D",0,0]
[883,"WINCHESTER '73","D",36943,10.5,"D",2,21]
[436,"GORILLAS IN THE MIST","B",37164,16.3,"D",10,163]
[744,"MAN WHO WOULD BE KING, THE","C",36993,12.2,"D",4,48.8]
[546,"ELEPHANT MAN, THE","C",37141,12.2,"D",5,61]
[49,"BRIAN'S SONG","A",37126,20,"D",10,200]
[985,"DUNE","D",36910,10.6,"D",6,63.599999999999994]
[144,"SWEPT AWAY","A",36925,20.9,"D",4,83.6]
[872,"DOCTOR ZHIVAGO","D",36906,10.4,"D",4,41.6]
[579,"CHILDREN OF A LESSER GOD","C",37173,12.6,"D",6,75.599999999999994]
[625,"INDIANA JONES AND THE LAST CRU","C",36931,12.6,"D",2,25.2]
[501,"FIVE EASY PIECES","C",37172,12.9,"D",6,77.400000000000006]
[145,"MEET ME IN ST. LOUIS","A",37028,20.9,"D",0,0]
[549,"FANNY AND ALEXANDER","C",37008,12.3,"D",7,86.100000000000009]
[14,"COCOON 2 - THE RETURN","A",36995,20.100000000000001,"D",4,80.400000000000006]
[600,"FEMME NIKITA, LA","C",37001,12.5,"D",9,112.5]
[890,"RESERVOIR DOGS","D",36969,10.3,"D",3,30.900000000000002]
[44,"SALOME'S LAST DANCE","A",36976,20.5,"D",9,184.5]
[400,"BIBLE, THE - IN THE BEGINNING","B",37247,16.399999999999999,"D",1,16.399999999999999]
[467,"MC CABE AND MRS. MILLER","B",37213,16.399999999999999,"D",5,82]
[591,"POLICE ACADEMY 4 - CITIZENS ON","C",37243,12.8,"D",3,{"$f":"E579*G579","v":38.400000000000006}]
[753,"HUNCHBACK OF NOTRE DAME, THE","D",37019,10.4,"D",0,0]
[700,"PAPILLON","C",37080,12.6,"D",8,100.8]
[396,"MO' BETTER BLUES","B",37164,16.600000000000001,"D",7,116.20000000000002]
[715,"IMITATION OF LIFE","C",36952,12,"D",1,12]
[7,"SOAPDISH","A",37178,20.5,"D",7,143.5]
[847,"LABYRINTH","D",37090,10.3,"D",0,0]
[760,"MISFITS, THE","D",37121,10,"D",2,20]
[12,"LOST BOYS, THE","A",36922,20.100000000000001,"D",10,201]
[105,"BREAKING AWAY","A",37047,20.7,"D",10,207]
[443,"ALICE DOESN'T LIVE HERE ANYMOR","B",37142,16.7,"D",9,150.29999999999998]
[777,"UNBEARABLE LIGHTNESS OF BEING,","D",37064,10.199999999999999,"D",6,61.199999999999996]
[102,"BEETLEJUICE","A",37113,20.8,"D",10,208]
[908,"LAND BEFORE TIME, THE","D",36926,10.9,"D",1,10.9]
[959,"BODY PARTS","D",36988,10.199999999999999,"D",3,30.599999999999998]
[800,"MOSQUITO COAST, THE","D",37177,10.4,"D",8,83.2]
[994,"CLOCKWORK ORANGE, A","D",36960,10.7,"D",0,0]
[953,"SCARFACE","D",37033,10.4,"D",0,0]
[89,"PLACES IN THE HEART","A",37170,20.9,"D",8,167.2]
[628,"STAR TREK 5 - THE FINAL FRONTI","C",36979,12.8,"D",2,25.6]
[895,"ENTER THE DRAGON","D",36954,10,"D",2,20]
[778,"RETURN OF THE JEDI","D",37038,10,"D",2,20]
[538,"POLICE ACADEMY 3 - BACK IN TRA","C",36928,12.2,"D",1,12.2]
[646,"MISTER ROBERTS","C",37147,12.2,"D",1,12.2]
[126,"MY LEFT FOOT","A",37085,20.100000000000001,"D",0,0]
[418,"DEAD AGAIN","B",37034,16.7,"D",8,133.6]
[820,"GODFATHER, THE","D",37093,10.199999999999999,"D",4,40.799999999999997]
[784,"SPLASH","D",37204,10.6,"D",6,63.599999999999994]
[485,"MOONRAKER","B",37117,16.600000000000001,"D",5,83]
[647,"SLEEPER","C",36939,12.7,"D",10,127]
[62,"LADY SINGS THE BLUES","A",37226,20.2,"D",1,20.2]
[479,"KING KONG (1977)","B",37090,16.8,"D",7,117.60000000000001]
[567,"DARKMAN","C",37123,12.3,"D",10,123]
[401,"MASK","B",37034,16.5,"D",1,16.5]
[939,"NEVER SAY NEVER AGAIN","D",37088,10.6,"D",0,0]
[597,"STAR TREK 1 - THE MOTION PICTU","C",37154,12,"D",7,84]
[930,"GLENGARRY GLEN ROSS","D",36910,10.5,"D",0,0]
[639,"THELMA & LOUISE","C",36979,12.2,"D",7,85.399999999999991]
[152,"LONGEST YARD, THE","A",37251,20.9,"D",9,188.1]
[946,"ROCKY 5","D",36899,10.7,"D",7,74.899999999999991]
[645,"LAST TANGO IN PARIS","C",37154,12.3,"D",8,98.4]
[866,"SHE'S GOTTA HAVE IT","D",37214,10.5,"D",8,84]
[545,"ROCKY HORROR PICTURE SHOW, THE","C",36922,12.2,"D",7,85.399999999999991]
[983,"NIGHT SHIFT","D",37021,10.6,"D",1,10.6]
[464,"LONGEST DAY, THE","B",37205,16.2,"D",0,0]
[648,"AUNTIE MAME","C",37138,12.8,"D",3,38.400000000000006]
[47,"VICTOR / VICTORIA","A",37158,20.9,"D",8,167.2]
[955,"GODFATHER PART 3, THE","D",37141,10.3,"D",1,10.3]
[687,"DEER HUNTER, THE","C",37149,12.7,"D",7,88.899999999999991]
[594,"PHANTASM 2","C",36977,12.9,"D",3,38.700000000000003]
[576,"MANHATTAN","C",37128,12.6,"D",2,25.2]
[56,"GREAT ESCAPE, THE","A",36923,20.399999999999999,"D",7,142.79999999999998]
[142,"INNERSPACE","A",36938,20.100000000000001,"D",4,80.400000000000006]
[528,"SISTER ACT","C",37165,12.4,"D",4,49.6]
[913,"BOOMERANG","D",37228,10.8,"D",6,64.800000000000011]
[885,"BAD AND THE BEAUTIFUL, THE","D",37097,10.4,"D",6,62.400000000000006]
[906,"HOFFA","D",37192,10.8,"D",3,32.400000000000006]
[911,"PHILADELPHIA STORY, THE","D",37088,10.1,"D",5,50.5]
[104,"FLY, THE","A",37140,20.399999999999999,"D",6,122.39999999999999]
[748,"NUTS","C",37011,12.7,"D",5,63.5]
[589,"MASQUERADE","C",37137,12.4,"D",2,24.8]
[769,"ROBIN HOOD - PRINCE OF THIEVES","D",37143,10.7,"D",3,32.099999999999994]
[849,"QUEEN'S LOGIC","D",37254,10.199999999999999,"D",0,0]
[704,"RIVER RUNS THROUGH IT, A","C",37144,12.3,"D",5,61.5]
[808,"CLARA'S HEART","D",37011,10.4,"D",5,{"$f":"E643*G643","v":52}]
[431,"EYE OF THE NEEDLE","B",37141,16.399999999999999,"D",9,147.6]
[665,"BREATHLESS","C",37157,12.9,"D",0,0]
[415,"THREE MEN AND A LITTLE LADY","B",37136,16.2,"D",4,64.8]
[843,"ALADDIN","D",37254,10.7,"D",0,0]
[692,"CROCODILE DUNDEE","C",36970,12.1,"D",9,108.89999999999999]
[993,"STILL SMOKIN'","D",37015,10.7,"D",1,10.7]
[620,"DESPERATE HOURS","C",37171,12.1,"D",4,48.4]
[472,"HOT SHOTS","B",37013,16,"D",3,48]
[138,"SCHOOL DAZE","A",37231,20.100000000000001,"D",10,201]
[682,"WHEN HARRY MET SALLY...","C",36960,12,"D",6,72]
[803,"APACHE","D",37232,10.6,"D",9,95.399999999999991]
[716,"DESPERATELY SEEKING SUSAN","C",36903,12.5,"D",8,100]
[507,"JAZZ SINGER, THE","C",37201,12,"D",6,72]
[430,"MOONSTRUCK","B",37093,16.7,"D",9,150.29999999999998]
[889,"SNEAKERS","D",37001,10.1,"D",9,90.899999999999991]
[53,"INNOCENT MAN, AN","A",37109,20.399999999999999,"D",1,20.399999999999999]
[765,"ROCKY 2","D",37132,10.5,"D",4,42]
[641,"WHITE MEN CAN'T JUMP","C",37377,12.6,"D",4,50.4]
[1,"DELIVERANCE","A",37473,20.7,"D",0,0]
[685,"FRIDAY THE 13TH, PART 7 - THE","C",37489,12.2,"D",5,61]
[61,"SEVEN BEAUTIES","A",37459,20.9,"D",0,0]
[394,"BUTCH CASSIDY AND THE SUNDANCE","B",37399,16.5,"D",8,132]
[772,"AU REVOIR LES ENFANTS","D",37458,10.1,"D",2,20.2]
[633,"LOVE STORY","C",37474,12.8,"D",4,51.2]
[10,"BEAR, THE","A",37450,20.2,"D",0,0]
[139,"THUNDER ROAD","A",37377,20.100000000000001,"D",5,100.5]
[1017,"BACKDRAFT","E",37412,8.6,"D",5,43]
[693,"STAND AND DELIVER","C",37319,12.5,"D",5,62.5]
[705,"RIVER, THE","C",37284,12.2,"D",7,85.399999999999991]
[51,"OUTSIDERS, THE","A",37307,20,"D",8,160]
[2,"AL CAPONE","A",37486,20.6,"D",7,144.20000000000002]
[851,"SALVADOR","D",37434,10.6,"D",4,42.4]
[664,"MIDNIGHT EXPRESS","C",37281,12,"D",3,36]
[587,"BEAUTY AND THE BEAST (1946 BW)","C",37304,12.3,"D",4,49.2]
[503,"CHAPLIN","C",37434,12.5,"D",8,100]
[590,"APOCALYPSE NOW","C",37275,12.1,"D",5,60.5]
[65,"RUNNING MAN, THE","A",37292,20.5,"D",2,41]
[596,"DAYS OF THUNDER","C",37293,12.3,"D",7,86.100000000000009]
[45,"OUTLAW JOSEY WALES, THE","A",37501,20.3,"D",2,40.6]
[799,"NAKED GUN, THE - FROM THE FILE","D",37338,10.6,"D",3,31.799999999999997]
[125,"ENFANTS DU PARADIS, LES CHILDR","A",37444,20.8,"D",3,62.400000000000006]
[437,"BASIC INSTINCT","B",37371,16.100000000000001,"D",3,48.300000000000004]
[495,"BIG EASY, THE","B",37379,16.3,"D",4,65.2]
[629,"CAPTAIN BLOOD","C",37338,12.2,"D",8,97.6]
[48,"CUJO","A",37367,20,"D",8,160]
[46,"THREE DAYS OF THE CONDOR","A",37421,20.6,"D",2,41.2]
[702,"MANCHURIAN CANDIDATE, THE","C",37500,12.1,"N/D",6,72.599999999999994]
[861,"COLOR PURPLE, THE","D",37518,10.6,"D",4,42.4]
[473,"GONE WITH THE WIND","B",37470,16.399999999999999,"D",5,82]
[940,"EVIL DEAD 2, THE","D",37482,10.6,"D",2,21.2]
[831,"HISTORY OF THE WORLD - PART 1","D",37313,10,"D",5,50]
[956,"QUEST FOR FIRE","D",37292,10.7,"D",1,10.7]
[688,"WILD STRAWBERRIES","C",37381,12.7,"D",8,101.6]
[825,"MIDNIGHT RUN","D",37343,10.1,"D",5,50.5]
[917,"TO HAVE AND HAVE NOT","D",37389,10.7,"D",10,107]
[117,"HALLOWEEN","A",37366,20.399999999999999,"D",7,142.79999999999998]
[896,"LIVE AND LET DIE","D",37476,10.8,"D",9,97.2]
[969,"PASSENGER 57","D",37312,10.6,"D",4,42.4]
[566,"STUNTMAN, THE","C",37318,12.3,"D",1,12.3]
[124,"OLIVER","A",37365,20.8,"D",8,166.4]
[490,"MORNING AFTER, THE","B",37382,16.899999999999999,"D",0,0]
[839,"CAPE FEAR (1961 - GREOGORY PEC","D",37384,10,"D",1,10]
[157,"L'ATALANTE","A",37412,20.5,"D",2,41]
[887,"BACK TO THE FUTURE 3","D",37448,10.3,"D",4,{"$f":"E707*G707","v":41.2}]
[712,"SUMMER SCHOOL","C",37400,12.1,"D",6,72.599999999999994]
[649,"EVERY WHICH WAY BUT LOOSE","C",37349,12.5,"D",8,100]
[871,"LOCAL HERO","D",37313,10.1,"D",10,101]
[877,"KING KONG (1933)","D",37435,10.3,"D",9,92.7]
[60,"ONCE UPON A TIME IN THE WEST","A",37491,20.100000000000001,"D",2,40.200000000000003]
[767,"PACIFIC HEIGHTS","D",37310,10.6,"D",5,53]
[524,"SARAFINA!","C",37342,12.8,"D",6,76.800000000000011]
[697,"EMERALD FOREST, THE","C",37477,12.6,"D",6,75.599999999999994]
[28,"SCENT OF A WOMAN","A",37375,20.8,"D",3,62.400000000000006]
[80,"SEX, LIES AND VIDEOTAPE","A",37314,20.8,"D",1,20.8]
[722,"AND JUSTICE FOR ALL","C",37366,12.2,"D",9,109.8]
[935,"ACCUSED, THE","D",37314,10.4,"D",5,52]
[407,"STAR TREK 6 - THE UNDISCOVERED","B",37316,16.600000000000001,"D",9,149.4]
[424,"BEING THERE","B",37376,16.600000000000001,"D",6,99.600000000000009]
[511,"DIAMONDS ARE FOREVER","C",37293,12.8,"D",7,89.600000000000009]
[487,"PUMP UP THE VOLUME","B",37384,16.8,"D",4,67.2]
[905,"EASY RIDER","D",37329,10.7,"D",6,64.199999999999989]
[880,"THROW MOMMA FROM THE TRAIN","D",37423,10.5,"N/D",3,31.5]
[947,"BREAKFAST CLUB, THE","D",37507,10.7,"D",4,42.8]
[399,"NETWORK","B",37504,16.899999999999999,"D",8,135.19999999999999]
[972,"MY MAN GODFREY","D",37289,10.4,"D",3,31.200000000000003]
[475,"MAGIC","B",37260,16.600000000000001,"D",5,83]
[751,"RUMBLE FISH","D",37431,10.5,"D",5,52.5]
[521,"POLTERGEIST 3","C",37318,12.7,"D",4,50.8]
[781,"NAKED GUN 2 1/2, THE  - THE SM","D",37397,10.1,"D",9,90.899999999999991]
[976,"UNLAWFUL ENTRY","D",37518,10.5,"D",0,0]
[454,"DOC HOLLYWOOD","B",37423,16.899999999999999,"D",7,118.29999999999998]
[99,"PRIZZI'S HONOR","A",37439,20.2,"D",7,141.4]
[740,"CAGE AUX FOLLES, LA","C",37383,12.5,"D",10,125]
[733,"BUGSY","C",37476,12.7,"D",1,12.7]
[496,"RAMBLING ROSE","B",37520,16.5,"D",4,66]
[428,"LONESOME DOVE","B",37385,16.8,"D",6,100.80000000000001]
[134,"JULES AND JIM(JULES ET JIM)","A",37510,20.100000000000001,"D",5,100.5]
[918,"POLTERGEIST 2 - THE OTHER SIDE","D",37347,10.3,"D",10,103]
[943,"HUNT FOR RED OCTOBER, THE","D",37317,10.9,"N/D",9,98.100000000000009]
[728,"ONE FLEW OVER THE CUCKOO'S NES","C",37416,12.4,"D",3,37.200000000000003]
[140,"STAR TREK 2 - THE WRATH OF KHA","A",37325,20.399999999999999,"D",0,0]
[81,"RAMBO - FIRST BLOOD PART 2","A",37368,20.9,"D",2,41.8]
[73,"TOOTSIE","A",37503,20.399999999999999,"D",4,81.599999999999994]
[987,"GLEAMING THE CUBE","D",37288,10.1,"D",6,60.599999999999994]
[651,"WEEKEND AT BERNIE'S","C",37420,12.2,"D",3,36.599999999999994]
[741,"CINEMA PARADISO","C",37269,12.7,"D",10,127]
[977,"MALTESE FALCON, THE","D",37380,10.3,"D",1,10.3]
[842,"ADVENTURES OF ROBIN HOOD, THE","D",37331,10.3,"D",10,103]
[565,"TEENAGE MUTANT NINJA TURTLES -","C",37512,12.6,"D",3,37.799999999999997]
[425,"LOOK WHO'S TALKING TOO","B",37400,16.5,"D",3,49.5]
[951,"HOUSE OF GAMES","D",37290,10.8,"D",5,54]
[398,"CADENCE","B",37459,16.3,"D",9,146.70000000000002]
[653,"BLUES BROTHERS, THE","C",37496,12.1,"D",10,121]
[16,"PREDATOR","A",37327,20,"D",10,200]
[136,"DIGGSTOWN","A",37286,20.8,"D",6,124.80000000000001]
[18,"NEW JACK CITY","A",37274,20.6,"D",3,61.800000000000004]
[823,"KARATE KID PART 2, THE","D",37454,10.9,"D",6,65.400000000000006]
[413,"SHORT CIRCUIT","B",37403,16.600000000000001,"D",10,166]
[898,"NORTH BY NORTHWEST","D",37294,10.199999999999999,"D",10,102]
[153,"PLATOON","A",37362,20.3,"D",4,81.2]
[551,"SHIRLEY VALENTINE","C",37402,12.3,"D",1,12.3]
[621,"SAVANNAH SMILES","C",37452,12.5,"D",10,125]
[952,"STREETCAR NAMED DESIRE, A","D",37411,10.3,"D",1,10.3]
[623,"MY FAIR LADY","C",37276,12.1,"D",9,108.89999999999999]
[771,"EMPIRE STRIKES BACK, THE","D",37512,10.7,"D",8,85.6]
[919,"LONG HOT SUMMER, THE","D",37370,10.1,"D",10,101]
[493,"CABARET","B",37457,16,"D",10,160]
[448,"FISHER KING, THE","B",37358,16.600000000000001,"D",5,{"$f":"E771*G771","v":83}]
[980,"PLAY IT AGAIN, SAM","D",37349,10.7,"D",3,32.099999999999994]
[920,"PERFORMANCE","D",37308,10.5,"D",0,0]
[462,"YOUNG FRANKENSTEIN","B",37370,16.7,"D",1,16.7]
[739,"PSYCHO","C",37317,12.9,"D",3,38.700000000000003]
[4,"HOW THE WEST WAS WON","A",37276,20.6,"D",3,61.800000000000004]
[874,"DIARY OF ANNE FRANK, THE","D",37457,10.3,"D",4,41.2]
[128,"STAR 80","A",37349,20,"D",7,140]
[408,"CAUGHT","B",37388,16.7,"D",4,66.8]
[858,"COTTON CLUB, THE","D",37497,10.3,"D",0,0]
[614,"RAIN MAN","C",37401,12.2,"D",5,61]
[534,"UNFORGIVEN","C",37484,12,"D",9,108]
[802,"NATIONAL LAMPOON'S CHRISTMAS V","D",37438,10.7,"D",4,42.8]
[74,"CAINE MUTINY, THE","A",37420,20.399999999999999,"D",5,102]
[610,"AFTER THE THIN MAN","C",37447,12.4,"D",4,49.6]
[1016,"BREAKER MORANT","E",37360,8.6,"D",0,0]
[624,"MY LIFE AS A DOG","C",37415,12.3,"D",8,98.4]

{"sheet":"Mac04 con Otros datos","index":7,"n_rows":5,"n_cols":8,"rows_kept":5,"cut":false,"hidden":false,"merged":[]}
["CODIGO","NOMBREPELI","TIPO","FECHAING","PRECIO","ESTADO","CANTIDAD","TOTAL"]
[null,null,"A",null,null,null,null,">80"]
[null,null,"A",null,null,null,null,"<50"]
[null,null,"C",null,null,null,null,">80"]
[null,null,"C",null,null,null,null,"<50"]

{"sheet":"Tempo","index":8,"n_rows":86,"n_cols":4,"rows_kept":86,"cut":false,"hidden":false,"merged":[]}
[]
[null,"Etiquetas de fila","Suma de CANTIDAD","Suma de MONTO TOTAL"]
[null,"Caminos del Inca",694,791276.8]
[null,"Efectivo",66,79368]
[null,"T. Cred. E Wong",53,68808]
[null,"T. Cred. Plaza Vea",19,17640]
[null,"T. Cred. Ripley",30,26790]
[null,"T. Cred. Saga Falabella",30,26341.8]
[null,"T.Cred. Metro",33,49008]
[null,"Tcred. Ahorros Bco. Conti",50,55386.400000000001]
[null,"Tcred. Ahorros Bco. Wiese",50,77327]
[null,"Tcred. Am.Exp Bco. Conti",64,90655.4]
[null,"Tcred. Am.Exp Bco. Cred",78,76896]
[null,"Tcred. Am.Exp Bco. Interbanc",28,11874.8]
[null,"Tcred. Am.Exp Bco. Wiese",20,12012]
[null,"Tcred. Credimas Bco. Cred",86,79368]
[null,"Tcred. Dorada Bco. Interbanc",17,18149.400000000001]
[null,"Tcred. Dorada XP Bco. Cred",17,15223]
[null,"Tcred. Personal Bco. Wiese",53,86429]
[null,"Comercial Arenales",692,598767.5]
[null,"Efectivo",55,23015.1]
[null,"T. Cred. E Wong",42,44838]
[null,"T. Cred. Plaza Vea",20,12256]
[null,"T. Cred. Ripley",62,55006]
[null,"T. Cred. Saga Falabella",56,33611.599999999999]
[null,"T.Cred. Metro",32,39807]
[null,"Tcred. Ahorros Bco. Conti",53,39133.300000000003]
[null,"Tcred. Ahorros Bco. Wiese",57,43622]
[null,"Tcred. Am.Exp Bco. Conti",24,9429]
[null,"Tcred. Am.Exp Bco. Cred",71,69038.3]
[null,"Tcred. Am.Exp Bco. Interbanc",32,27167.4]
[null,"Tcred. Am.Exp Bco. Wiese",39,42736]
[null,"Tcred. Credimas Bco. Cred",44,42844]
[null,"Tcred. Dorada XP Bco. Cred",44,52985.599999999999]
[null,"Tcred. Personal Bco. Wiese",61,63278.2]
[null,"Jockey Plaza",875,767974.60000000009]
[null,"Efectivo",37,19677]
[null,"T. Cred. E Wong",43,76555]
[null,"T. Cred. Plaza Vea",81,63989.8]
[null,"T. Cred. Ripley",20,18813]
[null,"T. Cred. Saga Falabella",101,101835.2]
[null,"Tcred. Ahorros Bco. Conti",64,64557]
[null,"Tcred. Ahorros Bco. Wiese",39,35293.699999999997]
[null,"Tcred. Am.Exp Bco. Conti",15,8281.2000000000007]
[null,"Tcred. Am.Exp Bco. Cred",89,57542.2]
[null,"Tcred. Am.Exp Bco. Interbanc",60,78214]
[null,"Tcred. Am.Exp Bco. Wiese",108,85798]
[null,"Tcred. Credimas Bco. Cred",33,16678]
[null,"Tcred. Dorada Bco. Interbanc",63,40538.200000000004]
[null,"Tcred. Dorada XP Bco. Cred",59,62499]
[null,"Tcred. Personal Bco. Wiese",63,37703.300000000003]
[null,"Mega Plaza",650,715474.8]
[null,"Efectivo",54,11099.8]
[null,"T. Cred. E Wong",22,18701]
[null,"T. Cred. Plaza Vea",29,22577]
[null,"T. Cred. Ripley",56,91754.4]
[null,"T. Cred. Saga Falabella",26,40648]
[null,"T.Cred. Metro",9,1099]
[null,"Tcred. Ahorros Bco. Conti",47,63346]
[null,"Tcred. Ahorros Bco. Wiese",70,42725.8]
[null,"Tcred. Am.Exp Bco. Conti",20,26333]
[null,"Tcred. Am.Exp Bco. Cred",71,92399]
[null,"Tcred. Am.Exp Bco. Interbanc",31,38801]
[null,"Tcred. Am.Exp Bco. Wiese",65,93465.8]
[null,"Tcred. Credimas Bco. Cred",23,18084]
[null,"Tcred. Dorada Bco. Interbanc",43,65632]
[null,"Tcred. Dorada XP Bco. Cred",57,62671]
[null,"Tcred. Personal Bco. Wiese",27,26138]
[null,"Plaza San Miguel",812,778581.70000000007]
[null,"Efectivo",66,50991]
[null,"T. Cred. E Wong",96,57672.7]
[null,"T. Cred. Plaza Vea",48,33545.5]
[null,"T. Cred. Ripley",60,85750.5]
[null,"T. Cred. Saga Falabella",42,41152]
[null,"T.Cred. Metro",34,52327]
[null,"Tcred. Ahorros Bco. Conti",21,41419]
[null,"Tcred. Ahorros Bco. Wiese",12,14891]
[null,"Tcred. Am.Exp Bco. Conti",48,29013.599999999999]
[null,"Tcred. Am.Exp Bco. Cred",33,31871]
[null,"Tcred. Am.Exp Bco. Interbanc",20,39056]
[null,"Tcred. Am.Exp Bco. Wiese",61,58544]
[null,"Tcred. Credimas Bco. Cred",96,100503.6]
[null,"Tcred. Dorada Bco. Interbanc",34,32830]
[null,"Tcred. Dorada XP Bco. Cred",104,84200.8]
[null,"Tcred. Personal Bco. Wiese",37,24814]
[null,"Total general",3723,3652075.399999999]

{"sheet":"Macro 05","index":9,"n_rows":361,"n_cols":26,"rows_kept":361,"cut":false,"hidden":false,"merged":[[7,1,7,5]]}
[null,null,null,null,null,null,null,null,null,null,null,null,null,null,null,null,null,null,null,"Nro. cliente","Nombre o Razón Social","Dirección"]
[null,"CONSORCIO COMERCIAL \"PLAZA MIRA\"",null,null,null,null,null,null,null,null,null,null,null,null,null,null,null,null,null,1,"David Wells","4120 Howard Ave. Lakeland, NE  22042"]
[null,"Lima Plaza Shopping Master",null,null,null,null,null,null,null,null,null,null,null,null,null,null,null,null,null,2,"Karri Wu","20 North Glenwood Lakeland, NE 22042"]
[null,"Los Caramelos 1230",null,null,null,null,null,null,null,null,null,null,null,null,null,null,null,null,null,3,"Lakeland Foods","870 Mall Road Lakeland, NE  22101"]
[null,"Chosica",null,null,null,null,null,null,null,null,null,null,null,null,null,null,null,null,null,4,"Whole Foods Bakery","870 Mall Road Lakeland, NE  22101"]
[null,null,null,null,null,null,null,null,null,null,null,null,null,null,null,null,null,null,null,5,"Lakeland Arts Board","20 East Lincoln Lakeland, NE  22891"]
[null,null,null,null,null,null,null,null,null,null,null,null,null,null,null,null,null,null,null,6,"Nebraska Board of Arts","31 Capitol Ave. Lincoln, NE  20100"]
[null,"REPORTE GENERAL DE VENTAS DE CINCO TIENDAS DEL AÑO 2003",null,null,null,null,null,null,null,null,null,null,null,null,null,null,null,null,null,7,"Barry Dawes","8900 Woods Rd. Lakeland, NE  22750"]
[null,null,null,null,null,null,null,null,null,null,null,null,null,null,null,null,null,null,null,8,"Linda Greene","3010 Fawlton Ln. Glenwood, NE  28910"]
[null,"EMPLEADO","TIENDA","PRODUCTO","PRECIO($)","FECHA","CANTIDAD","MONTO TOTAL","NOMBRE O RAZON SOCIAL","Forma Pago",null,null,null,null,null,null,null,null,null,9,"Toy World","870 Mall Road Lakeland, NE  22101"]
[null,"Wells, Jason","Plaza San Miguel","Licuadora Wormex 8 v.",{"$f":"IF(LEFT(D11,2)=\"Li\",RANDBETWEEN(300,800)/10,IF(LEFT(D11,2)=\"Ho\",RANDBETWEEN(160,320),IF(LEFT(D11,2)=\"La\",RANDBETWEEN(800,1200),IF(LEFT(D11,2)=\"Co\",RANDBETWEEN(640,1200),RANDBETWEEN(460,2440)))))","v":52.1},"00:00:00",5,{"$f":"E11*G11","v":260.5},{"$f":"LEFT(VLOOKUP(Z11,$T$2:$U$44,2,0),FIND(\" \",VLOOKUP(Z11,$T$2:$U$44,2,0))-1)","v":"Music"},"Tcred. Credimas Bco. Cred",null,null,null,null,null,null,null,null,null,10,"Music Junction","4311 Estes Ave. Glenwood, NE  28955",null,null,null,{"$f":"RANDBETWEEN(1,43)","v":18}]
[null,"Corwick, Rob","Plaza San Miguel","DVD Calfex ",1765,"2003-08-09",17,{"$f":"E12*G12","v":30005},{"$f":"LEFT(VLOOKUP(Z12,$T$2:$U$44,2,0),FIND(\" \",VLOOKUP(Z12,$T$2:$U$44,2,0))-1)","v":"Andy"},"T. Cred. Ripley",null,null,null,null,null,null,null,null,null,11,"Chad Hawkes Family","55 Freedom Ln. Lakeland, NE  25611",null,null,null,23]
[null,"Wells, Jason","Mega Plaza","Licuadora Wormex 8 v.",68.7,"2003-09-14",18,1236.6000000000001,"Vera","Tcred. Ahorros Bco. Wiese",null,null,null,null,null,null,null,null,null,12,"Midwest Music","10 Crawley Court Lyons, NE  43211",null,null,null,35]
[null,"Wells, Jason","Comercial Arenales","Horno Microonda \"Rex\"",232,"2003-07-16",2,464,"Barbara","T. Cred. Saga Falabella",null,null,null,null,null,null,null,null,null,13,"Sidney Deans Family","55 Jacobs Circle Lincoln, NE  28911",null,null,null,21]
[null,"Aruda, Felice","Caminos del Inca","Lavadora Auto 120 PR",1114,"2003-10-26",10,11140,"Nancy","T.Cred. Metro",null,null,null,null,null,null,null,null,null,14,"Cronkite Foundation","3400 Brockton Ave. New York, NY  99819",null,null,null,39]
[null,"Franklin, Larry","Comercial Arenales","Licuadora Wormex 8 v.",59.7,"2003-11-16",18,1074.6000000000001,"Midwest","Tcred. Personal Bco. Wiese",null,null,null,null,null,null,null,null,null,15,"Westside Mall","870 Mall Road Lakeland, NE  22101",null,null,null,12]
[null,"Berwick, Sam","Mega Plaza","DVD Calfex ",1939,"2003-07-29",12,23268,"Miller's","Tcred. Am.Exp Bco. Cred",null,null,null,null,null,null,null,null,null,16,"Greenwood Bakery","3411 Lincoln Circle Lakeland, NE  22900",null,null,null,27]
[null,"Aruda, Felice","Mega Plaza","Cocina Royal 14",779,"2003-09-13",11,8569,"Andy","Tcred. Credimas Bco. Cred",null,null,null,null,null,null,null,null,null,17,"Ryan Kaufmann","669 Maple Rd. Lakeland, NE  25781",null,null,null,23]
[null,"Corwick, Rob","Comercial Arenales","Lavadora Auto 120 PR",1132,"2003-08-24",9,10188,"Barbara","Tcred. Dorada XP Bco. Cred",null,null,null,null,null,null,null,null,null,18,"Music Group","590 Steepleton St. Stepforth, NE  28911",null,null,null,21]
[null,"Petry, Robin","Mega Plaza","Horno Microonda \"Rex\"",300,"2003-08-21",6,1800,"Music","Efectivo",null,null,null,null,null,null,null,null,null,19,"National Endowment of the Arts","100 Capital Ave. Washington, DC  90010",null,null,null,18]
[null,"Kane, Sheryl","Comercial Arenales","Equipo de sonido 1200 W",981,"2003-10-15",16,15696,"Kyle","T. Cred. E Wong",null,null,null,null,null,null,null,null,null,20,"Gary Michaels","9010 Gryst St. Lakeland, NE  22989",null,null,null,43]
[null,"Corwick, Rob","Caminos del Inca","DVD Boddometer",2343,"2003-08-11",14,32802,"Joan","Tcred. Credimas Bco. Cred",null,null,null,null,null,null,null,null,null,21,"Barbara Snell","411 Dickson Ave. Lakeland, NE  22871",null,null,null,32]
[null,"Corwick, Rob","Jockey Plaza","Equipo de sonido 1200 W",1765,"2003-06-14",7,12355,"Kyle","T. Cred. Plaza Vea",null,null,null,null,null,null,null,null,null,22,"Linda Snell","411 Dickson Ave. Lakeland, NE  22871",null,null,null,43]
[null,"Aruda, Felice","Jockey Plaza","Licuadora Wormex 8 v.",44.9,"2003-11-03",17,763.3,"Lakeland","T. Cred. Plaza Vea",null,null,null,null,null,null,null,null,null,23,"Andy Ramirez","490 Conroy Ln. Lakeland, NE  28712",null,null,null,38]
[null,"Berwick, Sam","Plaza San Miguel","Equipo de sonido 1200 W",768,"2003-09-26",18,13824,"Lakeland","T. Cred. Ripley",null,null,null,null,null,null,null,null,null,24,"Kevin Karls","68 E. Main St. Stepforth, NE  28920",null,null,null,40]
[null,"Franklin, Larry","Caminos del Inca","Lavadora Auto 120 PR",951,"2003-06-20",11,10461,"Lakeland","Tcred. Am.Exp Bco. Conti",null,null,null,null,null,null,null,null,null,25,"Phipps Auto","5 Apple Ln. Lakeland, NE  28919",null,null,null,5]
[null,"Dorfberg, Jeremy","Comercial Arenales","Horno Microonda \"Rex\"",176,"2003-08-04",9,1584,"Joan","Tcred. Am.Exp Bco. Interbanc",null,null,null,null,null,null,null,null,null,26,"Gallery 510","44 Wilton St. Lakeland, NE  29811",null,null,null,32]
[null,"Mueller, Ursula","Plaza San Miguel","Cocina Royal 14",1162,"2003-07-16",19,22078,"Linda","T. Cred. E Wong",null,null,null,null,null,null,null,null,null,27,"Miller's Grocery","211 Avalon Ave. Stepforth, NE  28925",null,null,null,8]
[null,"Franklin, Larry","Jockey Plaza","Refrigeradoras 12 p3",1321,"2003-09-29",17,22457,"Midwest","Tcred. Am.Exp Bco. Interbanc",null,null,null,null,null,null,null,null,null,28,"Cindy Alvarez","44 N. Laughton St. Stepforth, NE  28915",null,null,null,12]
[null,"Berwick, Sam","Plaza San Miguel","DVD Boddometer",1760,"2003-11-05",11,19360,"Barry","Tcred. Dorada Bco. Interbanc",null,null,null,null,null,null,null,null,null,29,"Juan Williams","89 W. Main St. Stepforth, NE  28911",null,null,null,7]
[null,"Wells, Jason","Caminos del Inca","Refrigeradoras 12 p3",1310,"2003-07-10",14,18340,"Stepforth","Tcred. Am.Exp Bco. Cred",null,null,null,null,null,null,null,null,null,30,"Terry's Gifts","800 N. Carls St. Lakeland, NE  28888",null,null,null,33]
[null,"Berwick, Sam","Plaza San Miguel","DVD Boddometer",1070,"2003-06-30",15,16050,"Music","Efectivo",null,null,null,null,null,null,null,null,null,31,"Howard Lee","325 W. Main St. Stepforth, NE  28918",null,null,null,34]
[null,"Corwick, Rob","Plaza San Miguel","Cocina Royal 14",715,"2003-08-16",13,9295,"Nebraskan","Tcred. Am.Exp Bco. Conti",null,null,null,null,null,null,null,null,null,32,"Joan Smith","825 Dickson Ave. Lakeland, NE  22871",null,null,null,42]
[null,"Aruda, Felice","Comercial Arenales","Horno Microonda \"Rex\"",269,"2003-10-24",8,2152,"Greenwood","T. Cred. Ripley",null,null,null,null,null,null,null,null,null,33,"Stepforth Hardware","911 Lincon Circle Stepforth, NE  28712",null,null,null,16]
[null,"Berwick, Sam","Caminos del Inca","DVD Boddometer",1456,"2003-07-20",7,10192,"Music","Tcred. Am.Exp Bco. Conti",null,null,null,null,null,null,null,null,null,34,"Music Store","55 E. Main St.Stepforth, NE  29811",null,null,null,34]
[null,"Corwick, Rob","Mega Plaza","Refrigeradoras 12 p3",2266,"2003-09-21",18,40788,"Toy","Tcred. Personal Bco. Wiese",null,null,null,null,null,null,null,null,null,35,"Vera Ulanger","42 S. Jasper Ave.Glenwood, NE 21128",null,null,null,9]
[null,"Mueller, Ursula","Caminos del Inca","Cocina Royal 14",1200,"2003-09-05",15,18000,"Howard","T. Cred. Saga Falabella",null,null,null,null,null,null,null,null,null,36,"Thomas Kemp","7822 Harvard Ln. Lakeland, NE  29098",null,null,null,31]
[null,"Aruda, Felice","Caminos del Inca","Equipo de sonido 1200 W",783,"2003-06-15",16,12528,"Gary","Tcred. Ahorros Bco. Conti",null,null,null,null,null,null,null,null,null,37,"Sally Breaux Family","3121 Greisen St. Lakeland, NE  28561",null,null,null,20]
[null,"Dorfberg, Jeremy","Plaza San Miguel","Licuadora Wormex 8 v.",70.2,"2003-09-16",16,1123.2,"Cronkite","Tcred. Dorada XP Bco. Cred",null,null,null,null,null,null,null,null,null,38,"Lakeland Lanes","4310 Harvard Ln. Lakeland, NE  26899",null,null,null,14]
[null,"Aruda, Felice","Jockey Plaza","DVD Calfex ",2272,"2003-08-18",19,43168,"Cronkite","T. Cred. Saga Falabella",null,null,null,null,null,null,null,null,null,39,"Nancy Yi","40 Kinder Ave. Lakeland, NE  22891",null,null,null,14]
[null,"Wells, Jason","Plaza San Miguel","Refrigeradoras 12 p3",1893,"2003-07-16",15,28395,"Barbara","Tcred. Credimas Bco. Cred",null,null,null,null,null,null,null,null,null,40,"Lakeland Gifts","89 Mall Ave. Lakeland, NE  29877",null,null,null,21]
[null,"Wells, Jason","Caminos del Inca","Lavadora Auto 120 PR",835,"2003-07-01",7,5845,"Terry's","T.Cred. Metro",null,null,null,null,null,null,null,null,null,41,"Mitchell Maazel","564 Jasper St. Lakeland, NE  27888",null,null,null,30]
[null,"Wells, Jason","Plaza San Miguel","Equipo de sonido 1200 W",2191,"2003-08-13",8,17528,"Lakeland","T.Cred. Metro",null,null,null,null,null,null,null,null,null,42,"Nebraskan Arts Foundation","988 Greene St. Lincoln, NE  22002",null,null,null,38]
[null,"Asonte, Toni","Mega Plaza","DVD Calfex ",491,"2003-08-31",14,6874,"Lakeland","Tcred. Am.Exp Bco. Interbanc",null,null,null,null,null,null,null,null,null,43,"Kyle Keel","87 E. Main St. Stepforth, NE  29810",null,null,null,3]
[null,"Asonte, Toni","Jockey Plaza","DVD Calfex ",1987,"2003-06-18",7,13909,"Linda","T. Cred. Plaza Vea",null,null,null,null,null,null,null,null,null,null,null,null,null,null,null,22]
[null,"Kane, Sheryl","Caminos del Inca","Refrigeradoras 12 p3",2294,"2003-06-10",19,43586,"Westside","Tcred. Personal Bco. Wiese",null,null,null,null,null,null,null,null,null,null,null,null,null,null,null,15]
[null,"Berwick, Sam","Plaza San Miguel","Horno Microonda \"Rex\"",172,"2003-10-11",2,344,"Chad","Tcred. Dorada Bco. Interbanc",null,null,null,null,null,null,null,null,null,null,null,null,null,null,null,11]
[null,"Corwick, Rob","Mega Plaza","Lavadora Auto 120 PR",1135,"2003-11-15",4,4540,"Kevin","Tcred. Am.Exp Bco. Conti",null,null,null,null,null,null,null,null,null,null,null,null,null,null,null,24]
[null,"Mueller, Ursula","Plaza San Miguel","Lavadora Auto 120 PR",1120,"2003-08-22",8,8960,"Kyle","T. Cred. Saga Falabella",null,null,null,null,null,null,null,null,null,null,null,null,null,null,null,43]
[null,"Kane, Sheryl","Caminos del Inca","Licuadora Wormex 8 v.",71.099999999999994,"2003-11-05",20,1422,"Greenwood","Tcred. Credimas Bco. Cred",null,null,null,null,null,null,null,null,null,null,null,null,null,null,null,16]
[null,"Berwick, Sam","Caminos del Inca","Horno Microonda \"Rex\"",263,"2003-06-22",12,3156,"Thomas","Tcred. Am.Exp Bco. Interbanc",null,null,null,null,null,null,null,null,null,null,null,null,null,null,null,36]
[null,"Franklin, Larry","Mega Plaza","DVD Boddometer",893,"2003-10-06",7,6251,"Kyle","Tcred. Am.Exp Bco. Conti",null,null,null,null,null,null,null,null,null,null,null,null,null,null,null,43]
[null,"Wells, Jason","Plaza San Miguel","DVD Boddometer",978,"2003-09-22",18,17604,"Lakeland","Tcred. Credimas Bco. Cred",null,null,null,null,null,null,null,null,null,null,null,null,null,null,null,40]
[null,"Corwick, Rob","Jockey Plaza","Refrigeradoras 12 p3",1843,"2003-11-07",3,5529,"Andy","T. Cred. Saga Falabella",null,null,null,null,null,null,null,null,null,null,null,null,null,null,null,23]
[null,"Berwick, Sam","Mega Plaza","Horno Microonda \"Rex\"",175,"2003-09-08",17,2975,"Lakeland","Efectivo",null,null,null,null,null,null,null,null,null,null,null,null,null,null,null,40]
[null,"Aruda, Felice","Plaza San Miguel","DVD Boddometer",860,"2003-09-04",6,5160,"Vera","Tcred. Credimas Bco. Cred",null,null,null,null,null,null,null,null,null,null,null,null,null,null,null,35]
[null,"Berwick, Sam","Plaza San Miguel","Cocina Royal 14",697,"2003-08-11",7,4879,"Barry","Tcred. Am.Exp Bco. Cred",null,null,null,null,null,null,null,null,null,null,null,null,null,null,null,7]
[null,"Wells, Jason","Caminos del Inca","Cocina Royal 14",852,"2003-09-21",10,8520,"Mitchell","T. Cred. Ripley",null,null,null,null,null,null,null,null,null,null,null,null,null,null,null,41]
[null,"Dorfberg, Jeremy","Jockey Plaza","Equipo de sonido 1200 W",902,"2003-06-11",9,8118,"Greenwood","Tcred. Am.Exp Bco. Cred",null,null,null,null,null,null,null,null,null,null,null,null,null,null,null,16]
[null,"Mueller, Ursula","Comercial Arenales","Cocina Royal 14",781,"2003-06-20",3,2343,"Lakeland","Tcred. Am.Exp Bco. Wiese",null,null,null,null,null,null,null,null,null,null,null,null,null,null,null,38]
[null,"Aruda, Felice","Jockey Plaza","DVD Calfex ",879,"2003-07-24",20,17580,"Nebraskan","Tcred. Personal Bco. Wiese",null,null,null,null,null,null,null,null,null,null,null,null,null,null,null,42]
[null,"Petry, Robin","Caminos del Inca","Equipo de sonido 1200 W",682,"2003-08-15",14,9548,"Linda","Tcred. Am.Exp Bco. Cred",null,null,null,null,null,null,null,null,null,null,null,null,null,null,null,8]
[null,"Kane, Sheryl","Caminos del Inca","DVD Boddometer",921,"2003-10-16",10,9210,"Mitchell","Tcred. Ahorros Bco. Conti",null,null,null,null,null,null,null,null,null,null,null,null,null,null,null,41]
[null,"Aruda, Felice","Plaza San Miguel","Licuadora Wormex 8 v.",78.900000000000006,"2003-10-29",10,789,"Lakeland","Tcred. Am.Exp Bco. Conti",null,null,null,null,null,null,null,null,null,null,null,null,null,null,null,5]
[null,"Kane, Sheryl","Caminos del Inca","Cocina Royal 14",1134,"2003-09-02",5,5670,"Midwest","T. Cred. Plaza Vea",null,null,null,null,null,null,null,null,null,null,null,null,null,null,null,12]
[null,"Corwick, Rob","Caminos del Inca","Equipo de sonido 1200 W",1691,"2003-07-06",6,10146,"Mitchell","Tcred. Ahorros Bco. Wiese",null,null,null,null,null,null,null,null,null,null,null,null,null,null,null,41]
[null,"Asonte, Toni","Plaza San Miguel","Licuadora Wormex 8 v.",79.8,"2003-11-19",15,1197,"Ryan","Tcred. Am.Exp Bco. Wiese",null,null,null,null,null,null,null,null,null,null,null,null,null,null,null,17]
[null,"Mueller, Ursula","Mega Plaza","Horno Microonda \"Rex\"",273,"2003-08-20",6,1638,"Music","Efectivo",null,null,null,null,null,null,null,null,null,null,null,null,null,null,null,18]
[null,"Kane, Sheryl","Comercial Arenales","Horno Microonda \"Rex\"",225,"2003-07-14",14,3150,"Phipps","Tcred. Credimas Bco. Cred",null,null,null,null,null,null,null,null,null,null,null,null,null,null,null,25]
[null,"Corwick, Rob","Comercial Arenales","Horno Microonda \"Rex\"",176,"2003-11-01",3,528,"Kyle","Tcred. Am.Exp Bco. Interbanc",null,null,null,null,null,null,null,null,null,null,null,null,null,null,null,43]
[null,"Corwick, Rob","Plaza San Miguel","Licuadora Wormex 8 v.",66.400000000000006,"2003-09-02",13,863.2,"Whole","T. Cred. Plaza Vea",null,null,null,null,null,null,null,null,null,null,null,null,null,null,null,4]
[null,"Petry, Robin","Jockey Plaza","Horno Microonda \"Rex\"",172,"2003-08-15",2,344,"Whole","Tcred. Dorada Bco. Interbanc",null,null,null,null,null,null,null,null,null,null,null,null,null,null,null,4]
[null,"Petry, Robin","Jockey Plaza","Refrigeradoras 12 p3",1771,"2003-09-17",14,24794,"Barbara","Tcred. Dorada XP Bco. Cred",null,null,null,null,null,null,null,null,null,null,null,null,null,null,null,21]
[null,"Corwick, Rob","Mega Plaza","Equipo de sonido 1200 W",933,"2003-08-18",15,13995,"Lakeland","T. Cred. Ripley",null,null,null,null,null,null,null,null,null,null,null,null,null,null,null,40]
[null,"Franklin, Larry","Jockey Plaza","Licuadora Wormex 8 v.",{"$f":"IF(LEFT(D75,2)=\"Li\",RANDBETWEEN(300,800)/10,IF(LEFT(D75,2)=\"Ho\",RANDBETWEEN(160,320),IF(LEFT(D75,2)=\"La\",RANDBETWEEN(800,1200),IF(LEFT(D75,2)=\"Co\",RANDBETWEEN(640,1200),RANDBETWEEN(460,2440)))))","v":32.799999999999997},"2003-09-11",19,{"$f":"E75*G75","v":623.19999999999993},"Cindy","Tcred. Am.Exp Bco. Cred",null,null,null,null,null,null,null,null,null,null,null,null,null,null,null,{"$f":"RANDBETWEEN(1,43)","v":28}]
[null,"Wells, Jason","Jockey Plaza","Equipo de sonido 1200 W",1060,"2003-08-18",9,9540,{"$f":"LEFT(VLOOKUP(Z76,$T$2:$U$44,2,0),FIND(\" \",VLOOKUP(Z76,$T$2:$U$44,2,0))-1)","v":"Toy"},"Tcred. Dorada XP Bco. Cred",null,null,null,null,null,null,null,null,null,null,null,null,null,null,null,9]
[null,"Mueller, Ursula","Jockey Plaza","Licuadora Wormex 8 v.",72.7,"2003-09-19",7,508.90000000000003,"Chad","Tcred. Personal Bco. Wiese",null,null,null,null,null,null,null,null,null,null,null,null,null,null,null,11]
[null,"Kane, Sheryl","Comercial Arenales","DVD Boddometer",1729,"2003-07-14",15,25935,"Joan","T. Cred. Ripley",null,null,null,null,null,null,null,null,null,null,null,null,null,null,null,32]
[null,"Petry, Robin","Caminos del Inca","DVD Calfex ",463,"2003-07-30",10,4630,"Mitchell","Tcred. Credimas Bco. Cred",null,null,null,null,null,null,null,null,null,null,null,null,null,null,null,41]
[null,"Asonte, Toni","Comercial Arenales","Refrigeradoras 12 p3",2250,"2003-10-03",18,40500,"David","Tcred. Am.Exp Bco. Cred",null,null,null,null,null,null,null,null,null,null,null,null,null,null,null,1]
[null,"Wells, Jason","Caminos del Inca","Equipo de sonido 1200 W",1049,"2003-09-16",8,8392,"Gary","Tcred. Credimas Bco. Cred",null,null,null,null,null,null,null,null,null,null,null,null,null,null,null,20]
[null,"Asonte, Toni","Caminos del Inca","Horno Microonda \"Rex\"",282,"2003-07-20",7,1974,"Joan","Tcred. Am.Exp Bco. Wiese",null,null,null,null,null,null,null,null,null,null,null,null,null,null,null,32]
[null,"Wells, Jason","Plaza San Miguel","DVD Boddometer",1216,"2003-08-29",4,4864,"Music","Efectivo",null,null,null,null,null,null,null,null,null,null,null,null,null,null,null,10]
[null,"Mueller, Ursula","Plaza San Miguel","Horno Microonda \"Rex\"",165,"2003-07-10",12,1980,"Joan","Efectivo",null,null,null,null,null,null,null,null,null,null,null,null,null,null,null,32]
[null,"Asonte, Toni","Caminos del Inca","Refrigeradoras 12 p3",1180,"2003-06-19",6,7080,"Andy","T.Cred. Metro",null,null,null,null,null,null,null,null,null,null,null,null,null,null,null,23]
[null,"Kane, Sheryl","Mega Plaza","Equipo de sonido 1200 W",834,"2003-08-16",12,10008,"Barry","Tcred. Ahorros Bco. Wiese",null,null,null,null,null,null,null,null,null,null,null,null,null,null,null,7]
[null,"Kane, Sheryl","Plaza San Miguel","Cocina Royal 14",677,"2003-09-01",20,13540,"Barbara","Tcred. Am.Exp Bco. Cred",null,null,null,null,null,null,null,null,null,null,null,null,null,null,null,21]
[null,"Corwick, Rob","Comercial Arenales","Licuadora Wormex 8 v.",31.2,"2003-08-30",19,592.79999999999995,"Ryan","Tcred. Am.Exp Bco. Cred",null,null,null,null,null,null,null,null,null,null,null,null,null,null,null,17]
[null,"Corwick, Rob","Caminos del Inca","DVD Boddometer",2423,"2003-09-06",10,24230,"Kyle","T.Cred. Metro",null,null,null,null,null,null,null,null,null,null,null,null,null,null,null,43]
[null,"Kane, Sheryl","Jockey Plaza","Lavadora Auto 120 PR",999,"2003-07-02",13,12987,"Ryan","T. Cred. Saga Falabella",null,null,null,null,null,null,null,null,null,null,null,null,null,null,null,17]
[null,"Kane, Sheryl","Plaza San Miguel","Equipo de sonido 1200 W",2414,"2003-07-11",14,33796,"Gallery","Tcred. Am.Exp Bco. Wiese",null,null,null,null,null,null,null,null,null,null,null,null,null,null,null,26]
[null,"Corwick, Rob","Jockey Plaza","Horno Microonda \"Rex\"",300,"2003-09-23",20,6000,"Thomas","Tcred. Credimas Bco. Cred",null,null,null,null,null,null,null,null,null,null,null,null,null,null,null,36]
[null,"Wells, Jason","Caminos del Inca","Licuadora Wormex 8 v.",78,"2003-10-13",11,858,"Stepforth","Tcred. Am.Exp Bco. Conti",null,null,null,null,null,null,null,null,null,null,null,null,null,null,null,33]
[null,"Berwick, Sam","Comercial Arenales","Lavadora Auto 120 PR",1200,"2003-09-24",17,20400,"Music","Tcred. Personal Bco. Wiese",null,null,null,null,null,null,null,null,null,null,null,null,null,null,null,34]
[null,"Petry, Robin","Plaza San Miguel","Refrigeradoras 12 p3",1449,"2003-06-18",17,24633,"Whole","T.Cred. Metro",null,null,null,null,null,null,null,null,null,null,null,null,null,null,null,4]
[null,"Corwick, Rob","Jockey Plaza","DVD Calfex ",870,"2003-08-18",5,4350,"Cronkite","T. Cred. Plaza Vea",null,null,null,null,null,null,null,null,null,null,null,null,null,null,null,14]
[null,"Petry, Robin","Plaza San Miguel","Horno Microonda \"Rex\"",230,"2003-09-04",17,3910,"Andy","Tcred. Personal Bco. Wiese",null,null,null,null,null,null,null,null,null,null,null,null,null,null,null,23]
[null,"Aruda, Felice","Plaza San Miguel","Refrigeradoras 12 p3",1419,"2003-09-22",5,7095,"Juan","T. Cred. Saga Falabella",null,null,null,null,null,null,null,null,null,null,null,null,null,null,null,29]
[null,"Asonte, Toni","Comercial Arenales","Cocina Royal 14",1033,"2003-06-23",1,1033,"Whole","Tcred. Am.Exp Bco. Conti",null,null,null,null,null,null,null,null,null,null,null,null,null,null,null,4]
[null,"Petry, Robin","Plaza San Miguel","DVD Calfex ",1413,"2003-10-24",4,5652,"Mitchell","Efectivo",null,null,null,null,null,null,null,null,null,null,null,null,null,null,null,41]
[null,"Aruda, Felice","Jockey Plaza","DVD Boddometer",1605,"2003-11-10",16,25680,"Music","Tcred. Ahorros Bco. Conti",null,null,null,null,null,null,null,null,null,null,null,null,null,null,null,34]
[null,"Petry, Robin","Jockey Plaza","Lavadora Auto 120 PR",1039,"2003-10-09",11,11429,"Lakeland","Tcred. Personal Bco. Wiese",null,null,null,null,null,null,null,null,null,null,null,null,null,null,null,3]
[null,"Corwick, Rob","Plaza San Miguel","Equipo de sonido 1200 W",634,"2003-09-26",5,3170,"Sidney","Tcred. Am.Exp Bco. Conti",null,null,null,null,null,null,null,null,null,null,null,null,null,null,null,13]
[null,"Franklin, Larry","Mega Plaza","DVD Calfex ",1800,"2003-10-13",15,27000,"Music","Tcred. Am.Exp Bco. Cred",null,null,null,null,null,null,null,null,null,null,null,null,null,null,null,18]
[null,"Wells, Jason","Jockey Plaza","DVD Calfex ",911,"2003-09-10",19,17309,"Juan","Tcred. Am.Exp Bco. Interbanc",null,null,null,null,null,null,null,null,null,null,null,null,null,null,null,29]
[null,"Kane, Sheryl","Mega Plaza","Cocina Royal 14",1012,"2003-09-30",11,11132,"Toy","T. Cred. E Wong",null,null,null,null,null,null,null,null,null,null,null,null,null,null,null,9]
[null,"Kane, Sheryl","Mega Plaza","Equipo de sonido 1200 W",1762,"2003-07-12",13,22906,"Greenwood","T. Cred. Saga Falabella",null,null,null,null,null,null,null,null,null,null,null,null,null,null,null,16]
[null,"Asonte, Toni","Comercial Arenales","Horno Microonda \"Rex\"",249,"2003-10-31",6,1494,"Karri","Tcred. Ahorros Bco. Conti",null,null,null,null,null,null,null,null,null,null,null,null,null,null,null,2]
[null,"Kane, Sheryl","Jockey Plaza","DVD Calfex ",2394,"2003-07-24",11,26334,"Sally","Tcred. Ahorros Bco. Conti",null,null,null,null,null,null,null,null,null,null,null,null,null,null,null,37]
[null,"Petry, Robin","Plaza San Miguel","Refrigeradoras 12 p3",894,"2003-07-30",15,13410,"Ryan","Tcred. Dorada XP Bco. Cred",null,null,null,null,null,null,null,null,null,null,null,null,null,null,null,17]
[null,"Petry, Robin","Jockey Plaza","DVD Boddometer",628,"2003-07-26",2,1256,"Joan","Tcred. Am.Exp Bco. Cred",null,null,null,null,null,null,null,null,null,null,null,null,null,null,null,32]
[null,"Petry, Robin","Plaza San Miguel","Refrigeradoras 12 p3",2304,"2003-11-19",8,18432,"Phipps","T. Cred. Ripley",null,null,null,null,null,null,null,null,null,null,null,null,null,null,null,25]
[null,"Asonte, Toni","Plaza San Miguel","Lavadora Auto 120 PR",1043,"2003-07-28",5,5215,"Cindy","Efectivo",null,null,null,null,null,null,null,null,null,null,null,null,null,null,null,28]
[null,"Petry, Robin","Comercial Arenales","Lavadora Auto 120 PR",1145,"2003-09-01",14,16030,"Sidney","Tcred. Ahorros Bco. Conti",null,null,null,null,null,null,null,null,null,null,null,null,null,null,null,13]
[null,"Petry, Robin","Plaza San Miguel","Licuadora Wormex 8 v.",74.7,"2003-09-04",10,747,"Midwest","T. Cred. E Wong",null,null,null,null,null,null,null,null,null,null,null,null,null,null,null,12]
[null,"Berwick, Sam","Caminos del Inca","Cocina Royal 14",1089,"2003-07-05",14,15246,"Kyle","Tcred. Personal Bco. Wiese",null,null,null,null,null,null,null,null,null,null,null,null,null,null,null,43]
[null,"Kane, Sheryl","Jockey Plaza","Equipo de sonido 1200 W",1444,"2003-10-03",19,27436,"Midwest","Tcred. Am.Exp Bco. Wiese",null,null,null,null,null,null,null,null,null,null,null,null,null,null,null,12]
[null,"Wells, Jason","Plaza San Miguel","Equipo de sonido 1200 W",1335,"2003-11-01",12,16020,"Chad","Tcred. Am.Exp Bco. Wiese",null,null,null,null,null,null,null,null,null,null,null,null,null,null,null,11]
[null,"Berwick, Sam","Caminos del Inca","Licuadora Wormex 8 v.",55,"2003-11-18",6,330,"Lakeland","T. Cred. Saga Falabella",null,null,null,null,null,null,null,null,null,null,null,null,null,null,null,38]
[null,"Wells, Jason","Mega Plaza","Equipo de sonido 1200 W",2203,"2003-07-09",4,8812,"Vera","T. Cred. E Wong",null,null,null,null,null,null,null,null,null,null,null,null,null,null,null,35]
[null,"Kane, Sheryl","Comercial Arenales","DVD Calfex ",879,"2003-11-14",19,16701,"Lakeland","Efectivo",null,null,null,null,null,null,null,null,null,null,null,null,null,null,null,38]
[null,"Franklin, Larry","Jockey Plaza","DVD Boddometer",2167,"2003-07-30",9,19503,"Chad","Tcred. Am.Exp Bco. Cred",null,null,null,null,null,null,null,null,null,null,null,null,null,null,null,11]
[null,"Mueller, Ursula","Jockey Plaza","Refrigeradoras 12 p3",1726,"2003-08-17",12,20712,"Sidney","T. Cred. Plaza Vea",null,null,null,null,null,null,null,null,null,null,null,null,null,null,null,13]
[null,"Berwick, Sam","Jockey Plaza","Horno Microonda \"Rex\"",287,"2003-10-06",8,2296,"Lakeland","Tcred. Am.Exp Bco. Cred",null,null,null,null,null,null,null,null,null,null,null,null,null,null,null,40]
[null,"Kane, Sheryl","Plaza San Miguel","Cocina Royal 14",880,"2003-08-07",15,13200,"Stepforth","Tcred. Credimas Bco. Cred",null,null,null,null,null,null,null,null,null,null,null,null,null,null,null,33]
[null,"Dorfberg, Jeremy","Mega Plaza","Cocina Royal 14",1041,"2003-09-28",13,13533,"Nebraskan","Tcred. Am.Exp Bco. Cred",null,null,null,null,null,null,null,null,null,null,null,null,null,null,null,42]
[null,"Wells, Jason","Comercial Arenales","Licuadora Wormex 8 v.",43.4,"2003-07-04",6,260.39999999999998,"Miller's","Tcred. Dorada XP Bco. Cred",null,null,null,null,null,null,null,null,null,null,null,null,null,null,null,27]
[null,"Kane, Sheryl","Jockey Plaza","Cocina Royal 14",751,"2003-08-10",17,12767,"Cronkite","Tcred. Dorada Bco. Interbanc",null,null,null,null,null,null,null,null,null,null,null,null,null,null,null,14]
[null,"Asonte, Toni","Comercial Arenales","Licuadora Wormex 8 v.",72.900000000000006,"2003-10-14",20,1458,"Lakeland","Efectivo",null,null,null,null,null,null,null,null,null,null,null,null,null,null,null,40]
[null,"Mueller, Ursula","Comercial Arenales","DVD Calfex ",1129,"2003-09-23",19,21451,"Lakeland","Tcred. Am.Exp Bco. Wiese",null,null,null,null,null,null,null,null,null,null,null,null,null,null,null,40]
[null,"Wells, Jason","Mega Plaza","Licuadora Wormex 8 v.",32.1,"2003-09-16",5,160.5,"Whole","T.Cred. Metro",null,null,null,null,null,null,null,null,null,null,null,null,null,null,null,4]
[null,"Corwick, Rob","Plaza San Miguel","Refrigeradoras 12 p3",1914,"2003-08-04",3,5742,"Gallery","Tcred. Credimas Bco. Cred",null,null,null,null,null,null,null,null,null,null,null,null,null,null,null,26]
[null,"Berwick, Sam","Comercial Arenales","Refrigeradoras 12 p3",882,"2003-11-08",18,15876,"Karri","T.Cred. Metro",null,null,null,null,null,null,null,null,null,null,null,null,null,null,null,2]
[null,"Corwick, Rob","Plaza San Miguel","Licuadora Wormex 8 v.",48.9,"2003-09-18",20,978,"Nebraskan","T. Cred. E Wong",null,null,null,null,null,null,null,null,null,null,null,null,null,null,null,42]
[null,"Asonte, Toni","Mega Plaza","DVD Boddometer",2094,"2003-07-16",3,6282,"Barbara","Tcred. Personal Bco. Wiese",null,null,null,null,null,null,null,null,null,null,null,null,null,null,null,21]
[null,"Franklin, Larry","Plaza San Miguel","Lavadora Auto 120 PR",1078,"2003-08-07",10,10780,"Westside","T. Cred. E Wong",null,null,null,null,null,null,null,null,null,null,null,null,null,null,null,15]
[null,"Kane, Sheryl","Plaza San Miguel","DVD Boddometer",924,"2003-08-21",4,3696,"Sally","T.Cred. Metro",null,null,null,null,null,null,null,null,null,null,null,null,null,null,null,37]
[null,"Berwick, Sam","Caminos del Inca","Equipo de sonido 1200 W",2397,"2003-07-03",11,26367,"Greenwood","T. Cred. E Wong",null,null,null,null,null,null,null,null,null,null,null,null,null,null,null,16]
[null,"Corwick, Rob","Mega Plaza","Equipo de sonido 1200 W",{"$f":"IF(LEFT(D139,2)=\"Li\",RANDBETWEEN(300,800)/10,IF(LEFT(D139,2)=\"Ho\",RANDBETWEEN(160,320),IF(LEFT(D139,2)=\"La\",RANDBETWEEN(800,1200),IF(LEFT(D139,2)=\"Co\",RANDBETWEEN(640,1200),RANDBETWEEN(460,2440)))))","v":1158},"2003-09-29",10,{"$f":"E139*G139","v":11580},"Nebraska","Tcred. Am.Exp Bco. Cred",null,null,null,null,null,null,null,null,null,null,null,null,null,null,null,{"$f":"RANDBETWEEN(1,43)","v":6}]
[null,"Petry, Robin","Plaza San Miguel","Lavadora Auto 120 PR",1023,"2003-06-23",16,16368,{"$f":"LEFT(VLOOKUP(Z140,$T$2:$U$44,2,0),FIND(\" \",VLOOKUP(Z140,$T$2:$U$44,2,0))-1)","v":"Cronkite"},"T. Cred. Ripley",null,null,null,null,null,null,null,null,null,null,null,null,null,null,null,14]
[null,"Kane, Sheryl","Plaza San Miguel","Horno Microonda \"Rex\"",211,"2003-06-17",18,3798,"Lakeland","Tcred. Am.Exp Bco. Wiese",null,null,null,null,null,null,null,null,null,null,null,null,null,null,null,40]
[null,"Mueller, Ursula","Plaza San Miguel","Cocina Royal 14",1158,"2003-10-26",20,23160,"Howard","Tcred. Dorada XP Bco. Cred",null,null,null,null,null,null,null,null,null,null,null,null,null,null,null,31]
[null,"Asonte, Toni","Caminos del Inca","Refrigeradoras 12 p3",2341,"2003-08-29",5,11705,"Westside","Tcred. Ahorros Bco. Conti",null,null,null,null,null,null,null,null,null,null,null,null,null,null,null,15]
[null,"Franklin, Larry","Jockey Plaza","Refrigeradoras 12 p3",1222,"2003-10-19",9,10998,"Nebraska","T. Cred. E Wong",null,null,null,null,null,null,null,null,null,null,null,null,null,null,null,6]
[null,"Wells, Jason","Jockey Plaza","Horno Microonda \"Rex\"",262,"2003-08-13",17,4454,"Nancy","Tcred. Dorada XP Bco. Cred",null,null,null,null,null,null,null,null,null,null,null,null,null,null,null,39]
[null,"Aruda, Felice","Plaza San Miguel","DVD Boddometer",2179,"2003-09-18",1,2179,"Linda","Tcred. Dorada Bco. Interbanc",null,null,null,null,null,null,null,null,null,null,null,null,null,null,null,8]
[null,"Aruda, Felice","Mega Plaza","Lavadora Auto 120 PR",1110,"2003-09-07",8,8880,"Terry's","Tcred. Ahorros Bco. Conti",null,null,null,null,null,null,null,null,null,null,null,null,null,null,null,30]
[null,"Dorfberg, Jeremy","Plaza San Miguel","Refrigeradoras 12 p3",2066,"2003-10-14",4,8264,"Gallery","Tcred. Am.Exp Bco. Interbanc",null,null,null,null,null,null,null,null,null,null,null,null,null,null,null,26]
[null,"Kane, Sheryl","Comercial Arenales","DVD Calfex ",1811,"2003-09-18",10,18110,"Phipps","Tcred. Am.Exp Bco. Interbanc",null,null,null,null,null,null,null,null,null,null,null,null,null,null,null,25]
[null,"Asonte, Toni","Caminos del Inca","DVD Calfex ",1975,"2003-10-03",14,27650,"Gary","Tcred. Ahorros Bco. Wiese",null,null,null,null,null,null,null,null,null,null,null,null,null,null,null,20]
[null,"Dorfberg, Jeremy","Comercial Arenales","Horno Microonda \"Rex\"",213,"2003-08-23",15,3195,"Linda","Tcred. Am.Exp Bco. Conti",null,null,null,null,null,null,null,null,null,null,null,null,null,null,null,22]
[null,"Corwick, Rob","Plaza San Miguel","Lavadora Auto 120 PR",981,"2003-06-14",13,12753,"Mitchell","T. Cred. E Wong",null,null,null,null,null,null,null,null,null,null,null,null,null,null,null,41]
[null,"Kane, Sheryl","Comercial Arenales","Equipo de sonido 1200 W",1541,"2003-06-12",5,7705,"Mitchell","T.Cred. Metro",null,null,null,null,null,null,null,null,null,null,null,null,null,null,null,41]
[null,"Kane, Sheryl","Comercial Arenales","Cocina Royal 14",772,"2003-10-20",16,12352,"Lakeland","T. Cred. E Wong",null,null,null,null,null,null,null,null,null,null,null,null,null,null,null,5]
[null,"Asonte, Toni","Caminos del Inca","Lavadora Auto 120 PR",935,"2003-08-11",3,2805,"Stepforth","Efectivo",null,null,null,null,null,null,null,null,null,null,null,null,null,null,null,33]
[null,"Aruda, Felice","Jockey Plaza","Equipo de sonido 1200 W",1505,"2003-08-04",2,3010,"Barbara","Tcred. Credimas Bco. Cred",null,null,null,null,null,null,null,null,null,null,null,null,null,null,null,21]
[null,"Petry, Robin","Jockey Plaza","Refrigeradoras 12 p3",534,"2003-11-07",4,2136,"Music","Tcred. Am.Exp Bco. Cred",null,null,null,null,null,null,null,null,null,null,null,null,null,null,null,34]
[null,"Asonte, Toni","Plaza San Miguel","Lavadora Auto 120 PR",951,"2003-10-25",13,12363,"Gallery","Tcred. Credimas Bco. Cred",null,null,null,null,null,null,null,null,null,null,null,null,null,null,null,26]
[null,"Wells, Jason","Jockey Plaza","Lavadora Auto 120 PR",848,"2003-11-18",18,15264,"Gallery","Tcred. Am.Exp Bco. Interbanc",null,null,null,null,null,null,null,null,null,null,null,null,null,null,null,26]
[null,"Berwick, Sam","Mega Plaza","Refrigeradoras 12 p3",1282,"2003-08-05",17,21794,"Music","Tcred. Am.Exp Bco. Wiese",null,null,null,null,null,null,null,null,null,null,null,null,null,null,null,34]
[null,"Kane, Sheryl","Mega Plaza","Horno Microonda \"Rex\"",277,"2003-09-15",4,1108,"Sidney","T.Cred. Metro",null,null,null,null,null,null,null,null,null,null,null,null,null,null,null,13]
[null,"Wells, Jason","Mega Plaza","DVD Boddometer",2179,"2003-07-09",20,43580,"Music","T. Cred. Ripley",null,null,null,null,null,null,null,null,null,null,null,null,null,null,null,18]
[null,"Franklin, Larry","Caminos del Inca","DVD Boddometer",1895,"2003-11-13",12,22740,"Mitchell","T. Cred. Plaza Vea",null,null,null,null,null,null,null,null,null,null,null,null,null,null,null,41]
[null,"Kane, Sheryl","Jockey Plaza","DVD Boddometer",1053,"2003-07-21",19,20007,"Cindy","Tcred. Am.Exp Bco. Wiese",null,null,null,null,null,null,null,null,null,null,null,null,null,null,null,28]
[null,"Petry, Robin","Mega Plaza","Horno Microonda \"Rex\"",272,"2003-07-05",7,1904,"Howard","T. Cred. E Wong",null,null,null,null,null,null,null,null,null,null,null,null,null,null,null,31]
[null,"Mueller, Ursula","Mega Plaza","Lavadora Auto 120 PR",933,"2003-10-18",1,933,"Nebraskan","Efectivo",null,null,null,null,null,null,null,null,null,null,null,null,null,null,null,42]
[null,"Kane, Sheryl","Comercial Arenales","Refrigeradoras 12 p3",534,"2003-10-27",9,4806,"Ryan","T. Cred. Saga Falabella",null,null,null,null,null,null,null,null,null,null,null,null,null,null,null,17]
[null,"Petry, Robin","Comercial Arenales","DVD Calfex ",1519,"2003-09-01",17,25823,"Gallery","Tcred. Ahorros Bco. Conti",null,null,null,null,null,null,null,null,null,null,null,null,null,null,null,26]
[null,"Aruda, Felice","Jockey Plaza","Licuadora Wormex 8 v.",69.3,"2003-06-17",12,831.59999999999991,"Joan","T. Cred. Saga Falabella",null,null,null,null,null,null,null,null,null,null,null,null,null,null,null,32]
[null,"Franklin, Larry","Mega Plaza","DVD Calfex ",1989,"2003-10-23",10,19890,"Juan","Tcred. Am.Exp Bco. Wiese",null,null,null,null,null,null,null,null,null,null,null,null,null,null,null,29]
[null,"Berwick, Sam","Caminos del Inca","DVD Boddometer",1377,"2003-06-21",19,26163,"Nancy","Tcred. Am.Exp Bco. Conti",null,null,null,null,null,null,null,null,null,null,null,null,null,null,null,39]
[null,"Petry, Robin","Comercial Arenales","Lavadora Auto 120 PR",826,"2003-06-21",16,13216,"Phipps","T. Cred. Saga Falabella",null,null,null,null,null,null,null,null,null,null,null,null,null,null,null,25]
[null,"Asonte, Toni","Comercial Arenales","Horno Microonda \"Rex\"",219,"2003-06-15",6,1314,"Lakeland","Tcred. Am.Exp Bco. Conti",null,null,null,null,null,null,null,null,null,null,null,null,null,null,null,40]
[null,"Dorfberg, Jeremy","Plaza San Miguel","Cocina Royal 14",1008,"2003-06-10",14,14112,"Sidney","Efectivo",null,null,null,null,null,null,null,null,null,null,null,null,null,null,null,13]
[null,"Wells, Jason","Plaza San Miguel","Licuadora Wormex 8 v.",45.8,"2003-10-19",1,45.8,"Gallery","T. Cred. Ripley",null,null,null,null,null,null,null,null,null,null,null,null,null,null,null,26]
[null,"Wells, Jason","Jockey Plaza","Licuadora Wormex 8 v.",49.3,"2003-10-13",13,640.9,"Music","Tcred. Dorada Bco. Interbanc",null,null,null,null,null,null,null,null,null,null,null,null,null,null,null,10]
[null,"Wells, Jason","Caminos del Inca","Refrigeradoras 12 p3",1239,"2003-08-28",16,19824,"Lakeland","Efectivo",null,null,null,null,null,null,null,null,null,null,null,null,null,null,null,38]
[null,"Petry, Robin","Comercial Arenales","Licuadora Wormex 8 v.",38,"2003-06-19",3,114,"Toy","T. Cred. Saga Falabella",null,null,null,null,null,null,null,null,null,null,null,null,null,null,null,9]
[null,"Mueller, Ursula","Comercial Arenales","Horno Microonda \"Rex\"",305,"2003-08-31",4,1220,"Kevin","Tcred. Ahorros Bco. Wiese",null,null,null,null,null,null,null,null,null,null,null,null,null,null,null,24]
[null,"Aruda, Felice","Jockey Plaza","Licuadora Wormex 8 v.",32.200000000000003,"2003-10-12",6,193.20000000000002,"Midwest","T. Cred. Plaza Vea",null,null,null,null,null,null,null,null,null,null,null,null,null,null,null,12]
[null,"Mueller, Ursula","Plaza San Miguel","Cocina Royal 14",786,"2003-08-30",2,1572,"Terry's","Tcred. Am.Exp Bco. Wiese",null,null,null,null,null,null,null,null,null,null,null,null,null,null,null,30]
[null,"Berwick, Sam","Mega Plaza","Licuadora Wormex 8 v.",35.799999999999997,"2003-07-29",9,322.2,"Cindy","Tcred. Am.Exp Bco. Wiese",null,null,null,null,null,null,null,null,null,null,null,null,null,null,null,28]
[null,"Kane, Sheryl","Comercial Arenales","Lavadora Auto 120 PR",1070,"2003-06-16",11,11770,"Ryan","Tcred. Personal Bco. Wiese",null,null,null,null,null,null,null,null,null,null,null,null,null,null,null,17]
[null,"Franklin, Larry","Plaza San Miguel","DVD Calfex ",842,"2003-08-08",9,7578,"Greenwood","Tcred. Dorada XP Bco. Cred",null,null,null,null,null,null,null,null,null,null,null,null,null,null,null,16]
[null,"Aruda, Felice","Caminos del Inca","DVD Calfex ",1042,"2003-06-16",3,3126,"Music","Tcred. Dorada XP Bco. Cred",null,null,null,null,null,null,null,null,null,null,null,null,null,null,null,18]
[null,"Berwick, Sam","Jockey Plaza","Lavadora Auto 120 PR",1081,"2003-11-18",3,3243,"Mitchell","T. Cred. E Wong",null,null,null,null,null,null,null,null,null,null,null,null,null,null,null,41]
[null,"Aruda, Felice","Mega Plaza","Equipo de sonido 1200 W",2233,"2003-11-20",1,2233,"Andy","Tcred. Personal Bco. Wiese",null,null,null,null,null,null,null,null,null,null,null,null,null,null,null,23]
[null,"Petry, Robin","Mega Plaza","Equipo de sonido 1200 W",615,"2003-11-09",9,5535,"Cindy","T. Cred. Saga Falabella",null,null,null,null,null,null,null,null,null,null,null,null,null,null,null,28]
[null,"Kane, Sheryl","Plaza San Miguel","DVD Boddometer",1259,"2003-07-31",4,5036,"Lakeland","T. Cred. E Wong",null,null,null,null,null,null,null,null,null,null,null,null,null,null,null,5]
[null,"Mueller, Ursula","Comercial Arenales","Equipo de sonido 1200 W",738,"2003-10-10",7,5166,"David","Tcred. Am.Exp Bco. Interbanc",null,null,null,null,null,null,null,null,null,null,null,null,null,null,null,1]
[null,"Corwick, Rob","Caminos del Inca","Horno Microonda \"Rex\"",177,"2003-11-12",5,885,"Linda","Tcred. Am.Exp Bco. Cred",null,null,null,null,null,null,null,null,null,null,null,null,null,null,null,8]
[null,"Aruda, Felice","Jockey Plaza","Lavadora Auto 120 PR",1145,"2003-11-18",19,21755,"Howard","Tcred. Dorada Bco. Interbanc",null,null,null,null,null,null,null,null,null,null,null,null,null,null,null,31]
[null,"Mueller, Ursula","Mega Plaza","Horno Microonda \"Rex\"",277,"2003-07-07",1,277,"Andy","Efectivo",null,null,null,null,null,null,null,null,null,null,null,null,null,null,null,23]
[null,"Asonte, Toni","Jockey Plaza","Licuadora Wormex 8 v.",68.5,"2003-11-11",3,205.5,"Cronkite","Tcred. Ahorros Bco. Wiese",null,null,null,null,null,null,null,null,null,null,null,null,null,null,null,14]
[null,"Mueller, Ursula","Comercial Arenales","Refrigeradoras 12 p3",635,"2003-09-12",15,9525,"Lakeland","Tcred. Personal Bco. Wiese",null,null,null,null,null,null,null,null,null,null,null,null,null,null,null,38]
[null,"Berwick, Sam","Caminos del Inca","Licuadora Wormex 8 v.",60,"2003-10-03",19,1140,"Juan","Tcred. Ahorros Bco. Conti",null,null,null,null,null,null,null,null,null,null,null,null,null,null,null,29]
[null,"Corwick, Rob","Comercial Arenales","Equipo de sonido 1200 W",489,"2003-10-07",3,1467,"Stepforth","Efectivo",null,null,null,null,null,null,null,null,null,null,null,null,null,null,null,33]
[null,"Mueller, Ursula","Mega Plaza","Refrigeradoras 12 p3",1553,"2003-10-06",2,3106,"Cronkite","Tcred. Credimas Bco. Cred",null,null,null,null,null,null,null,null,null,null,null,null,null,null,null,14]
[null,"Berwick, Sam","Mega Plaza","Lavadora Auto 120 PR",865,"2003-09-18",16,13840,"Andy","Tcred. Ahorros Bco. Conti",null,null,null,null,null,null,null,null,null,null,null,null,null,null,null,23]
[null,"Corwick, Rob","Plaza San Miguel","DVD Boddometer",1809,"2003-11-14",12,21708,"Kyle","Efectivo",null,null,null,null,null,null,null,null,null,null,null,null,null,null,null,43]
[null,"Kane, Sheryl","Jockey Plaza","Horno Microonda \"Rex\"",194,"2003-07-21",8,1552,"Andy","Tcred. Am.Exp Bco. Conti",null,null,null,null,null,null,null,null,null,null,null,null,null,null,null,23]
[null,"Mueller, Ursula","Mega Plaza","Horno Microonda \"Rex\"",272,"2003-10-12",14,3808,"Westside","Tcred. Ahorros Bco. Wiese",null,null,null,null,null,null,null,null,null,null,null,null,null,null,null,15]
[null,"Dorfberg, Jeremy","Mega Plaza","DVD Boddometer",{"$f":"IF(LEFT(D203,2)=\"Li\",RANDBETWEEN(300,800)/10,IF(LEFT(D203,2)=\"Ho\",RANDBETWEEN(160,320),IF(LEFT(D203,2)=\"La\",RANDBETWEEN(800,1200),IF(LEFT(D203,2)=\"Co\",RANDBETWEEN(640,1200),RANDBETWEEN(460,2440)))))","v":1532},"2003-09-12",16,{"$f":"E203*G203","v":24512},"Lakeland","Tcred. Am.Exp Bco. Wiese",null,null,null,null,null,null,null,null,null,null,null,null,null,null,null,{"$f":"RANDBETWEEN(1,43)","v":5}]
[null,"Dorfberg, Jeremy","Jockey Plaza","DVD Calfex ",1790,"2003-11-04",19,34010,{"$f":"LEFT(VLOOKUP(Z204,$T$2:$U$44,2,0),FIND(\" \",VLOOKUP(Z204,$T$2:$U$44,2,0))-1)","v":"Kevin"},"Tcred. Dorada XP Bco. Cred",null,null,null,null,null,null,null,null,null,null,null,null,null,null,null,24]
[null,"Aruda, Felice","Jockey Plaza","Lavadora Auto 120 PR",1144,"2003-08-31",2,2288,"Music","T. Cred. Saga Falabella",null,null,null,null,null,null,null,null,null,null,null,null,null,null,null,34]
[null,"Kane, Sheryl","Jockey Plaza","Equipo de sonido 1200 W",2152,"2003-06-12",17,36584,"Miller's","T. Cred. Saga Falabella",null,null,null,null,null,null,null,null,null,null,null,null,null,null,null,27]
[null,"Mueller, Ursula","Jockey Plaza","Licuadora Wormex 8 v.",35.299999999999997,"2003-07-10",12,423.59999999999997,"David","Tcred. Dorada Bco. Interbanc",null,null,null,null,null,null,null,null,null,null,null,null,null,null,null,1]
[null,"Dorfberg, Jeremy","Jockey Plaza","Lavadora Auto 120 PR",820,"2003-11-06",15,12300,"Barry","T. Cred. Plaza Vea",null,null,null,null,null,null,null,null,null,null,null,null,null,null,null,7]
[null,"Franklin, Larry","Comercial Arenales","Lavadora Auto 120 PR",897,"2003-09-09",6,5382,"Nebraska","Tcred. Credimas Bco. Cred",null,null,null,null,null,null,null,null,null,null,null,null,null,null,null,6]
[null,"Aruda, Felice","Plaza San Miguel","DVD Calfex ",1475,"2003-08-06",8,11800,"Mitchell","Tcred. Am.Exp Bco. Interbanc",null,null,null,null,null,null,null,null,null,null,null,null,null,null,null,41]
[null,"Mueller, Ursula","Caminos del Inca","DVD Boddometer",605,"2003-06-27",11,6655,"Juan","Efectivo",null,null,null,null,null,null,null,null,null,null,null,null,null,null,null,29]
[null,"Kane, Sheryl","Mega Plaza","Horno Microonda \"Rex\"",293,"2003-11-06",5,1465,"Andy","Tcred. Am.Exp Bco. Conti",null,null,null,null,null,null,null,null,null,null,null,null,null,null,null,23]
[null,"Petry, Robin","Plaza San Miguel","Refrigeradoras 12 p3",1577,"2003-10-28",3,4731,"National","Tcred. Credimas Bco. Cred",null,null,null,null,null,null,null,null,null,null,null,null,null,null,null,19]
[null,"Berwick, Sam","Caminos del Inca","Lavadora Auto 120 PR",943,"2003-07-01",12,11316,"Music","Efectivo",null,null,null,null,null,null,null,null,null,null,null,null,null,null,null,18]
[null,"Kane, Sheryl","Jockey Plaza","Licuadora Wormex 8 v.",54.2,"2003-07-16",20,1084,"Gallery","Tcred. Am.Exp Bco. Wiese",null,null,null,null,null,null,null,null,null,null,null,null,null,null,null,26]
[null,"Franklin, Larry","Jockey Plaza","Horno Microonda \"Rex\"",292,"2003-09-22",12,3504,"Nebraskan","Tcred. Personal Bco. Wiese",null,null,null,null,null,null,null,null,null,null,null,null,null,null,null,42]
[null,"Asonte, Toni","Comercial Arenales","Licuadora Wormex 8 v.",35.200000000000003,"2003-06-11",13,457.6,"Lakeland","Efectivo",null,null,null,null,null,null,null,null,null,null,null,null,null,null,null,3]
[null,"Kane, Sheryl","Comercial Arenales","Licuadora Wormex 8 v.",40.4,"2003-10-04",3,121.19999999999999,"Lakeland","Tcred. Am.Exp Bco. Interbanc",null,null,null,null,null,null,null,null,null,null,null,null,null,null,null,40]
[null,"Mueller, Ursula","Jockey Plaza","Licuadora Wormex 8 v.",67.8,"2003-10-31",2,135.6,"Kevin","Tcred. Am.Exp Bco. Conti",null,null,null,null,null,null,null,null,null,null,null,null,null,null,null,24]
[null,"Aruda, Felice","Comercial Arenales","DVD Boddometer",1797,"2003-10-27",2,3594,"Thomas","Tcred. Am.Exp Bco. Conti",null,null,null,null,null,null,null,null,null,null,null,null,null,null,null,36]
[null,"Berwick, Sam","Mega Plaza","DVD Calfex ",2247,"2003-06-11",8,17976,"Joan","Tcred. Ahorros Bco. Wiese",null,null,null,null,null,null,null,null,null,null,null,null,null,null,null,32]
[null,"Mueller, Ursula","Jockey Plaza","Lavadora Auto 120 PR",865,"2003-09-13",16,13840,"Toy","Efectivo",null,null,null,null,null,null,null,null,null,null,null,null,null,null,null,9]
[null,"Wells, Jason","Caminos del Inca","Cocina Royal 14",1156,"2003-07-24",3,3468,"Music","Efectivo",null,null,null,null,null,null,null,null,null,null,null,null,null,null,null,34]
[null,"Asonte, Toni","Caminos del Inca","Lavadora Auto 120 PR",867,"2003-08-25",20,17340,"Ryan","T. Cred. Ripley",null,null,null,null,null,null,null,null,null,null,null,null,null,null,null,17]
[null,"Wells, Jason","Mega Plaza","Horno Microonda \"Rex\"",256,"2003-07-26",7,1792,"Ryan","Efectivo",null,null,null,null,null,null,null,null,null,null,null,null,null,null,null,17]
[null,"Kane, Sheryl","Caminos del Inca","Refrigeradoras 12 p3",1818,"2003-07-04",1,1818,"Phipps","T. Cred. Saga Falabella",null,null,null,null,null,null,null,null,null,null,null,null,null,null,null,25]
[null,"Franklin, Larry","Comercial Arenales","Horno Microonda \"Rex\"",172,"2003-11-14",18,3096,"Nancy","Tcred. Ahorros Bco. Wiese",null,null,null,null,null,null,null,null,null,null,null,null,null,null,null,39]
[null,"Asonte, Toni","Caminos del Inca","Lavadora Auto 120 PR",904,"2003-09-15",15,13560,"Music","Efectivo",null,null,null,null,null,null,null,null,null,null,null,null,null,null,null,10]
[null,"Dorfberg, Jeremy","Plaza San Miguel","Lavadora Auto 120 PR",1147,"2003-10-23",5,5735,"Mitchell","T.Cred. Metro",null,null,null,null,null,null,null,null,null,null,null,null,null,null,null,41]
[null,"Dorfberg, Jeremy","Jockey Plaza","DVD Calfex ",1128,"2003-09-20",12,13536,"Karri","T. Cred. Saga Falabella",null,null,null,null,null,null,null,null,null,null,null,null,null,null,null,2]
[null,"Aruda, Felice","Caminos del Inca","Cocina Royal 14",909,"2003-10-08",7,6363,"Gary","Tcred. Am.Exp Bco. Interbanc",null,null,null,null,null,null,null,null,null,null,null,null,null,null,null,20]
[null,"Wells, Jason","Mega Plaza","DVD Boddometer",2080,"2003-06-18",17,35360,"Music","T. Cred. Ripley",null,null,null,null,null,null,null,null,null,null,null,null,null,null,null,10]
[null,"Aruda, Felice","Mega Plaza","DVD Calfex ",2389,"2003-09-24",9,21501,"Thomas","T. Cred. Plaza Vea",null,null,null,null,null,null,null,null,null,null,null,null,null,null,null,36]
[null,"Franklin, Larry","Plaza San Miguel","Lavadora Auto 120 PR",1067,"2003-10-06",5,5335,"Cronkite","Tcred. Dorada XP Bco. Cred",null,null,null,null,null,null,null,null,null,null,null,null,null,null,null,14]
[null,"Asonte, Toni","Comercial Arenales","Cocina Royal 14",1067,"2003-08-06",11,11737,"Kevin","Tcred. Dorada XP Bco. Cred",null,null,null,null,null,null,null,null,null,null,null,null,null,null,null,24]
[null,"Dorfberg, Jeremy","Plaza San Miguel","Licuadora Wormex 8 v.",60.9,"2003-10-11",8,487.2,"Gallery","T. Cred. E Wong",null,null,null,null,null,null,null,null,null,null,null,null,null,null,null,26]
[null,"Franklin, Larry","Caminos del Inca","Equipo de sonido 1200 W",798,"2003-10-05",15,11970,"Terry's","T. Cred. E Wong",null,null,null,null,null,null,null,null,null,null,null,null,null,null,null,30]
[null,"Asonte, Toni","Plaza San Miguel","Lavadora Auto 120 PR",1148,"2003-10-16",9,10332,"Mitchell","T. Cred. Plaza Vea",null,null,null,null,null,null,null,null,null,null,null,null,null,null,null,41]
[null,"Asonte, Toni","Comercial Arenales","Equipo de sonido 1200 W",1981,"2003-10-12",5,9905,"Cindy","Tcred. Ahorros Bco. Wiese",null,null,null,null,null,null,null,null,null,null,null,null,null,null,null,28]
[null,"Dorfberg, Jeremy","Mega Plaza","Refrigeradoras 12 p3",1760,"2003-08-14",8,14080,"Linda","Tcred. Dorada Bco. Interbanc",null,null,null,null,null,null,null,null,null,null,null,null,null,null,null,22]
[null,"Mueller, Ursula","Caminos del Inca","Horno Microonda \"Rex\"",254,"2003-10-07",14,3556,"Music","Tcred. Am.Exp Bco. Cred",null,null,null,null,null,null,null,null,null,null,null,null,null,null,null,10]
[null,"Berwick, Sam","Comercial Arenales","Cocina Royal 14",726,"2003-09-15",17,12342,"Howard","T. Cred. Ripley",null,null,null,null,null,null,null,null,null,null,null,null,null,null,null,31]
[null,"Berwick, Sam","Jockey Plaza","Lavadora Auto 120 PR",1198,"2003-06-13",11,13178,"Karri","Tcred. Credimas Bco. Cred",null,null,null,null,null,null,null,null,null,null,null,null,null,null,null,2]
[null,"Asonte, Toni","Plaza San Miguel","DVD Calfex ",957,"2003-10-27",7,6699,"Mitchell","T. Cred. Saga Falabella",null,null,null,null,null,null,null,null,null,null,null,null,null,null,null,41]
[null,"Franklin, Larry","Caminos del Inca","Lavadora Auto 120 PR",914,"2003-07-31",14,12796,"Ryan","Tcred. Dorada XP Bco. Cred",null,null,null,null,null,null,null,null,null,null,null,null,null,null,null,17]
[null,"Asonte, Toni","Caminos del Inca","DVD Calfex ",1351,"2003-10-03",20,27020,"Nebraska","Tcred. Personal Bco. Wiese",null,null,null,null,null,null,null,null,null,null,null,null,null,null,null,6]
[null,"Kane, Sheryl","Caminos del Inca","DVD Boddometer",1011,"2003-09-26",16,16176,"Nebraskan","Tcred. Am.Exp Bco. Conti",null,null,null,null,null,null,null,null,null,null,null,null,null,null,null,42]
[null,"Dorfberg, Jeremy","Mega Plaza","Cocina Royal 14",836,"2003-07-23",8,6688,"Sally","Tcred. Dorada XP Bco. Cred",null,null,null,null,null,null,null,null,null,null,null,null,null,null,null,37]
[null,"Kane, Sheryl","Comercial Arenales","Horno Microonda \"Rex\"",189,"2003-07-04",7,1323,"Lakeland","T. Cred. Plaza Vea",null,null,null,null,null,null,null,null,null,null,null,null,null,null,null,3]
[null,"Petry, Robin","Plaza San Miguel","Cocina Royal 14",1029,"2003-07-03",7,7203,"David","Tcred. Ahorros Bco. Wiese",null,null,null,null,null,null,null,null,null,null,null,null,null,null,null,1]
[null,"Corwick, Rob","Comercial Arenales","Equipo de sonido 1200 W",1166,"2003-08-14",18,20988,"Thomas","Tcred. Dorada XP Bco. Cred",null,null,null,null,null,null,null,null,null,null,null,null,null,null,null,36]
[null,"Corwick, Rob","Comercial Arenales","Cocina Royal 14",679,"2003-11-05",13,8827,"Barbara","T. Cred. Plaza Vea",null,null,null,null,null,null,null,null,null,null,null,null,null,null,null,21]
[null,"Mueller, Ursula","Plaza San Miguel","Lavadora Auto 120 PR",918,"2003-07-17",20,18360,"Ryan","Tcred. Dorada Bco. Interbanc",null,null,null,null,null,null,null,null,null,null,null,null,null,null,null,17]
[null,"Mueller, Ursula","Plaza San Miguel","Lavadora Auto 120 PR",1132,"2003-09-03",11,12452,"Ryan","Tcred. Am.Exp Bco. Conti",null,null,null,null,null,null,null,null,null,null,null,null,null,null,null,17]
[null,"Berwick, Sam","Jockey Plaza","DVD Calfex ",1033,"2003-10-08",14,14462,"Linda","T. Cred. E Wong",null,null,null,null,null,null,null,null,null,null,null,null,null,null,null,22]
[null,"Kane, Sheryl","Jockey Plaza","Lavadora Auto 120 PR",1130,"2003-09-20",14,15820,"Chad","Tcred. Ahorros Bco. Wiese",null,null,null,null,null,null,null,null,null,null,null,null,null,null,null,11]
[null,"Mueller, Ursula","Mega Plaza","Lavadora Auto 120 PR",1103,"2003-07-22",3,3309,"Stepforth","Tcred. Dorada Bco. Interbanc",null,null,null,null,null,null,null,null,null,null,null,null,null,null,null,33]
[null,"Asonte, Toni","Mega Plaza","Licuadora Wormex 8 v.",60.4,"2003-09-20",10,604,"Mitchell","Tcred. Credimas Bco. Cred",null,null,null,null,null,null,null,null,null,null,null,null,null,null,null,41]
[null,"Aruda, Felice","Mega Plaza","Cocina Royal 14",997,"2003-10-10",13,12961,"Gary","Tcred. Am.Exp Bco. Cred",null,null,null,null,null,null,null,null,null,null,null,null,null,null,null,20]
[null,"Berwick, Sam","Caminos del Inca","Cocina Royal 14",894,"2003-10-03",17,15198,"Phipps","Tcred. Credimas Bco. Cred",null,null,null,null,null,null,null,null,null,null,null,null,null,null,null,25]
[null,"Berwick, Sam","Caminos del Inca","Equipo de sonido 1200 W",1481,"2003-10-23",7,10367,"Barry","Tcred. Credimas Bco. Cred",null,null,null,null,null,null,null,null,null,null,null,null,null,null,null,7]
[null,"Berwick, Sam","Mega Plaza","Lavadora Auto 120 PR",948,"2003-11-12",18,17064,"Joan","Tcred. Ahorros Bco. Wiese",null,null,null,null,null,null,null,null,null,null,null,null,null,null,null,32]
[null,"Asonte, Toni","Mega Plaza","Refrigeradoras 12 p3",1382,"2003-10-17",4,5528,"Kevin","Tcred. Am.Exp Bco. Interbanc",null,null,null,null,null,null,null,null,null,null,null,null,null,null,null,24]
[null,"Petry, Robin","Comercial Arenales","Cocina Royal 14",760,"2003-09-08",9,6840,"Terry's","T.Cred. Metro",null,null,null,null,null,null,null,null,null,null,null,null,null,null,null,30]
[null,"Kane, Sheryl","Mega Plaza","Refrigeradoras 12 p3",2437,"2003-10-09",6,14622,"Howard","Tcred. Dorada XP Bco. Cred",null,null,null,null,null,null,null,null,null,null,null,null,null,null,null,31]
[null,"Mueller, Ursula","Comercial Arenales","DVD Calfex ",1534,"2003-07-30",10,15340,"Andy","T. Cred. E Wong",null,null,null,null,null,null,null,null,null,null,null,null,null,null,null,23]
[null,"Aruda, Felice","Caminos del Inca","DVD Calfex ",{"$f":"IF(LEFT(D267,2)=\"Li\",RANDBETWEEN(300,800)/10,IF(LEFT(D267,2)=\"Ho\",RANDBETWEEN(160,320),IF(LEFT(D267,2)=\"La\",RANDBETWEEN(800,1200),IF(LEFT(D267,2)=\"Co\",RANDBETWEEN(640,1200),RANDBETWEEN(460,2440)))))","v":2296},"2003-10-03",19,{"$f":"E267*G267","v":43624},"Nebraska","Tcred. Ahorros Bco. Wiese",null,null,null,null,null,null,null,null,null,null,null,null,null,null,null,{"$f":"RANDBETWEEN(1,43)","v":6}]
[null,"Kane, Sheryl","Caminos del Inca","DVD Boddometer",1961,"2003-11-06",2,3922,{"$f":"LEFT(VLOOKUP(Z268,$T$2:$U$44,2,0),FIND(\" \",VLOOKUP(Z268,$T$2:$U$44,2,0))-1)","v":"Thomas"},"Tcred. Am.Exp Bco. Interbanc",null,null,null,null,null,null,null,null,null,null,null,null,null,null,null,36]
[null,"Corwick, Rob","Mega Plaza","Equipo de sonido 1200 W",1147,"2003-10-30",4,4588,"Chad","Tcred. Am.Exp Bco. Conti",null,null,null,null,null,null,null,null,null,null,null,null,null,null,null,11]
[null,"Corwick, Rob","Caminos del Inca","Equipo de sonido 1200 W",1353,"2003-11-13",6,8118,"Chad","Efectivo",null,null,null,null,null,null,null,null,null,null,null,null,null,null,null,11]
[null,"Mueller, Ursula","Plaza San Miguel","Licuadora Wormex 8 v.",66.599999999999994,"2003-06-26",8,532.79999999999995,"Terry's","T. Cred. Plaza Vea",null,null,null,null,null,null,null,null,null,null,null,null,null,null,null,30]
[null,"Petry, Robin","Plaza San Miguel","Refrigeradoras 12 p3",1426,"2003-11-07",5,7130,"Ryan","Tcred. Ahorros Bco. Wiese",null,null,null,null,null,null,null,null,null,null,null,null,null,null,null,17]
[null,"Aruda, Felice","Comercial Arenales","DVD Boddometer",1410,"2003-07-08",17,23970,"Westside","Tcred. Am.Exp Bco. Wiese",null,null,null,null,null,null,null,null,null,null,null,null,null,null,null,15]
[null,"Kane, Sheryl","Caminos del Inca","Lavadora Auto 120 PR",948,"2003-07-03",11,10428,"Lakeland","T. Cred. E Wong",null,null,null,null,null,null,null,null,null,null,null,null,null,null,null,38]
[null,"Asonte, Toni","Jockey Plaza","DVD Calfex ",1343,"2003-06-12",15,20145,"Toy","Tcred. Ahorros Bco. Conti",null,null,null,null,null,null,null,null,null,null,null,null,null,null,null,9]
[null,"Franklin, Larry","Jockey Plaza","Equipo de sonido 1200 W",1648,"2003-09-01",15,24720,"Vera","Tcred. Ahorros Bco. Wiese",null,null,null,null,null,null,null,null,null,null,null,null,null,null,null,35]
[null,"Asonte, Toni","Mega Plaza","Lavadora Auto 120 PR",1001,"2003-06-13",9,9009,"Andy","Tcred. Am.Exp Bco. Wiese",null,null,null,null,null,null,null,null,null,null,null,null,null,null,null,23]
[null,"Kane, Sheryl","Mega Plaza","DVD Calfex ",1936,"2003-08-03",5,9680,"Lakeland","Tcred. Personal Bco. Wiese",null,null,null,null,null,null,null,null,null,null,null,null,null,null,null,5]
[null,"Kane, Sheryl","Jockey Plaza","Equipo de sonido 1200 W",564,"2003-11-20",9,5076,"Whole","T. Cred. Ripley",null,null,null,null,null,null,null,null,null,null,null,null,null,null,null,4]
[null,"Mueller, Ursula","Plaza San Miguel","Lavadora Auto 120 PR",1141,"2003-07-01",3,3423,"Terry's","T. Cred. E Wong",null,null,null,null,null,null,null,null,null,null,null,null,null,null,null,30]
[null,"Petry, Robin","Plaza San Miguel","Lavadora Auto 120 PR",1055,"2003-07-13",20,21100,"Chad","Tcred. Personal Bco. Wiese",null,null,null,null,null,null,null,null,null,null,null,null,null,null,null,11]
[null,"Wells, Jason","Mega Plaza","Refrigeradoras 12 p3",2193,"2003-08-01",19,41667,"Music","Tcred. Dorada XP Bco. Cred",null,null,null,null,null,null,null,null,null,null,null,null,null,null,null,34]
[null,"Wells, Jason","Mega Plaza","Refrigeradoras 12 p3",1634,"2003-09-17",11,17974,"Music","Tcred. Dorada XP Bco. Cred",null,null,null,null,null,null,null,null,null,null,null,null,null,null,null,34]
[null,"Kane, Sheryl","Comercial Arenales","Lavadora Auto 120 PR",1059,"2003-10-06",3,3177,"Music","Tcred. Credimas Bco. Cred",null,null,null,null,null,null,null,null,null,null,null,null,null,null,null,18]
[null,"Aruda, Felice","Plaza San Miguel","Licuadora Wormex 8 v.",66,"2003-09-14",9,594,"Nebraska","Tcred. Am.Exp Bco. Conti",null,null,null,null,null,null,null,null,null,null,null,null,null,null,null,6]
[null,"Franklin, Larry","Plaza San Miguel","Licuadora Wormex 8 v.",31.9,"2003-09-24",1,31.9,"Vera","Tcred. Credimas Bco. Cred",null,null,null,null,null,null,null,null,null,null,null,null,null,null,null,35]
[null,"Kane, Sheryl","Caminos del Inca","DVD Boddometer",1050,"2003-11-03",16,16800,"Howard","T. Cred. E Wong",null,null,null,null,null,null,null,null,null,null,null,null,null,null,null,31]
[null,"Corwick, Rob","Comercial Arenales","Horno Microonda \"Rex\"",242,"2003-10-14",13,3146,"Barbara","T. Cred. Saga Falabella",null,null,null,null,null,null,null,null,null,null,null,null,null,null,null,21]
[null,"Petry, Robin","Caminos del Inca","DVD Boddometer",996,"2003-07-26",6,5976,"Lakeland","Tcred. Credimas Bco. Cred",null,null,null,null,null,null,null,null,null,null,null,null,null,null,null,3]
[null,"Berwick, Sam","Mega Plaza","Licuadora Wormex 8 v.",41.5,"2003-07-14",4,166,"Kyle","T. Cred. Ripley",null,null,null,null,null,null,null,null,null,null,null,null,null,null,null,43]
[null,"Petry, Robin","Caminos del Inca","Licuadora Wormex 8 v.",37.299999999999997,"2003-07-27",8,298.39999999999998,"Chad","Tcred. Dorada Bco. Interbanc",null,null,null,null,null,null,null,null,null,null,null,null,null,null,null,11]
[null,"Mueller, Ursula","Comercial Arenales","DVD Boddometer",1987,"2003-11-18",3,5961,"Thomas","T. Cred. Ripley",null,null,null,null,null,null,null,null,null,null,null,null,null,null,null,36]
[null,"Franklin, Larry","Caminos del Inca","Cocina Royal 14",1045,"2003-10-14",2,2090,"National","Tcred. Am.Exp Bco. Cred",null,null,null,null,null,null,null,null,null,null,null,null,null,null,null,19]
[null,"Corwick, Rob","Plaza San Miguel","DVD Calfex ",2343,"2003-08-17",6,14058,"Midwest","Tcred. Am.Exp Bco. Cred",null,null,null,null,null,null,null,null,null,null,null,null,null,null,null,12]
[null,"Berwick, Sam","Jockey Plaza","Horno Microonda \"Rex\"",293,"2003-08-21",13,3809,"Greenwood","Tcred. Am.Exp Bco. Wiese",null,null,null,null,null,null,null,null,null,null,null,null,null,null,null,16]
[null,"Mueller, Ursula","Jockey Plaza","DVD Boddometer",1532,"2003-10-26",11,16852,"Cronkite","T. Cred. Ripley",null,null,null,null,null,null,null,null,null,null,null,null,null,null,null,14]
[null,"Dorfberg, Jeremy","Jockey Plaza","Refrigeradoras 12 p3",1211,"2003-07-06",17,20587,"Barry","T. Cred. E Wong",null,null,null,null,null,null,null,null,null,null,null,null,null,null,null,7]
[null,"Corwick, Rob","Mega Plaza","DVD Boddometer",1088,"2003-06-15",4,4352,"Howard","Tcred. Am.Exp Bco. Wiese",null,null,null,null,null,null,null,null,null,null,null,null,null,null,null,31]
[null,"Wells, Jason","Mega Plaza","Licuadora Wormex 8 v.",45,"2003-11-18",16,720,"Miller's","Efectivo",null,null,null,null,null,null,null,null,null,null,null,null,null,null,null,27]
[null,"Corwick, Rob","Mega Plaza","Cocina Royal 14",724,"2003-09-09",15,10860,"Music","T. Cred. Plaza Vea",null,null,null,null,null,null,null,null,null,null,null,null,null,null,null,10]
[null,"Petry, Robin","Jockey Plaza","DVD Calfex ",1863,"2003-09-25",2,3726,"Toy","Tcred. Am.Exp Bco. Wiese",null,null,null,null,null,null,null,null,null,null,null,null,null,null,null,9]
[null,"Franklin, Larry","Jockey Plaza","Equipo de sonido 1200 W",1848,"2003-07-22",13,24024,"Toy","T. Cred. Saga Falabella",null,null,null,null,null,null,null,null,null,null,null,null,null,null,null,9]
[null,"Dorfberg, Jeremy","Jockey Plaza","Lavadora Auto 120 PR",1089,"2003-07-16",4,4356,"Andy","T. Cred. Saga Falabella",null,null,null,null,null,null,null,null,null,null,null,null,null,null,null,23]
[null,"Dorfberg, Jeremy","Jockey Plaza","DVD Calfex ",691,"2003-11-20",3,2073,"Toy","Tcred. Am.Exp Bco. Conti",null,null,null,null,null,null,null,null,null,null,null,null,null,null,null,9]
[null,"Mueller, Ursula","Jockey Plaza","DVD Calfex ",1465,"2003-10-23",14,20510,"Whole","Tcred. Ahorros Bco. Conti",null,null,null,null,null,null,null,null,null,null,null,null,null,null,null,4]
[null,"Asonte, Toni","Comercial Arenales","Lavadora Auto 120 PR",1021,"2003-11-07",9,9189,"Music","Tcred. Credimas Bco. Cred",null,null,null,null,null,null,null,null,null,null,null,null,null,null,null,34]
[null,"Berwick, Sam","Caminos del Inca","Refrigeradoras 12 p3",568,"2003-07-23",11,6248,"Nebraskan","Tcred. Ahorros Bco. Wiese",null,null,null,null,null,null,null,null,null,null,null,null,null,null,null,42]
[null,"Petry, Robin","Plaza San Miguel","DVD Calfex ",2262,"2003-09-14",12,27144,"Cindy","Tcred. Dorada XP Bco. Cred",null,null,null,null,null,null,null,null,null,null,null,null,null,null,null,28]
[null,"Berwick, Sam","Mega Plaza","Equipo de sonido 1200 W",1254,"2003-07-02",13,16302,"Greenwood","Tcred. Am.Exp Bco. Interbanc",null,null,null,null,null,null,null,null,null,null,null,null,null,null,null,16]
[null,"Dorfberg, Jeremy","Mega Plaza","Refrigeradoras 12 p3",1892,"2003-11-03",3,5676,"Thomas","Tcred. Ahorros Bco. Conti",null,null,null,null,null,null,null,null,null,null,null,null,null,null,null,36]
[null,"Wells, Jason","Mega Plaza","Lavadora Auto 120 PR",1158,"2003-10-01",11,12738,"Greenwood","Tcred. Dorada Bco. Interbanc",null,null,null,null,null,null,null,null,null,null,null,null,null,null,null,16]
[null,"Franklin, Larry","Mega Plaza","DVD Boddometer",1014,"2003-10-10",10,10140,"Music","Tcred. Ahorros Bco. Conti",null,null,null,null,null,null,null,null,null,null,null,null,null,null,null,10]
[null,"Franklin, Larry","Mega Plaza","DVD Boddometer",2126,"2003-10-11",6,12756,"Joan","Tcred. Dorada XP Bco. Cred",null,null,null,null,null,null,null,null,null,null,null,null,null,null,null,32]
[null,"Franklin, Larry","Comercial Arenales","Licuadora Wormex 8 v.",52.3,"2003-11-20",11,575.29999999999995,"Gallery","Tcred. Ahorros Bco. Conti",null,null,null,null,null,null,null,null,null,null,null,null,null,null,null,26]
[null,"Asonte, Toni","Comercial Arenales","Horno Microonda \"Rex\"",186,"2003-06-29",13,2418,"Stepforth","T. Cred. Saga Falabella",null,null,null,null,null,null,null,null,null,null,null,null,null,null,null,33]
[null,"Corwick, Rob","Mega Plaza","Horno Microonda \"Rex\"",310,"2003-09-16",7,2170,"Gary","Tcred. Dorada XP Bco. Cred",null,null,null,null,null,null,null,null,null,null,null,null,null,null,null,20]
[null,"Wells, Jason","Jockey Plaza","Horno Microonda \"Rex\"",215,"2003-10-12",5,1075,"Vera","Tcred. Am.Exp Bco. Cred",null,null,null,null,null,null,null,null,null,null,null,null,null,null,null,35]
[null,"Franklin, Larry","Jockey Plaza","Horno Microonda \"Rex\"",239,"2003-11-19",6,1434,"Music","T. Cred. Saga Falabella",null,null,null,null,null,null,null,null,null,null,null,null,null,null,null,34]
[null,"Asonte, Toni","Caminos del Inca","Refrigeradoras 12 p3",901,"2003-07-21",12,10812,"Linda","Tcred. Am.Exp Bco. Cred",null,null,null,null,null,null,null,null,null,null,null,null,null,null,null,22]
[null,"Berwick, Sam","Mega Plaza","DVD Calfex ",1469,"2003-10-05",10,14690,"National","Tcred. Ahorros Bco. Conti",null,null,null,null,null,null,null,null,null,null,null,null,null,null,null,19]
[null,"Petry, Robin","Comercial Arenales","Equipo de sonido 1200 W",1732,"2003-11-17",19,32908,"Gary","T. Cred. Ripley",null,null,null,null,null,null,null,null,null,null,null,null,null,null,null,20]
[null,"Asonte, Toni","Plaza San Miguel","Lavadora Auto 120 PR",857,"2003-09-25",16,13712,"Lakeland","T. Cred. Saga Falabella",null,null,null,null,null,null,null,null,null,null,null,null,null,null,null,5]
[null,"Petry, Robin","Comercial Arenales","DVD Calfex ",1484,"2003-07-11",12,17808,"Miller's","Tcred. Credimas Bco. Cred",null,null,null,null,null,null,null,null,null,null,null,null,null,null,null,27]
[null,"Dorfberg, Jeremy","Jockey Plaza","DVD Boddometer",838,"2003-07-16",8,6704,"Miller's","Tcred. Ahorros Bco. Conti",null,null,null,null,null,null,null,null,null,null,null,null,null,null,null,27]
[null,"Franklin, Larry","Jockey Plaza","Horno Microonda \"Rex\"",171,"2003-09-14",13,2223,"Kyle","Tcred. Personal Bco. Wiese",null,null,null,null,null,null,null,null,null,null,null,null,null,null,null,43]
[null,"Franklin, Larry","Comercial Arenales","Refrigeradoras 12 p3",1458,"2003-06-23",5,7290,"Sally","Tcred. Ahorros Bco. Conti",null,null,null,null,null,null,null,null,null,null,null,null,null,null,null,37]
[null,"Mueller, Ursula","Comercial Arenales","Horno Microonda \"Rex\"",273,"2003-07-23",14,3822,"Juan","Tcred. Ahorros Bco. Wiese",null,null,null,null,null,null,null,null,null,null,null,null,null,null,null,29]
[null,"Kane, Sheryl","Plaza San Miguel","Lavadora Auto 120 PR",932,"2003-09-01",2,1864,"Joan","Tcred. Ahorros Bco. Conti",null,null,null,null,null,null,null,null,null,null,null,null,null,null,null,32]
[null,"Aruda, Felice","Jockey Plaza","Cocina Royal 14",1171,"2003-08-17",20,23420,"Joan","Tcred. Am.Exp Bco. Cred",null,null,null,null,null,null,null,null,null,null,null,null,null,null,null,32]
[null,"Mueller, Ursula","Jockey Plaza","Cocina Royal 14",867,"2003-07-04",2,1734,"Midwest","Tcred. Am.Exp Bco. Conti",null,null,null,null,null,null,null,null,null,null,null,null,null,null,null,12]
[null,"Aruda, Felice","Plaza San Miguel","Licuadora Wormex 8 v.",{"$f":"IF(LEFT(D331,2)=\"Li\",RANDBETWEEN(300,800)/10,IF(LEFT(D331,2)=\"Ho\",RANDBETWEEN(160,320),IF(LEFT(D331,2)=\"La\",RANDBETWEEN(800,1200),IF(LEFT(D331,2)=\"Co\",RANDBETWEEN(640,1200),RANDBETWEEN(460,2440)))))","v":45.6},"2003-10-08",9,{"$f":"E331*G331","v":410.40000000000003},"Westside","T. Cred. E Wong",null,null,null,null,null,null,null,null,null,null,null,null,null,null,null,{"$f":"RANDBETWEEN(1,43)","v":15}]
[null,"Aruda, Felice","Jockey Plaza","Licuadora Wormex 8 v.",49.9,"2003-08-28",11,548.9,{"$f":"LEFT(VLOOKUP(Z332,$T$2:$U$44,2,0),FIND(\" \",VLOOKUP(Z332,$T$2:$U$44,2,0))-1)","v":"Joan"},"Efectivo",null,null,null,null,null,null,null,null,null,null,null,null,null,null,null,32]
[null,"Mueller, Ursula","Plaza San Miguel","Refrigeradoras 12 p3",2192,"2003-11-07",6,13152,"Sidney","T. Cred. Saga Falabella",null,null,null,null,null,null,null,null,null,null,null,null,null,null,null,13]
[null,"Berwick, Sam","Plaza San Miguel","DVD Calfex ",881,"2003-11-08",19,16739,"Joan","Tcred. Ahorros Bco. Conti",null,null,null,null,null,null,null,null,null,null,null,null,null,null,null,32]
[null,"Dorfberg, Jeremy","Comercial Arenales","DVD Boddometer",1311,"2003-10-07",16,20976,"Barry","Tcred. Ahorros Bco. Wiese",null,null,null,null,null,null,null,null,null,null,null,null,null,null,null,7]
[null,"Berwick, Sam","Jockey Plaza","Licuadora Wormex 8 v.",54,"2003-08-22",12,648,"Whole","T. Cred. Plaza Vea",null,null,null,null,null,null,null,null,null,null,null,null,null,null,null,4]
[null,"Petry, Robin","Caminos del Inca","Refrigeradoras 12 p3",564,"2003-08-01",17,9588,"Vera","Tcred. Am.Exp Bco. Cred",null,null,null,null,null,null,null,null,null,null,null,null,null,null,null,35]
[null,"Berwick, Sam","Mega Plaza","Lavadora Auto 120 PR",936,"2003-09-11",4,3744,"Gary","T. Cred. Saga Falabella",null,null,null,null,null,null,null,null,null,null,null,null,null,null,null,20]
[null,"Dorfberg, Jeremy","Comercial Arenales","DVD Calfex ",1489,"2003-08-27",16,23824,"Kevin","Tcred. Am.Exp Bco. Cred",null,null,null,null,null,null,null,null,null,null,null,null,null,null,null,24]
[null,"Berwick, Sam","Jockey Plaza","DVD Calfex ",883,"2003-11-20",6,5298,"Kevin","Tcred. Am.Exp Bco. Interbanc",null,null,null,null,null,null,null,null,null,null,null,null,null,null,null,24]
[null,"Petry, Robin","Plaza San Miguel","Licuadora Wormex 8 v.",47.8,"2003-08-26",7,334.59999999999997,"Music","Tcred. Dorada XP Bco. Cred",null,null,null,null,null,null,null,null,null,null,null,null,null,null,null,18]
[null,"Wells, Jason","Caminos del Inca","Lavadora Auto 120 PR",887,"2003-10-02",2,1774,"Nebraska","T. Cred. Plaza Vea",null,null,null,null,null,null,null,null,null,null,null,null,null,null,null,6]
[null,"Wells, Jason","Plaza San Miguel","Refrigeradoras 12 p3",1490,"2003-06-18",18,26820,"Howard","T. Cred. Plaza Vea",null,null,null,null,null,null,null,null,null,null,null,null,null,null,null,31]
[null,"Kane, Sheryl","Plaza San Miguel","Equipo de sonido 1200 W",1529,"2003-08-09",8,12232,"Karri","Tcred. Am.Exp Bco. Interbanc",null,null,null,null,null,null,null,null,null,null,null,null,null,null,null,2]
[null,"Kane, Sheryl","Jockey Plaza","DVD Calfex ",1293,"2003-08-27",10,12930,"Music","Efectivo",null,null,null,null,null,null,null,null,null,null,null,null,null,null,null,10]
[null,"Corwick, Rob","Comercial Arenales","Cocina Royal 14",973,"2003-06-11",18,17514,"Thomas","Tcred. Am.Exp Bco. Cred",null,null,null,null,null,null,null,null,null,null,null,null,null,null,null,36]
[null,"Berwick, Sam","Mega Plaza","Refrigeradoras 12 p3",1235,"2003-09-10",15,18525,"National","Tcred. Dorada Bco. Interbanc",null,null,null,null,null,null,null,null,null,null,null,null,null,null,null,19]
[null,"Corwick, Rob","Jockey Plaza","Equipo de sonido 1200 W",1413,"2003-08-27",7,9891,"Lakeland","Tcred. Ahorros Bco. Wiese",null,null,null,null,null,null,null,null,null,null,null,null,null,null,null,40]
[null,"Aruda, Felice","Caminos del Inca","Cocina Royal 14",965,"2003-06-29",13,12545,"Lakeland","Tcred. Am.Exp Bco. Wiese",null,null,null,null,null,null,null,null,null,null,null,null,null,null,null,40]
[null,"Corwick, Rob","Caminos del Inca","Cocina Royal 14",808,"2003-08-07",8,6464,"Linda","T. Cred. Saga Falabella",null,null,null,null,null,null,null,null,null,null,null,null,null,null,null,8]
[null,"Kane, Sheryl","Caminos del Inca","DVD Boddometer",1135,"2003-07-18",9,10215,"Howard","Tcred. Dorada Bco. Interbanc",null,null,null,null,null,null,null,null,null,null,null,null,null,null,null,31]
[null,"Asonte, Toni","Caminos del Inca","Refrigeradoras 12 p3",816,"2003-07-08",4,3264,"Lakeland","Tcred. Credimas Bco. Cred",null,null,null,null,null,null,null,null,null,null,null,null,null,null,null,5]
[null,"Petry, Robin","Plaza San Miguel","Lavadora Auto 120 PR",1177,"2003-08-24",20,23540,"Gary","Tcred. Dorada XP Bco. Cred",null,null,null,null,null,null,null,null,null,null,null,null,null,null,null,20]
[null,"Aruda, Felice","Jockey Plaza","Cocina Royal 14",693,"2003-09-04",18,12474,"Toy","Tcred. Am.Exp Bco. Wiese",null,null,null,null,null,null,null,null,null,null,null,null,null,null,null,9]
[null,"Dorfberg, Jeremy","Mega Plaza","Refrigeradoras 12 p3",1950,"2003-10-20",8,15600,"Chad","Tcred. Am.Exp Bco. Cred",null,null,null,null,null,null,null,null,null,null,null,null,null,null,null,11]
[null,"Corwick, Rob","Mega Plaza","Horno Microonda \"Rex\"",256,"2003-11-13",6,1536,"Nebraska","Tcred. Dorada Bco. Interbanc",null,null,null,null,null,null,null,null,null,null,null,null,null,null,null,6]
[null,"Aruda, Felice","Caminos del Inca","Licuadora Wormex 8 v.",66.5,"2003-09-05",7,465.5,"Linda","Tcred. Am.Exp Bco. Interbanc",null,null,null,null,null,null,null,null,null,null,null,null,null,null,null,22]
[null,"Corwick, Rob","Mega Plaza","Horno Microonda \"Rex\"",221,"2003-10-05",5,1105,"Nancy","T. Cred. Plaza Vea",null,null,null,null,null,null,null,null,null,null,null,null,null,null,null,39]
[null,"Dorfberg, Jeremy","Plaza San Miguel","Refrigeradoras 12 p3",1335,"2003-09-23",17,22695,"Toy","Tcred. Credimas Bco. Cred",null,null,null,null,null,null,null,null,null,null,null,null,null,null,null,9]
[null,"Petry, Robin","Jockey Plaza","Lavadora Auto 120 PR",1014,"2003-07-26",13,13182,"Lakeland","Tcred. Am.Exp Bco. Cred",null,null,null,null,null,null,null,null,null,null,null,null,null,null,null,40]
[null,"Aruda, Felice","Jockey Plaza","DVD Boddometer",962,"2003-08-17",17,16354,"Midwest","Tcred. Am.Exp Bco. Wiese",null,null,null,null,null,null,null,null,null,null,null,null,null,null,null,12]

{"sheet":"Macro 06","index":10,"n_rows":1247,"n_cols":11,"rows_kept":1247,"cut":false,"hidden":false,"merged":[[0,0,0,9]]}
["VENTAS DIARIAS"]
["Tienda","Dia","Manzana","Pera","Melocotón","Naranja","Papaya","Almacén","Vendedor","FormaPago","Total"]
["Plaza Norte","Miércoles",258,68,171,916,509,"Los Olivos","Báslavi","TC. Bco. Wiese",{"$f":"SUM(C3:G3)","v":1922}]
["Assian Food","Miércoles",302,66,162,907,471,"Callao","Otto","TC. Bco. Wiese",1908]
["Lago Plaza","Sábado",338,67,139,881,461,"Atocongo","Gissela","Efectivo",1886]
["Dino's Market","Martes",262,70,128,834,550,"Ate","Marco","TC. Metro",1844]
["Lago Plaza","Miércoles",255,"}",126,952,543,"Callao","Báslavi","TC. Metro",1876]
["Dino's Market","Martes",281,64,176,834,551,"Los Olivos","Gissela","TC. Bco. Wiese",1906]
["Plaza Norte","Viernes",277,72,142,909,511,"Los Olivos","Gissela","TC. Bco. Wiese",1911]
["Lago Plaza","Jueves",321,66,152,967,507,"Los Olivos","Yaco","TC. Bco. Wiese",2013]
["Plaza Norte","Sábado",266,55,138,910,495,"Los Olivos","Gissela","Efectivo",1864]
["Plaza Norte","Viernes",314,53,179,947,521,"Atocongo","Báslavi","Efectivo",2014]
["Centro Plaza","Miércoles",323,76,149,972,534,"Atocongo","Yaco","Efectivo",2054]
["Dino's Market","Lunes",277,70,163,821,468,"Atocongo","Yaco","TC Bco. Crédito",1799]
["Assian Food","Martes",280,66,147,836,558,"Los Olivos","Báslavi","TC. Bco. Wiese",1887]
["Lago Plaza","Miércoles",271,76,167,950,557,"Los Olivos","Isabel","TC Bco. Crédito",2021]
["Lago Plaza","Sábado",334,74,132,824,535,"Atocongo","Otto","Efectivo",1899]
["Assian Food","Lunes",330,58,124,896,535,"Callao","Otto","Efectivo",1943]
["Centro Plaza","Sábado",258,75,152,940,493,"Ate","Marco","TC Bco. Crédito",1918]
["Centro Plaza","Jueves",329,62,140,817,474,"Ate","Isabel","TC Bco. Crédito",1822]
["Lago Plaza","Sábado",349,63,169,827,547,"Ate","Báslavi","TC. Bco. Wiese",1955]
["Dino's Market","Miércoles",277,50,123,936,491,"Callao","Isabel","TC. Metro",1877]
["Dino's Market","Lunes",313,70,149,912,454,"Atocongo","Gissela","TC. Bco. Wiese",1898]
["Centro Plaza","Miércoles",274,66,129,866,547,"Los Olivos","Otto","TC. Metro",1882]
["Assian Food","Jueves",257,62,127,877,460,"Atocongo","Yaco","Efectivo",1783]
["Lago Plaza","Jueves",271,71,174,891,509,"Ate","Otto","TC. Bco. Wiese",1916]
["Plaza Norte","Viernes",349,72,142,972,505,"Callao","Yaco","TC. Metro",2040]
["Plaza Norte","Sábado",313,61,176,917,484,"Los Olivos","Otto","Efectivo",1951]
["Plaza Norte","Miércoles",293,70,156,815,506,"Ate","Báslavi","TC. Metro",1840]
["Plaza Norte","Viernes",336,52,153,967,546,"Los Olivos","Báslavi","Efectivo",2054]
["Dino's Market","Sábado",253,51,162,930,499,"Ate","Otto","TC. Bco. Wiese",1895]
["Plaza Norte","Jueves",252,76,126,965,466,"Atocongo","Yaco","TC Bco. Crédito",1885]
["Dino's Market","Miércoles",282,67,146,889,457,"Atocongo","Marco","Efectivo",1841]
["Dino's Market","Miércoles",272,76,121,866,508,"Atocongo","Marco","TC Bco. Crédito",1843]
["Centro Plaza","Jueves",309,51,146,820,468,"Atocongo","Gissela","TC. Bco. Wiese",1794]
["Centro Plaza","Jueves",331,56,143,955,495,"Callao","Yaco","TC. Metro",1980]
["Lago Plaza","Martes",280,53,179,970,461,"Atocongo","Otto","TC. Metro",1943]
["Dino's Market","Viernes",294,79,175,899,533,"Los Olivos","Isabel","TC Bco. Crédito",1980]
["Dino's Market","Lunes",287,59,147,958,508,"Ate","Isabel","Efectivo",1959]
["Assian Food","Lunes",345,66,169,816,491,"Callao","Gissela","Efectivo",1887]
["Dino's Market","Martes",291,51,151,818,500,"Atocongo","Báslavi","TC Bco. Crédito",1811]
["Plaza Norte","Martes",261,52,137,921,483,"Ate","Báslavi","TC Bco. Crédito",1854]
["Centro Plaza","Sábado",333,57,168,911,471,"Callao","Báslavi","TC. Metro",1940]
["Dino's Market","Jueves",333,67,134,975,488,"Callao","Isabel","TC Bco. Crédito",1997]
["Lago Plaza","Martes",269,51,149,859,506,"Atocongo","Báslavi","Efectivo",1834]
["Centro Plaza","Sábado",273,64,150,818,560,"Callao","Isabel","Efectivo",1865]
["Dino's Market","Jueves",309,65,147,907,481,"Callao","Isabel","TC Bco. Crédito",1909]
["Lago Plaza","Lunes",290,59,123,878,508,"Callao","Marco","TC Bco. Crédito",1858]
["Centro Plaza","Lunes",277,77,121,852,471,"Ate","Báslavi","TC. Metro",1798]
["Dino's Market","Martes",314,74,136,820,461,"Atocongo","Báslavi","TC. Bco. Wiese",1805]
["Dino's Market","Sábado",344,58,176,947,523,"Ate","Báslavi","TC. Metro",2048]
["Lago Plaza","Sábado",343,52,163,921,494,"Ate","Otto","Efectivo",1973]
["Dino's Market","Viernes",334,63,159,853,530,"Atocongo","Otto","TC. Bco. Wiese",1939]
["Plaza Norte","Miércoles",327,75,140,856,500,"Ate","Isabel","TC Bco. Crédito",1898]
["Lago Plaza","Sábado",314,57,122,865,515,"Los Olivos","Otto","TC. Metro",1873]
["Centro Plaza","Viernes",291,52,163,885,545,"Atocongo","Gissela","TC. Bco. Wiese",1936]
["Plaza Norte","Sábado",309,62,125,962,558,"Ate","Isabel","TC Bco. Crédito",2016]
["Centro Plaza","Jueves",306,55,140,834,549,"Atocongo","Isabel","TC Bco. Crédito",1884]
["Centro Plaza","Lunes",267,70,138,823,461,"Los Olivos","Isabel","TC Bco. Crédito",1759]
["Dino's Market","Viernes",346,57,161,931,500,"Ate","Báslavi","TC. Bco. Wiese",1995]
["Plaza Norte","Jueves",281,69,135,823,503,"Los Olivos","Yaco","TC Bco. Crédito",1811]
["Dino's Market","Sábado",285,53,135,890,558,"Ate","Gissela","TC. Bco. Wiese",1921]
["Assian Food","Miércoles",338,58,121,907,535,"Atocongo","Gissela","TC. Metro",1959]
["Lago Plaza","Martes",278,58,123,851,500,"Los Olivos","Báslavi","TC. Bco. Wiese",1810]
["Lago Plaza","Viernes",337,59,124,837,513,"Ate","Báslavi","TC Bco. Crédito",1870]
["Assian Food","Lunes",257,52,174,846,554,"Callao","Isabel","TC. Bco. Wiese",1883]
["Plaza Norte","Lunes",342,50,153,837,484,"Atocongo","Gissela","Efectivo",{"$f":"SUM(C67:G67)","v":1866}]
["Lago Plaza","Martes",261,54,159,826,478,"Los Olivos","Báslavi","TC Bco. Crédito",1778]
["Dino's Market","Martes",279,78,143,904,458,"Los Olivos","Marco","TC. Metro",1862]
["Lago Plaza","Viernes",303,63,122,941,544,"Callao","Báslavi","TC. Bco. Wiese",1973]
["Centro Plaza","Sábado",305,67,161,958,526,"Los Olivos","Marco","Efectivo",2017]
["Assian Food","Miércoles",271,57,131,955,499,"Callao","Marco","TC Bco. Crédito",1913]
["Lago Plaza","Viernes",324,64,126,864,532,"Callao","Marco","TC Bco. Crédito",1910]
["Plaza Norte","Jueves",309,51,146,820,468,"Atocongo","Gissela","TC Bco. Crédito",1794]
["Dino's Market","Jueves",320,63,148,870,530,"Los Olivos","Báslavi","TC. Metro",1931]
["Plaza Norte","Martes",254,80,129,905,502,"Callao","Gissela","TC. Bco. Wiese",1870]
["Dino's Market","Viernes",317,65,156,946,542,"Callao","Marco","TC. Bco. Wiese",2026]
["Lago Plaza","Sábado",278,66,121,827,489,"Los Olivos","Gissela","TC. Bco. Wiese",1781]
["Plaza Norte","Viernes",250,58,135,925,558,"Ate","Yaco","TC Bco. Crédito",1926]
["Lago Plaza","Martes",340,75,131,928,464,"Callao","Báslavi","TC. Bco. Wiese",1938]
["Dino's Market","Martes",297,75,178,810,527,"Callao","Otto","Efectivo",1887]
["Dino's Market","Jueves",316,80,126,866,524,"Callao","Isabel","TC. Metro",1912]
["Dino's Market","Sábado",256,58,144,825,498,"Los Olivos","Marco","TC Bco. Crédito",1781]
["Lago Plaza","Jueves",342,72,166,893,478,"Callao","Otto","TC. Metro",1951]
["Assian Food","Miércoles",335,79,135,944,458,"Los Olivos","Yaco","TC. Bco. Wiese",1951]
["Plaza Norte","Martes",268,55,125,803,513,"Ate","Yaco","TC. Metro",1764]
["Assian Food","Viernes",334,58,142,908,496,"Callao","Báslavi","Efectivo",1938]
["Assian Food","Miércoles",316,75,155,957,554,"Los Olivos","Otto","TC. Metro",2057]
["Dino's Market","Lunes",273,71,154,849,494,"Callao","Báslavi","TC. Metro",1841]
["Lago Plaza","Sábado",285,80,149,810,554,"Los Olivos","Báslavi","Efectivo",1878]
["Assian Food","Martes",291,80,163,924,529,"Atocongo","Gissela","TC Bco. Crédito",1987]
["Dino's Market","Sábado",334,52,147,835,492,"Callao","Marco","TC. Bco. Wiese",1860]
["Centro Plaza","Miércoles",261,58,139,856,516,"Atocongo","Yaco","TC. Bco. Wiese",1830]
["Assian Food","Viernes",266,59,134,886,512,"Atocongo","Isabel","TC. Bco. Wiese",1857]
["Plaza Norte","Miércoles",269,68,127,937,513,"Atocongo","Isabel","TC. Metro",1914]
["Dino's Market","Sábado",318,67,167,825,529,"Los Olivos","Marco","TC. Bco. Wiese",1906]
["Centro Plaza","Miércoles",320,75,157,959,460,"Callao","Marco","TC. Bco. Wiese",1971]
["Lago Plaza","Viernes",329,56,171,854,453,"Callao","Báslavi","Efectivo",1863]
["Assian Food","Lunes",312,75,153,828,511,"Callao","Yaco","TC. Bco. Wiese",1879]
["Centro Plaza","Viernes",350,65,144,917,490,"Callao","Yaco","TC. Bco. Wiese",1966]
["Assian Food","Jueves",291,59,130,910,557,"Ate","Isabel","TC. Metro",1947]
["Assian Food","Jueves",267,78,156,853,538,"Callao","Isabel","Efectivo",1892]
["Assian Food","Jueves",325,59,135,968,529,"Atocongo","Otto","TC. Bco. Wiese",2016]
["Lago Plaza","Jueves",344,65,145,821,479,"Callao","Gissela","Efectivo",1854]
["Plaza Norte","Sábado",303,59,177,974,509,"Atocongo","Báslavi","TC Bco. Crédito",2022]
["Assian Food","Viernes",319,69,169,836,558,"Los Olivos","Gissela","TC. Metro",1951]
["Lago Plaza","Sábado",258,75,152,940,493,"Ate","Marco","TC Bco. Crédito",1918]
["Assian Food","Jueves",308,56,136,934,510,"Los Olivos","Báslavi","TC. Metro",1944]
["Dino's Market","Sábado",346,79,162,894,557,"Ate","Báslavi","TC Bco. Crédito",2038]
["Dino's Market","Viernes",348,70,171,963,534,"Callao","Isabel","TC Bco. Crédito",2086]
["Lago Plaza","Lunes",304,59,126,867,467,"Los Olivos","Gissela","TC. Metro",1823]
["Centro Plaza","Martes",259,54,152,961,522,"Ate","Marco","Efectivo",1948]
["Lago Plaza","Martes",334,74,166,863,502,"Atocongo","Otto","TC. Bco. Wiese",1939]
["Plaza Norte","Martes",321,72,128,955,497,"Callao","Gissela","TC. Metro",1973]
["Assian Food","Martes",274,56,162,959,519,"Ate","Marco","TC Bco. Crédito",1970]
["Assian Food","Lunes",349,54,171,966,476,"Los Olivos","Marco","TC Bco. Crédito",2016]
["Lago Plaza","Martes",288,51,146,814,558,"Atocongo","Isabel","TC Bco. Crédito",1857]
["Centro Plaza","Sábado",295,74,145,896,532,"Los Olivos","Báslavi","TC. Bco. Wiese",1942]
["Dino's Market","Viernes",315,56,164,880,500,"Callao","Marco","TC. Metro",1915]
["Assian Food","Viernes",347,68,170,828,514,"Atocongo","Báslavi","TC Bco. Crédito",1927]
["Centro Plaza","Miércoles",268,54,179,831,534,"Ate","Isabel","Efectivo",1866]
["Lago Plaza","Martes",290,55,124,916,476,"Callao","Otto","Efectivo",1861]
["Lago Plaza","Sábado",312,70,153,830,499,"Callao","Yaco","TC. Bco. Wiese",1864]
["Lago Plaza","Viernes",293,58,141,865,490,"Atocongo","Gissela","TC. Bco. Wiese",1847]
["Centro Plaza","Viernes",250,70,154,889,520,"Ate","Yaco","TC Bco. Crédito",1883]
["Assian Food","Lunes",262,78,132,979,506,"Los Olivos","Yaco","Efectivo",1957]
["Assian Food","Sábado",313,61,176,917,484,"Los Olivos","Otto","TC. Metro",1951]
["Centro Plaza","Jueves",350,52,121,974,531,"Ate","Isabel","Efectivo",2028]
["Assian Food","Viernes",286,75,122,898,481,"Callao","Isabel","TC. Metro",1862]
["Dino's Market","Martes",324,62,150,843,496,"Atocongo","Gissela","TC Bco. Crédito",1875]
["Lago Plaza","Martes",294,51,165,850,554,"Ate","Otto","Efectivo",{"$f":"SUM(C131:G131)","v":1914}]
["Plaza Norte","Martes",312,78,132,933,454,"Los Olivos","Báslavi","TC. Metro",1909]
["Assian Food","Viernes",345,60,138,846,550,"Atocongo","Isabel","TC. Bco. Wiese",1939]
["Assian Food","Jueves",266,56,137,934,468,"Los Olivos","Gissela","TC. Bco. Wiese",1861]
["Lago Plaza","Viernes",266,59,173,828,468,"Callao","Yaco","TC. Metro",1794]
["Assian Food","Martes",274,70,164,900,494,"Ate","Otto","TC Bco. Crédito",1902]
["Plaza Norte","Lunes",300,75,140,808,467,"Atocongo","Isabel","TC. Metro",1790]
["Centro Plaza","Martes",349,72,129,901,558,"Callao","Isabel","Efectivo",2009]
["Lago Plaza","Sábado",326,58,163,940,549,"Los Olivos","Gissela","TC. Bco. Wiese",2036]
["Centro Plaza","Lunes",338,68,128,824,460,"Los Olivos","Marco","Efectivo",1818]
["Lago Plaza","Lunes",284,75,136,812,485,"Callao","Yaco","TC. Bco. Wiese",1792]
["Assian Food","Jueves",313,70,140,980,502,"Ate","Marco","TC Bco. Crédito",2005]
["Lago Plaza","Sábado",253,57,170,977,556,"Los Olivos","Yaco","TC. Bco. Wiese",2013]
["Dino's Market","Miércoles",338,58,121,907,535,"Atocongo","Gissela","TC. Metro",1959]
["Assian Food","Lunes",323,65,170,885,475,"Ate","Báslavi","Efectivo",1918]
["Plaza Norte","Sábado",331,57,162,921,488,"Los Olivos","Báslavi","TC Bco. Crédito",1959]
["Lago Plaza","Viernes",297,77,123,822,475,"Ate","Otto","TC Bco. Crédito",1794]
["Dino's Market","Jueves",279,79,170,879,497,"Atocongo","Marco","Efectivo",1904]
["Centro Plaza","Viernes",309,78,157,938,532,"Atocongo","Otto","TC Bco. Crédito",2014]
["Assian Food","Viernes",313,73,149,973,535,"Ate","Gissela","TC. Bco. Wiese",2043]
["Plaza Norte","Jueves",274,71,141,930,487,"Ate","Otto","Efectivo",1903]
["Dino's Market","Jueves",303,80,151,913,481,"Atocongo","Otto","TC. Bco. Wiese",1928]
["Plaza Norte","Viernes",328,73,129,912,502,"Atocongo","Otto","TC Bco. Crédito",1944]
["Centro Plaza","Sábado",301,51,180,856,535,"Los Olivos","Isabel","Efectivo",1923]
["Dino's Market","Miércoles",325,60,175,886,512,"Atocongo","Báslavi","Efectivo",1958]
["Dino's Market","Sábado",342,56,151,910,515,"Los Olivos","Yaco","TC Bco. Crédito",1974]
["Dino's Market","Sábado",288,71,178,884,455,"Los Olivos","Marco","TC. Metro",1876]
["Lago Plaza","Martes",269,51,149,859,506,"Atocongo","Báslavi","TC. Bco. Wiese",1834]
["Centro Plaza","Lunes",257,50,165,921,508,"Atocongo","Marco","TC. Metro",1901]
["Assian Food","Viernes",315,62,149,923,545,"Atocongo","Gissela","Efectivo",1994]
["Dino's Market","Lunes",261,59,173,842,481,"Callao","Otto","TC Bco. Crédito",1816]
["Lago Plaza","Viernes",333,69,127,833,554,"Callao","Otto","TC Bco. Crédito",1916]
["Dino's Market","Viernes",302,72,160,927,484,"Ate","Gissela","TC. Bco. Wiese",1945]
["Dino's Market","Martes",264,65,161,946,527,"Ate","Báslavi","TC Bco. Crédito",1963]
["Lago Plaza","Jueves",278,72,128,914,473,"Atocongo","Yaco","TC. Bco. Wiese",1865]
["Centro Plaza","Jueves",288,68,156,907,537,"Ate","Marco","TC. Bco. Wiese",1956]
["Centro Plaza","Jueves",333,52,138,802,488,"Atocongo","Isabel","TC. Metro",1813]
["Assian Food","Sábado",301,50,132,896,555,"Ate","Isabel","TC. Bco. Wiese",1934]
["Plaza Norte","Lunes",300,75,140,808,467,"Atocongo","Isabel","Efectivo",1790]
["Assian Food","Jueves",346,62,147,902,491,"Ate","Yaco","TC. Bco. Wiese",1948]
["Plaza Norte","Miércoles",333,55,180,926,524,"Atocongo","Isabel","TC Bco. Crédito",2018]
["Plaza Norte","Lunes",323,78,144,848,483,"Callao","Marco","TC. Metro",1876]
["Lago Plaza","Sábado",334,64,147,820,499,"Ate","Marco","TC. Metro",1864]
["Plaza Norte","Martes",253,59,174,903,456,"Ate","Marco","TC. Metro",1845]
["Lago Plaza","Jueves",274,68,137,923,560,"Ate","Gissela","TC. Metro",1962]
["Dino's Market","Martes",310,73,128,829,517,"Atocongo","Gissela","TC. Bco. Wiese",1857]
["Dino's Market","Viernes",301,79,122,967,505,"Callao","Marco","Efectivo",1974]
["Centro Plaza","Jueves",254,63,144,904,554,"Callao","Otto","TC. Bco. Wiese",1919]
["Dino's Market","Sábado",301,73,165,945,460,"Callao","Otto","Efectivo",1944]
["Plaza Norte","Viernes",294,75,126,903,489,"Callao","Otto","TC. Bco. Wiese",1887]
["Assian Food","Jueves",255,63,159,848,486,"Atocongo","Gissela","TC Bco. Crédito",1811]
["Plaza Norte","Sábado",330,73,123,978,544,"Los Olivos","Otto","Efectivo",2048]
["Centro Plaza","Jueves",340,58,148,976,558,"Los Olivos","Otto","TC Bco. Crédito",2080]
["Plaza Norte","Martes",283,68,172,886,521,"Atocongo","Yaco","TC Bco. Crédito",1930]
["Plaza Norte","Jueves",281,63,145,855,482,"Ate","Gissela","TC Bco. Crédito",1826]
["Lago Plaza","Lunes",309,59,169,853,471,"Los Olivos","Gissela","TC. Bco. Wiese",1861]
["Dino's Market","Jueves",319,55,169,896,468,"Atocongo","Otto","TC. Bco. Wiese",1907]
["Dino's Market","Lunes",348,60,121,969,558,"Atocongo","Marco","TC. Metro",2056]
["Lago Plaza","Viernes",350,60,178,934,495,"Atocongo","Isabel","TC. Bco. Wiese",2017]
["Lago Plaza","Miércoles",254,51,162,866,533,"Callao","Marco","TC. Bco. Wiese",1866]
["Lago Plaza","Lunes",349,66,151,972,556,"Ate","Yaco","TC. Metro",2094]
["Lago Plaza","Martes",314,74,136,820,461,"Atocongo","Báslavi","TC. Metro",1805]
["Assian Food","Miércoles",271,72,176,884,545,"Atocongo","Báslavi","TC Bco. Crédito",1948]
["Dino's Market","Martes",315,66,174,937,511,"Ate","Isabel","TC Bco. Crédito",2003]
["Lago Plaza","Lunes",317,57,167,858,555,"Callao","Isabel","TC. Metro",{"$f":"SUM(C195:G195)","v":1954}]
["Plaza Norte","Lunes",252,60,155,945,488,"Ate","Marco","TC Bco. Crédito",1900]
["Dino's Market","Jueves",309,51,165,900,483,"Atocongo","Báslavi","TC. Bco. Wiese",1908]
["Dino's Market","Jueves",322,58,166,941,560,"Atocongo","Báslavi","TC Bco. Crédito",2047]
["Assian Food","Sábado",330,68,127,891,490,"Callao","Otto","TC. Metro",1906]
["Assian Food","Martes",258,64,155,878,517,"Atocongo","Otto","TC. Metro",1872]
["Centro Plaza","Miércoles",281,63,130,825,546,"Los Olivos","Báslavi","Efectivo",1845]
["Centro Plaza","Miércoles",322,53,122,831,501,"Atocongo","Otto","TC Bco. Crédito",1829]
["Plaza Norte","Martes",273,63,174,976,509,"Los Olivos","Isabel","TC Bco. Crédito",1995]
["Assian Food","Miércoles",294,57,166,933,501,"Callao","Marco","TC. Metro",1951]
["Plaza Norte","Jueves",348,75,123,913,501,"Los Olivos","Báslavi","TC Bco. Crédito",1960]
["Plaza Norte","Martes",268,73,121,855,523,"Callao","Báslavi","TC Bco. Crédito",1840]
["Lago Plaza","Sábado",286,66,139,921,548,"Atocongo","Otto","TC Bco. Crédito",1960]
["Dino's Market","Sábado",266,77,171,971,545,"Atocongo","Isabel","TC. Metro",2030]
["Assian Food","Lunes",345,66,169,816,491,"Callao","Gissela","TC. Bco. Wiese",1887]
["Plaza Norte","Miércoles",281,63,130,825,546,"Los Olivos","Báslavi","Efectivo",1845]
["Plaza Norte","Martes",252,54,166,832,463,"Ate","Otto","TC. Bco. Wiese",1767]
["Dino's Market","Viernes",339,53,178,936,484,"Atocongo","Otto","TC Bco. Crédito",1990]
["Assian Food","Lunes",317,65,130,902,510,"Ate","Báslavi","Efectivo",1924]
["Lago Plaza","Miércoles",250,51,165,951,499,"Callao","Báslavi","TC Bco. Crédito",1916]
["Assian Food","Sábado",282,64,156,870,541,"Ate","Gissela","Efectivo",1913]
["Assian Food","Sábado",308,58,148,921,523,"Los Olivos","Gissela","Efectivo",1958]
["Assian Food","Jueves",298,50,121,934,522,"Ate","Gissela","TC Bco. Crédito",1925]
["Plaza Norte","Jueves",287,75,155,898,469,"Los Olivos","Marco","Efectivo",1884]
["Plaza Norte","Viernes",291,71,145,950,466,"Ate","Gissela","Efectivo",1923]
["Assian Food","Miércoles",282,50,166,902,480,"Callao","Yaco","TC. Metro",1880]
["Dino's Market","Martes",325,67,151,953,493,"Ate","Gissela","Efectivo",1989]
["Lago Plaza","Miércoles",250,67,123,891,488,"Ate","Isabel","TC Bco. Crédito",1819]
["Lago Plaza","Viernes",285,72,178,968,458,"Atocongo","Isabel","TC Bco. Crédito",1961]
["Plaza Norte","Martes",266,68,139,896,483,"Atocongo","Gissela","TC. Metro",1852]
["Assian Food","Jueves",296,59,149,954,545,"Ate","Gissela","TC. Metro",2003]
["Centro Plaza","Viernes",272,64,159,914,468,"Callao","Marco","Efectivo",1877]
["Dino's Market","Jueves",306,73,140,870,548,"Atocongo","Marco","Efectivo",1937]
["Lago Plaza","Viernes",316,61,177,902,510,"Callao","Gissela","TC Bco. Crédito",1966]
["Centro Plaza","Viernes",301,79,148,929,535,"Ate","Yaco","TC. Bco. Wiese",1992]
["Centro Plaza","Martes",344,55,127,860,529,"Los Olivos","Gissela","TC. Metro",1915]
["Lago Plaza","Martes",256,60,174,809,521,"Callao","Marco","TC. Bco. Wiese",1820]
["Plaza Norte","Lunes",289,75,127,975,481,"Atocongo","Marco","TC Bco. Crédito",1947]
["Centro Plaza","Jueves",310,52,177,807,488,"Atocongo","Yaco","TC Bco. Crédito",1834]
["Plaza Norte","Jueves",316,74,122,858,485,"Ate","Isabel","Efectivo",1855]
["Dino's Market","Jueves",344,69,135,904,538,"Callao","Isabel","TC. Metro",1990]
["Plaza Norte","Viernes",341,80,146,912,469,"Callao","Báslavi","TC. Bco. Wiese",1948]
["Centro Plaza","Sábado",289,69,169,902,551,"Los Olivos","Isabel","TC. Bco. Wiese",1980]
["Lago Plaza","Martes",325,77,122,809,463,"Los Olivos","Marco","TC Bco. Crédito",1796]
["Assian Food","Jueves",320,63,148,870,530,"Los Olivos","Báslavi","TC. Metro",1931]
["Plaza Norte","Lunes",324,58,179,929,492,"Callao","Gissela","Efectivo",1982]
["Assian Food","Viernes",336,52,153,967,546,"Los Olivos","Báslavi","TC. Metro",2054]
["Dino's Market","Lunes",277,78,158,863,468,"Ate","Isabel","Efectivo",1844]
["Centro Plaza","Martes",291,51,151,818,500,"Atocongo","Báslavi","TC Bco. Crédito",1811]
["Plaza Norte","Martes",268,73,121,855,523,"Callao","Báslavi","TC Bco. Crédito",1840]
["Centro Plaza","Sábado",316,57,122,845,514,"Los Olivos","Báslavi","TC. Bco. Wiese",1854]
["Centro Plaza","Miércoles",275,72,159,843,520,"Callao","Marco","TC Bco. Crédito",1869]
["Centro Plaza","Sábado",256,67,151,942,454,"Atocongo","Yaco","Efectivo",1870]
["Centro Plaza","Miércoles",346,72,128,815,528,"Los Olivos","Otto","Efectivo",1889]
["Centro Plaza","Viernes",270,65,136,890,510,"Los Olivos","Isabel","TC. Bco. Wiese",1871]
["Assian Food","Sábado",296,76,125,965,454,"Callao","Báslavi","Efectivo",1916]
["Plaza Norte","Lunes",331,77,178,975,469,"Los Olivos","Isabel","Efectivo",2030]
["Dino's Market","Martes",319,62,171,932,472,"Ate","Gissela","TC Bco. Crédito",1956]
["Assian Food","Viernes",291,70,138,963,459,"Atocongo","Marco","TC. Metro",1921]
["Lago Plaza","Miércoles",330,64,141,821,491,"Ate","Gissela","TC. Metro",1847]
["Assian Food","Jueves",282,74,153,879,528,"Los Olivos","Báslavi","TC. Metro",1916]
["Lago Plaza","Lunes",309,59,169,853,471,"Los Olivos","Gissela","TC. Bco. Wiese",1861]
["Plaza Norte","Sábado",285,80,149,810,554,"Los Olivos","Báslavi","TC. Bco. Wiese",1878]
["Centro Plaza","Lunes",278,63,153,880,488,"Callao","Isabel","TC. Metro",1862]
["Assian Food","Lunes",316,79,166,835,557,"Atocongo","Marco","TC Bco. Crédito",{"$f":"SUM(C259:G259)","v":1953}]
["Dino's Market","Jueves",271,54,121,928,542,"Callao","Báslavi","TC. Bco. Wiese",1916]
["Centro Plaza","Sábado",321,59,135,859,534,"Ate","Otto","TC. Metro",1908]
["Lago Plaza","Viernes",280,76,149,916,456,"Los Olivos","Otto","TC. Bco. Wiese",1877]
["Lago Plaza","Lunes",277,78,158,863,468,"Ate","Isabel","TC. Metro",1844]
["Plaza Norte","Miércoles",323,54,157,952,485,"Atocongo","Isabel","TC Bco. Crédito",1971]
["Centro Plaza","Miércoles",251,70,127,811,544,"Ate","Yaco","TC. Metro",1803]
["Lago Plaza","Martes",315,72,158,911,524,"Los Olivos","Isabel","TC Bco. Crédito",1980]
["Plaza Norte","Martes",305,50,136,828,535,"Los Olivos","Báslavi","Efectivo",1854]
["Lago Plaza","Viernes",258,58,129,886,512,"Los Olivos","Gissela","TC Bco. Crédito",1843]
["Lago Plaza","Martes",343,66,124,979,553,"Atocongo","Otto","TC. Metro",2065]
["Dino's Market","Jueves",264,67,166,901,530,"Atocongo","Otto","TC. Bco. Wiese",1928]
["Assian Food","Miércoles",347,65,142,958,480,"Callao","Gissela","TC. Metro",1992]
["Centro Plaza","Martes",345,76,166,841,451,"Los Olivos","Marco","TC. Metro",1879]
["Lago Plaza","Lunes",299,76,121,873,554,"Los Olivos","Gissela","Efectivo",1923]
["Assian Food","Sábado",303,69,167,849,502,"Ate","Otto","Efectivo",1890]
["Dino's Market","Jueves",317,55,137,929,499,"Callao","Báslavi","TC Bco. Crédito",1937]
["Assian Food","Jueves",303,74,178,851,515,"Atocongo","Gissela","TC. Metro",1921]
["Plaza Norte","Lunes",333,67,176,894,541,"Atocongo","Báslavi","Efectivo",2011]
["Plaza Norte","Miércoles",310,77,123,853,469,"Ate","Marco","TC. Bco. Wiese",1832]
["Dino's Market","Lunes",301,57,172,912,547,"Atocongo","Otto","Efectivo",1989]
["Lago Plaza","Lunes",283,66,170,866,504,"Los Olivos","Otto","TC. Bco. Wiese",1889]
["Plaza Norte","Viernes",343,65,131,830,547,"Callao","Isabel","TC. Bco. Wiese",1916]
["Dino's Market","Miércoles",272,54,129,890,537,"Callao","Báslavi","Efectivo",1882]
["Dino's Market","Sábado",342,56,151,910,515,"Los Olivos","Yaco","Efectivo",1974]
["Assian Food","Jueves",267,58,135,801,510,"Atocongo","Marco","TC. Metro",1771]
["Centro Plaza","Viernes",313,74,166,821,483,"Atocongo","Marco","TC. Bco. Wiese",1857]
["Dino's Market","Martes",283,78,154,807,470,"Callao","Marco","Efectivo",1792]
["Assian Food","Miércoles",335,51,145,944,512,"Ate","Isabel","TC Bco. Crédito",1987]
["Lago Plaza","Martes",250,71,126,913,539,"Callao","Marco","TC. Metro",1899]
["Dino's Market","Lunes",283,59,166,976,541,"Callao","Gissela","TC Bco. Crédito",2025]
["Lago Plaza","Jueves",297,59,131,868,471,"Atocongo","Gissela","Efectivo",1826]
["Centro Plaza","Lunes",321,69,140,895,485,"Ate","Yaco","TC Bco. Crédito",1910]
["Assian Food","Miércoles",312,80,161,918,547,"Los Olivos","Otto","TC. Metro",2018]
["Dino's Market","Jueves",342,60,141,897,482,"Los Olivos","Báslavi","TC. Bco. Wiese",1922]
["Assian Food","Lunes",330,67,175,829,500,"Atocongo","Isabel","Efectivo",1901]
["Plaza Norte","Sábado",283,63,125,924,482,"Atocongo","Otto","TC Bco. Crédito",1877]
["Centro Plaza","Viernes",299,79,167,846,554,"Los Olivos","Yaco","TC. Bco. Wiese",1945]
["Assian Food","Viernes",277,72,142,909,511,"Los Olivos","Gissela","TC Bco. Crédito",1911]
["Lago Plaza","Viernes",301,79,148,929,535,"Ate","Yaco","Efectivo",1992]
["Lago Plaza","Miércoles",287,77,166,860,546,"Los Olivos","Otto","TC Bco. Crédito",1936]
["Plaza Norte","Lunes",346,53,145,889,559,"Atocongo","Yaco","Efectivo",1992]
["Assian Food","Martes",265,54,176,820,496,"Callao","Isabel","TC Bco. Crédito",1811]
["Assian Food","Lunes",331,73,172,834,470,"Callao","Báslavi","TC. Bco. Wiese",1880]
["Centro Plaza","Viernes",302,72,160,927,484,"Ate","Gissela","TC. Bco. Wiese",1945]
["Dino's Market","Jueves",344,55,140,834,560,"Los Olivos","Yaco","TC Bco. Crédito",1933]
["Centro Plaza","Jueves",301,80,138,950,467,"Ate","Yaco","TC Bco. Crédito",1936]
["Lago Plaza","Viernes",307,69,133,840,538,"Los Olivos","Yaco","TC. Metro",1887]
["Dino's Market","Sábado",324,72,165,925,464,"Callao","Marco","Efectivo",1950]
["Centro Plaza","Jueves",331,56,143,955,495,"Callao","Yaco","TC. Metro",1980]
["Centro Plaza","Jueves",324,67,141,885,462,"Ate","Báslavi","TC. Metro",1879]
["Plaza Norte","Martes",350,59,143,914,473,"Ate","Gissela","Efectivo",1939]
["Plaza Norte","Sábado",296,53,168,913,529,"Ate","Gissela","Efectivo",1959]
["Centro Plaza","Sábado",342,75,142,979,497,"Callao","Yaco","TC. Bco. Wiese",2035]
["Centro Plaza","Lunes",294,52,144,888,554,"Atocongo","Gissela","TC. Bco. Wiese",1932]
["Lago Plaza","Miércoles",306,61,153,839,514,"Atocongo","Yaco","Efectivo",1873]
["Lago Plaza","Lunes",310,73,132,841,526,"Los Olivos","Gissela","Efectivo",1882]
["Centro Plaza","Sábado",271,79,173,873,475,"Callao","Gissela","TC Bco. Crédito",1871]
["Dino's Market","Miércoles",300,80,156,832,503,"Callao","Marco","TC. Metro",1871]
["Lago Plaza","Miércoles",346,65,162,825,506,"Callao","Gissela","Efectivo",1904]
["Dino's Market","Miércoles",343,74,133,951,554,"Atocongo","Marco","TC Bco. Crédito",2055]
["Centro Plaza","Sábado",349,62,161,950,475,"Los Olivos","Yaco","TC Bco. Crédito",1997]
["Dino's Market","Martes",288,63,139,896,517,"Ate","Báslavi","TC Bco. Crédito",1903]
["Dino's Market","Martes",305,55,178,843,459,"Los Olivos","Yaco","TC Bco. Crédito",1840]
["Lago Plaza","Miércoles",317,67,147,869,475,"Los Olivos","Marco","TC Bco. Crédito",{"$f":"SUM(C323:G323)","v":1875}]
["Assian Food","Miércoles",293,70,156,815,506,"Ate","Báslavi","TC. Bco. Wiese",1840]
["Dino's Market","Sábado",285,70,147,882,530,"Callao","Yaco","TC Bco. Crédito",1914]
["Plaza Norte","Viernes",291,78,144,959,483,"Atocongo","Yaco","TC. Bco. Wiese",1955]
["Assian Food","Viernes",325,69,153,924,452,"Ate","Marco","Efectivo",1923]
["Plaza Norte","Martes",277,79,169,974,554,"Callao","Gissela","TC Bco. Crédito",2053]
["Lago Plaza","Viernes",343,52,147,820,516,"Ate","Gissela","TC Bco. Crédito",1878]
["Assian Food","Martes",319,50,152,958,558,"Callao","Báslavi","TC. Bco. Wiese",2037]
["Centro Plaza","Jueves",329,55,122,840,547,"Los Olivos","Gissela","TC. Metro",1893]
["Centro Plaza","Sábado",339,65,124,877,512,"Los Olivos","Báslavi","TC. Bco. Wiese",1917]
["Plaza Norte","Sábado",284,61,128,906,543,"Los Olivos","Gissela","Efectivo",1922]
["Centro Plaza","Martes",311,79,131,886,456,"Callao","Marco","TC. Metro",1863]
["Dino's Market","Jueves",303,80,151,913,481,"Atocongo","Otto","Efectivo",1928]
["Dino's Market","Martes",337,56,173,921,468,"Ate","Otto","TC. Metro",1955]
["Centro Plaza","Miércoles",257,78,137,841,541,"Atocongo","Yaco","Efectivo",1854]
["Plaza Norte","Lunes",259,69,178,857,525,"Callao","Otto","Efectivo",1888]
["Centro Plaza","Jueves",301,80,138,950,467,"Ate","Yaco","Efectivo",1936]
["Dino's Market","Jueves",303,74,178,851,515,"Atocongo","Gissela","TC. Bco. Wiese",1921]
["Dino's Market","Martes",302,56,138,842,485,"Ate","Otto","TC. Bco. Wiese",1823]
["Plaza Norte","Lunes",260,74,131,904,531,"Atocongo","Báslavi","TC Bco. Crédito",1900]
["Plaza Norte","Miércoles",349,57,166,878,472,"Atocongo","Marco","Efectivo",1922]
["Lago Plaza","Martes",262,53,157,947,553,"Atocongo","Gissela","TC Bco. Crédito",1972]
["Plaza Norte","Viernes",349,66,120,848,506,"Los Olivos","Marco","Efectivo",1889]
["Assian Food","Sábado",308,75,171,909,513,"Atocongo","Marco","Efectivo",1976]
["Assian Food","Jueves",346,53,140,900,484,"Ate","Isabel","TC Bco. Crédito",1923]
["Dino's Market","Miércoles",283,57,175,844,513,"Atocongo","Yaco","TC Bco. Crédito",1872]
["Centro Plaza","Miércoles",294,80,160,844,520,"Callao","Báslavi","TC Bco. Crédito",1898]
["Dino's Market","Jueves",256,68,176,858,477,"Ate","Báslavi","Efectivo",1835]
["Plaza Norte","Viernes",273,78,120,828,477,"Ate","Gissela","TC Bco. Crédito",1776]
["Dino's Market","Lunes",251,59,158,801,483,"Ate","Marco","Efectivo",1752]
["Assian Food","Jueves",282,74,153,879,528,"Los Olivos","Báslavi","TC. Metro",1916]
["Plaza Norte","Miércoles",324,63,143,845,492,"Atocongo","Otto","TC Bco. Crédito",1867]
["Assian Food","Martes",350,80,171,926,501,"Callao","Gissela","TC. Bco. Wiese",2028]
["Plaza Norte","Miércoles",256,62,153,890,549,"Atocongo","Báslavi","TC. Bco. Wiese",1910]
["Centro Plaza","Sábado",300,77,123,946,513,"Callao","Isabel","Efectivo",1959]
["Plaza Norte","Viernes",295,50,148,833,518,"Callao","Yaco","Efectivo",1844]
["Assian Food","Lunes",285,55,168,834,464,"Ate","Isabel","TC. Bco. Wiese",1806]
["Plaza Norte","Jueves",262,73,139,906,462,"Atocongo","Yaco","TC. Metro",1842]
["Centro Plaza","Viernes",258,70,173,895,460,"Ate","Báslavi","Efectivo",1856]
["Assian Food","Martes",297,80,163,932,481,"Los Olivos","Marco","TC Bco. Crédito",1953]
["Centro Plaza","Jueves",289,50,133,868,549,"Ate","Yaco","TC. Bco. Wiese",1889]
["Dino's Market","Viernes",345,67,158,917,472,"Los Olivos","Otto","TC Bco. Crédito",1959]
["Dino's Market","Miércoles",312,80,161,918,547,"Los Olivos","Otto","Efectivo",2018]
["Assian Food","Martes",273,63,174,976,509,"Los Olivos","Isabel","TC. Bco. Wiese",1995]
["Plaza Norte","Miércoles",283,64,180,842,492,"Los Olivos","Otto","TC Bco. Crédito",1861]
["Lago Plaza","Miércoles",310,59,163,935,477,"Callao","Báslavi","Efectivo",1944]
["Dino's Market","Jueves",319,55,169,896,468,"Atocongo","Otto","TC Bco. Crédito",1907]
["Lago Plaza","Lunes",305,74,153,871,559,"Atocongo","Marco","TC. Metro",1962]
["Centro Plaza","Jueves",257,64,156,881,554,"Los Olivos","Marco","TC. Metro",1912]
["Plaza Norte","Lunes",284,65,142,922,524,"Callao","Isabel","TC. Bco. Wiese",1937]
["Dino's Market","Lunes",291,78,150,861,490,"Atocongo","Otto","TC. Metro",1870]
["Centro Plaza","Sábado",257,70,167,854,517,"Atocongo","Otto","TC Bco. Crédito",1865]
["Assian Food","Martes",296,53,147,926,507,"Callao","Yaco","Efectivo",1929]
["Lago Plaza","Sábado",277,55,169,868,461,"Atocongo","Yaco","TC Bco. Crédito",1830]
["Centro Plaza","Viernes",278,71,159,816,485,"Ate","Yaco","TC Bco. Crédito",1809]
["Lago Plaza","Sábado",331,57,162,921,488,"Los Olivos","Báslavi","TC. Metro",1959]
["Assian Food","Lunes",257,52,174,846,554,"Callao","Isabel","TC Bco. Crédito",1883]
["Centro Plaza","Sábado",291,77,144,818,510,"Los Olivos","Yaco","Efectivo",1840]
["Assian Food","Viernes",304,60,138,959,556,"Los Olivos","Otto","TC. Bco. Wiese",2017]
["Centro Plaza","Sábado",335,65,129,816,488,"Ate","Gissela","TC. Bco. Wiese",1833]
["Assian Food","Sábado",298,52,177,908,509,"Atocongo","Isabel","TC Bco. Crédito",1944]
["Dino's Market","Miércoles",271,51,175,918,514,"Ate","Báslavi","TC. Bco. Wiese",1929]
["Assian Food","Lunes",256,76,154,869,559,"Los Olivos","Gissela","Efectivo",1914]
["Plaza Norte","Martes",310,58,136,833,489,"Atocongo","Gissela","TC. Bco. Wiese",1826]
["Dino's Market","Martes",263,78,145,874,530,"Ate","Isabel","Efectivo",{"$f":"SUM(C387:G387)","v":1890}]
["Dino's Market","Sábado",338,75,134,863,514,"Callao","Báslavi","TC. Metro",1924]
["Centro Plaza","Martes",276,80,123,923,525,"Callao","Báslavi","TC. Bco. Wiese",1927]
["Lago Plaza","Sábado",339,54,152,963,453,"Los Olivos","Marco","Efectivo",1961]
["Dino's Market","Sábado",283,66,143,863,553,"Atocongo","Gissela","TC. Metro",1908]
["Lago Plaza","Lunes",296,68,145,846,496,"Los Olivos","Otto","Efectivo",1851]
["Assian Food","Sábado",260,58,175,894,505,"Los Olivos","Yaco","TC Bco. Crédito",1892]
["Centro Plaza","Viernes",258,50,172,923,550,"Atocongo","Báslavi","TC Bco. Crédito",1953]
["Plaza Norte","Lunes",294,52,144,888,554,"Atocongo","Gissela","TC. Bco. Wiese",1932]
["Plaza Norte","Lunes",299,69,122,914,560,"Los Olivos","Gissela","TC Bco. Crédito",1964]
["Lago Plaza","Miércoles",350,54,164,914,534,"Ate","Isabel","TC. Bco. Wiese",2016]
["Centro Plaza","Sábado",314,69,162,854,506,"Atocongo","Marco","TC Bco. Crédito",1905]
["Assian Food","Lunes",322,54,143,822,501,"Los Olivos","Isabel","TC. Bco. Wiese",1842]
["Plaza Norte","Sábado",345,80,120,907,550,"Los Olivos","Marco","Efectivo",2002]
["Lago Plaza","Jueves",295,50,148,913,532,"Ate","Marco","TC. Metro",1938]
["Assian Food","Jueves",333,52,138,802,488,"Atocongo","Isabel","TC. Metro",1813]
["Dino's Market","Sábado",284,61,128,906,543,"Los Olivos","Gissela","TC. Metro",1922]
["Plaza Norte","Martes",261,52,137,921,483,"Ate","Báslavi","TC. Metro",1854]
["Centro Plaza","Martes",334,58,126,823,471,"Ate","Otto","TC. Metro",1812]
["Dino's Market","Sábado",273,52,122,867,454,"Atocongo","Marco","TC. Metro",1768]
["Centro Plaza","Sábado",342,73,122,900,507,"Atocongo","Marco","Efectivo",1944]
["Lago Plaza","Miércoles",283,64,180,842,492,"Los Olivos","Otto","TC Bco. Crédito",1861]
["Assian Food","Jueves",274,71,141,930,487,"Ate","Otto","Efectivo",1903]
["Centro Plaza","Sábado",329,80,172,930,558,"Atocongo","Marco","TC. Bco. Wiese",2069]
["Centro Plaza","Jueves",250,80,177,850,498,"Callao","Marco","TC. Bco. Wiese",1855]
["Lago Plaza","Lunes",308,51,171,860,529,"Callao","Otto","TC. Bco. Wiese",1919]
["Assian Food","Sábado",277,74,121,934,540,"Callao","Gissela","TC. Metro",1946]
["Assian Food","Martes",325,56,135,882,476,"Ate","Isabel","TC Bco. Crédito",1874]
["Centro Plaza","Jueves",257,64,156,881,554,"Los Olivos","Marco","TC Bco. Crédito",1912]
["Centro Plaza","Lunes",319,68,176,921,535,"Callao","Otto","TC. Bco. Wiese",2019]
["Dino's Market","Viernes",310,65,131,822,513,"Ate","Báslavi","TC Bco. Crédito",1841]
["Centro Plaza","Sábado",348,59,129,820,543,"Atocongo","Marco","TC. Metro",1899]
["Plaza Norte","Sábado",270,62,154,971,467,"Callao","Marco","Efectivo",1924]
["Centro Plaza","Jueves",268,56,144,923,489,"Ate","Báslavi","Efectivo",1880]
["Plaza Norte","Sábado",258,74,141,893,472,"Ate","Gissela","TC. Metro",1838]
["Plaza Norte","Martes",259,51,141,883,480,"Ate","Isabel","TC. Bco. Wiese",1814]
["Centro Plaza","Martes",324,62,150,843,496,"Atocongo","Gissela","TC. Metro",1875]
["Dino's Market","Jueves",287,54,138,810,457,"Callao","Marco","TC Bco. Crédito",1746]
["Centro Plaza","Lunes",318,70,175,876,557,"Los Olivos","Báslavi","TC. Bco. Wiese",1996]
["Lago Plaza","Jueves",317,62,140,822,473,"Los Olivos","Báslavi","TC. Bco. Wiese",1814]
["Dino's Market","Sábado",348,59,129,820,543,"Atocongo","Marco","TC. Metro",1899]
["Plaza Norte","Martes",269,60,130,841,462,"Atocongo","Isabel","TC. Metro",1762]
["Dino's Market","Martes",278,58,123,851,500,"Los Olivos","Báslavi","TC. Metro",1810]
["Dino's Market","Viernes",303,64,146,884,463,"Callao","Marco","Efectivo",1860]
["Lago Plaza","Jueves",290,67,153,880,499,"Ate","Marco","TC. Metro",1889]
["Lago Plaza","Jueves",306,78,149,802,531,"Callao","Marco","TC Bco. Crédito",1866]
["Assian Food","Jueves",251,78,173,860,485,"Callao","Gissela","TC Bco. Crédito",1847]
["Dino's Market","Viernes",297,56,160,949,545,"Los Olivos","Isabel","Efectivo",2007]
["Assian Food","Martes",273,64,169,971,485,"Atocongo","Báslavi","TC Bco. Crédito",1962]
["Dino's Market","Miércoles",294,80,160,844,520,"Callao","Báslavi","TC Bco. Crédito",1898]
["Centro Plaza","Lunes",251,73,123,956,558,"Callao","Yaco","Efectivo",1961]
["Dino's Market","Miércoles",346,50,133,931,469,"Los Olivos","Otto","TC. Bco. Wiese",1929]
["Assian Food","Jueves",313,61,161,947,506,"Los Olivos","Isabel","TC Bco. Crédito",1988]
["Dino's Market","Lunes",256,76,154,869,559,"Los Olivos","Gissela","TC. Bco. Wiese",1914]
["Lago Plaza","Miércoles",282,56,123,820,462,"Los Olivos","Otto","TC. Bco. Wiese",1743]
["Assian Food","Viernes",289,57,155,939,472,"Ate","Gissela","Efectivo",1912]
["Lago Plaza","Jueves",324,74,153,878,520,"Los Olivos","Otto","TC Bco. Crédito",1949]
["Lago Plaza","Lunes",260,74,131,904,531,"Atocongo","Báslavi","TC. Bco. Wiese",1900]
["Dino's Market","Viernes",306,76,154,975,549,"Atocongo","Yaco","TC. Bco. Wiese",2060]
["Assian Food","Sábado",283,63,125,924,482,"Atocongo","Otto","Efectivo",1877]
["Assian Food","Miércoles",346,59,125,885,513,"Callao","Yaco","Efectivo",1928]
["Plaza Norte","Lunes",310,73,132,841,526,"Los Olivos","Gissela","TC Bco. Crédito",1882]
["Dino's Market","Viernes",269,72,120,911,558,"Callao","Gissela","TC. Metro",1930]
["Dino's Market","Sábado",299,68,121,949,548,"Los Olivos","Marco","TC. Bco. Wiese",1985]
["Assian Food","Jueves",316,74,122,858,485,"Ate","Isabel","TC. Bco. Wiese",{"$f":"SUM(C451:G451)","v":1855}]
["Lago Plaza","Viernes",289,51,121,930,451,"Atocongo","Báslavi","Efectivo",1842]
["Centro Plaza","Miércoles",271,51,175,918,514,"Ate","Báslavi","TC. Metro",1929]
["Dino's Market","Viernes",321,73,159,943,553,"Los Olivos","Báslavi","TC. Metro",2049]
["Assian Food","Martes",344,55,127,860,529,"Los Olivos","Gissela","TC. Bco. Wiese",1915]
["Plaza Norte","Viernes",334,58,142,908,496,"Callao","Báslavi","Efectivo",1938]
["Centro Plaza","Martes",298,66,129,846,451,"Atocongo","Yaco","TC. Metro",1790]
["Dino's Market","Sábado",328,71,152,948,487,"Atocongo","Marco","Efectivo",1986]
["Assian Food","Martes",350,80,171,926,501,"Callao","Gissela","TC Bco. Crédito",2028]
["Assian Food","Jueves",346,65,155,813,462,"Callao","Otto","TC. Metro",1841]
["Plaza Norte","Jueves",270,77,150,901,546,"Los Olivos","Gissela","Efectivo",1944]
["Lago Plaza","Sábado",301,64,129,952,520,"Atocongo","Otto","TC. Metro",1966]
["Assian Food","Sábado",285,59,130,837,478,"Callao","Gissela","TC Bco. Crédito",1789]
["Lago Plaza","Jueves",257,76,134,932,540,"Callao","Gissela","Efectivo",1939]
["Centro Plaza","Miércoles",289,62,156,843,540,"Callao","Marco","TC. Bco. Wiese",1890]
["Dino's Market","Jueves",269,74,176,818,555,"Atocongo","Báslavi","Efectivo",1892]
["Dino's Market","Sábado",349,62,161,950,475,"Los Olivos","Yaco","TC. Bco. Wiese",1997]
["Assian Food","Sábado",327,75,164,940,471,"Callao","Marco","TC Bco. Crédito",1977]
["Plaza Norte","Viernes",254,75,155,830,485,"Atocongo","Báslavi","TC. Metro",1799]
["Dino's Market","Jueves",269,58,138,908,534,"Ate","Otto","TC Bco. Crédito",1907]
["Lago Plaza","Viernes",335,65,154,954,483,"Los Olivos","Marco","TC. Bco. Wiese",1991]
["Dino's Market","Miércoles",255,62,126,952,543,"Callao","Báslavi","Efectivo",1938]
["Assian Food","Sábado",299,68,121,949,548,"Los Olivos","Marco","Efectivo",1985]
["Centro Plaza","Viernes",350,63,121,914,455,"Atocongo","Yaco","TC. Bco. Wiese",1903]
["Plaza Norte","Viernes",264,79,150,819,546,"Atocongo","Gissela","TC. Metro",1858]
["Assian Food","Martes",254,50,176,859,535,"Ate","Marco","TC Bco. Crédito",1874]
["Assian Food","Lunes",336,77,179,813,543,"Callao","Gissela","TC. Bco. Wiese",1948]
["Dino's Market","Sábado",307,66,130,817,475,"Callao","Isabel","TC. Bco. Wiese",1795]
["Plaza Norte","Lunes",303,67,179,812,462,"Ate","Otto","TC. Bco. Wiese",1823]
["Lago Plaza","Martes",311,73,145,910,554,"Los Olivos","Yaco","TC. Metro",1993]
["Dino's Market","Lunes",311,70,152,906,475,"Callao","Báslavi","TC. Bco. Wiese",1914]
["Dino's Market","Lunes",324,54,179,819,541,"Atocongo","Yaco","Efectivo",1917]
["Assian Food","Sábado",281,67,171,869,504,"Ate","Báslavi","TC. Metro",1892]
["Lago Plaza","Miércoles",302,72,151,857,489,"Atocongo","Yaco","TC. Metro",1871]
["Plaza Norte","Sábado",274,54,121,916,548,"Atocongo","Marco","TC. Bco. Wiese",1913]
["Assian Food","Jueves",285,60,180,804,505,"Atocongo","Yaco","Efectivo",1834]
["Centro Plaza","Viernes",344,70,152,922,454,"Los Olivos","Marco","TC Bco. Crédito",1942]
["Assian Food","Martes",346,52,180,900,558,"Los Olivos","Yaco","TC. Metro",2036]
["Assian Food","Viernes",325,75,135,979,494,"Callao","Gissela","TC Bco. Crédito",2008]
["Plaza Norte","Jueves",288,66,149,840,456,"Los Olivos","Yaco","TC Bco. Crédito",1799]
["Lago Plaza","Sábado",270,62,154,971,467,"Callao","Marco","TC Bco. Crédito",1924]
["Lago Plaza","Martes",310,57,173,855,462,"Ate","Marco","TC Bco. Crédito",1857]
["Centro Plaza","Viernes",266,59,134,886,512,"Atocongo","Isabel","TC Bco. Crédito",1857]
["Assian Food","Jueves",350,52,121,974,531,"Ate","Isabel","TC. Bco. Wiese",2028]
["Lago Plaza","Viernes",288,67,149,825,466,"Callao","Gissela","Efectivo",1795]
["Plaza Norte","Viernes",275,54,176,908,531,"Atocongo","Isabel","TC. Bco. Wiese",1944]
["Lago Plaza","Viernes",338,57,174,827,492,"Los Olivos","Isabel","TC. Metro",1888]
["Dino's Market","Viernes",252,53,147,830,503,"Callao","Gissela","Efectivo",1785]
["Lago Plaza","Lunes",259,69,178,857,525,"Callao","Otto","TC Bco. Crédito",1888]
["Centro Plaza","Sábado",317,65,140,964,539,"Ate","Otto","TC. Bco. Wiese",2025]
["Plaza Norte","Sábado",274,54,121,916,548,"Atocongo","Marco","TC. Bco. Wiese",1913]
["Assian Food","Viernes",274,65,149,953,517,"Callao","Yaco","TC. Metro",1958]
["Lago Plaza","Sábado",315,54,159,906,530,"Atocongo","Marco","TC Bco. Crédito",1964]
["Lago Plaza","Martes",335,51,130,802,543,"Callao","Yaco","Efectivo",1861]
["Dino's Market","Viernes",289,51,121,930,451,"Atocongo","Báslavi","Efectivo",1842]
["Plaza Norte","Viernes",316,61,177,902,510,"Callao","Gissela","TC. Bco. Wiese",1966]
["Centro Plaza","Miércoles",340,72,169,876,531,"Ate","Marco","Efectivo",1988]
["Plaza Norte","Lunes",311,70,152,906,475,"Callao","Báslavi","Efectivo",1914]
["Centro Plaza","Viernes",331,79,179,801,544,"Los Olivos","Otto","Efectivo",1934]
["Dino's Market","Sábado",264,52,150,980,504,"Los Olivos","Báslavi","Efectivo",1950]
["Plaza Norte","Sábado",264,52,150,980,504,"Los Olivos","Báslavi","TC. Metro",1950]
["Lago Plaza","Miércoles",263,73,137,873,452,"Los Olivos","Otto","TC Bco. Crédito",1798]
["Plaza Norte","Lunes",347,79,147,911,539,"Ate","Báslavi","Efectivo",2023]
["Lago Plaza","Viernes",347,54,167,879,560,"Atocongo","Yaco","TC. Metro",2007]
["Lago Plaza","Miércoles",250,69,180,914,551,"Atocongo","Isabel","TC. Metro",{"$f":"SUM(C515:G515)","v":1964}]
["Plaza Norte","Miércoles",350,72,157,808,541,"Los Olivos","Isabel","TC. Bco. Wiese",1928]
["Centro Plaza","Miércoles",282,50,166,902,480,"Callao","Yaco","TC. Bco. Wiese",1880]
["Plaza Norte","Jueves",346,68,139,851,480,"Callao","Yaco","TC. Bco. Wiese",1884]
["Plaza Norte","Miércoles",298,71,146,883,522,"Atocongo","Otto","Efectivo",1920]
["Lago Plaza","Miércoles",266,61,172,814,467,"Los Olivos","Isabel","TC Bco. Crédito",1780]
["Dino's Market","Lunes",283,66,170,866,504,"Los Olivos","Otto","TC. Bco. Wiese",1889]
["Plaza Norte","Viernes",256,51,176,958,499,"Callao","Otto","TC. Bco. Wiese",1940]
["Lago Plaza","Martes",297,75,178,810,527,"Callao","Otto","TC. Metro",1887]
["Plaza Norte","Viernes",282,74,170,944,533,"Atocongo","Otto","TC Bco. Crédito",2003]
["Assian Food","Jueves",297,59,131,868,471,"Atocongo","Gissela","Efectivo",1826]
["Lago Plaza","Martes",279,54,148,921,537,"Callao","Isabel","Efectivo",1939]
["Assian Food","Jueves",279,60,121,953,476,"Callao","Báslavi","TC. Bco. Wiese",1889]
["Centro Plaza","Lunes",315,52,175,957,467,"Atocongo","Báslavi","TC. Bco. Wiese",1966]
["Dino's Market","Jueves",274,78,164,896,560,"Los Olivos","Isabel","TC Bco. Crédito",1972]
["Lago Plaza","Lunes",300,61,130,834,547,"Callao","Isabel","TC. Bco. Wiese",1872]
["Dino's Market","Jueves",254,63,144,904,554,"Callao","Otto","TC. Bco. Wiese",1919]
["Dino's Market","Jueves",287,54,138,810,457,"Callao","Marco","TC. Metro",1746]
["Plaza Norte","Martes",277,69,168,938,462,"Ate","Yaco","TC. Metro",1914]
["Plaza Norte","Lunes",343,56,130,835,547,"Los Olivos","Gissela","TC. Metro",1911]
["Dino's Market","Jueves",342,60,141,897,482,"Los Olivos","Báslavi","TC. Metro",1922]
["Lago Plaza","Sábado",266,72,177,937,475,"Atocongo","Isabel","TC. Metro",1927]
["Dino's Market","Martes",343,71,121,818,492,"Callao","Otto","TC. Bco. Wiese",1845]
["Dino's Market","Lunes",278,63,153,880,488,"Callao","Isabel","TC. Bco. Wiese",1862]
["Lago Plaza","Sábado",343,52,163,921,494,"Ate","Otto","TC. Metro",1973]
["Centro Plaza","Miércoles",275,72,159,843,520,"Callao","Marco","TC. Bco. Wiese",1869]
["Dino's Market","Viernes",310,73,173,966,471,"Ate","Báslavi","TC Bco. Crédito",1993]
["Assian Food","Jueves",340,71,123,957,475,"Callao","Isabel","TC. Metro",1966]
["Plaza Norte","Sábado",320,74,164,905,557,"Callao","Báslavi","TC. Metro",2020]
["Assian Food","Viernes",267,78,131,855,544,"Callao","Báslavi","TC. Bco. Wiese",1875]
["Centro Plaza","Viernes",258,50,172,923,550,"Atocongo","Báslavi","Efectivo",1953]
["Dino's Market","Jueves",316,56,126,852,489,"Ate","Yaco","TC Bco. Crédito",1839]
["Lago Plaza","Martes",256,74,153,952,504,"Callao","Isabel","TC. Bco. Wiese",1939]
["Dino's Market","Martes",305,80,127,945,492,"Los Olivos","Gissela","TC Bco. Crédito",1949]
["Assian Food","Jueves",317,55,137,929,499,"Callao","Báslavi","TC. Metro",1937]
["Assian Food","Miércoles",348,79,141,806,450,"Ate","Isabel","TC Bco. Crédito",1824]
["Lago Plaza","Martes",302,69,173,831,502,"Atocongo","Marco","TC. Bco. Wiese",1877]
["Centro Plaza","Martes",294,61,166,824,488,"Atocongo","Otto","TC. Bco. Wiese",1833]
["Plaza Norte","Miércoles",301,80,149,803,550,"Ate","Isabel","TC. Bco. Wiese",1883]
["Dino's Market","Martes",296,53,147,926,507,"Callao","Yaco","TC Bco. Crédito",1929]
["Assian Food","Sábado",320,74,164,905,557,"Callao","Báslavi","TC Bco. Crédito",2020]
["Lago Plaza","Lunes",301,57,172,912,547,"Atocongo","Otto","TC. Metro",1989]
["Dino's Market","Viernes",345,61,120,914,545,"Los Olivos","Báslavi","Efectivo",1985]
["Dino's Market","Miércoles",288,77,143,841,463,"Ate","Yaco","TC. Metro",1812]
["Dino's Market","Viernes",313,53,147,905,499,"Ate","Otto","TC Bco. Crédito",1917]
["Dino's Market","Lunes",289,66,155,944,525,"Callao","Isabel","TC. Bco. Wiese",1979]
["Lago Plaza","Martes",279,78,143,904,458,"Los Olivos","Marco","TC. Bco. Wiese",1862]
["Assian Food","Miércoles",333,64,167,802,461,"Los Olivos","Gissela","TC Bco. Crédito",1827]
["Lago Plaza","Martes",253,59,174,903,456,"Ate","Marco","TC. Metro",1845]
["Centro Plaza","Sábado",268,63,123,969,557,"Los Olivos","Yaco","TC Bco. Crédito",1980]
["Dino's Market","Martes",315,66,174,937,511,"Ate","Isabel","TC Bco. Crédito",2003]
["Plaza Norte","Miércoles",305,67,133,867,487,"Atocongo","Báslavi","TC Bco. Crédito",1859]
["Centro Plaza","Jueves",269,58,138,908,534,"Ate","Otto","TC Bco. Crédito",1907]
["Assian Food","Jueves",279,60,121,953,476,"Callao","Báslavi","TC Bco. Crédito",1889]
["Lago Plaza","Lunes",287,59,147,958,508,"Ate","Isabel","TC Bco. Crédito",1959]
["Lago Plaza","Viernes",302,58,132,917,481,"Callao","Isabel","TC. Bco. Wiese",1890]
["Centro Plaza","Lunes",285,58,123,931,534,"Los Olivos","Marco","TC Bco. Crédito",1931]
["Dino's Market","Lunes",297,63,156,826,511,"Atocongo","Yaco","TC Bco. Crédito",1853]
["Dino's Market","Miércoles",252,60,161,939,458,"Los Olivos","Báslavi","TC. Metro",1870]
["Plaza Norte","Jueves",339,76,121,806,541,"Los Olivos","Isabel","TC. Metro",1883]
["Assian Food","Viernes",292,53,153,969,504,"Callao","Yaco","TC. Metro",1971]
["Centro Plaza","Jueves",339,71,155,815,535,"Ate","Yaco","TC. Metro",1915]
["Plaza Norte","Viernes",279,52,132,959,479,"Atocongo","Gissela","TC. Bco. Wiese",1901]
["Plaza Norte","Miércoles",346,60,146,910,484,"Ate","Isabel","TC. Bco. Wiese",1946]
["Plaza Norte","Lunes",306,76,179,856,511,"Atocongo","Isabel","TC Bco. Crédito",{"$f":"SUM(C579:G579)","v":1928}]
["Lago Plaza","Martes",270,59,172,882,508,"Los Olivos","Báslavi","TC. Metro",1891]
["Centro Plaza","Lunes",256,66,155,844,481,"Los Olivos","Otto","Efectivo",1802]
["Lago Plaza","Sábado",300,73,170,837,521,"Ate","Isabel","TC. Metro",1901]
["Assian Food","Viernes",330,68,122,847,496,"Ate","Isabel","TC Bco. Crédito",1863]
["Plaza Norte","Viernes",343,69,133,940,531,"Atocongo","Báslavi","TC. Bco. Wiese",2016]
["Plaza Norte","Jueves",281,75,120,857,523,"Atocongo","Isabel","TC. Metro",1856]
["Assian Food","Viernes",299,79,167,846,554,"Los Olivos","Yaco","TC Bco. Crédito",1945]
["Plaza Norte","Miércoles",334,64,142,821,487,"Ate","Marco","Efectivo",1848]
["Lago Plaza","Viernes",270,65,136,890,510,"Los Olivos","Isabel","TC Bco. Crédito",1871]
["Plaza Norte","Martes",323,66,162,932,530,"Ate","Yaco","TC. Bco. Wiese",2013]
["Assian Food","Miércoles",347,51,158,936,512,"Los Olivos","Marco","TC. Bco. Wiese",2004]
["Assian Food","Jueves",302,69,177,886,525,"Los Olivos","Gissela","TC. Bco. Wiese",1959]
["Dino's Market","Martes",258,64,155,878,517,"Atocongo","Otto","Efectivo",1872]
["Assian Food","Sábado",288,72,132,916,512,"Ate","Yaco","TC. Bco. Wiese",1920]
["Dino's Market","Jueves",268,78,152,807,477,"Ate","Isabel","TC. Metro",1782]
["Dino's Market","Sábado",337,52,180,839,547,"Callao","Báslavi","TC. Metro",1955]
["Dino's Market","Miércoles",300,64,149,963,521,"Los Olivos","Yaco","TC. Metro",1997]
["Lago Plaza","Sábado",292,63,162,883,492,"Los Olivos","Yaco","TC. Bco. Wiese",1892]
["Dino's Market","Jueves",289,70,139,857,555,"Los Olivos","Marco","TC. Bco. Wiese",1910]
["Assian Food","Lunes",319,74,144,856,507,"Atocongo","Isabel","Efectivo",1900]
["Dino's Market","Martes",348,77,173,847,552,"Atocongo","Yaco","TC Bco. Crédito",1997]
["Lago Plaza","Martes",288,60,134,972,452,"Ate","Otto","TC. Metro",1906]
["Plaza Norte","Martes",319,62,171,932,472,"Ate","Gissela","TC. Bco. Wiese",1956]
["Centro Plaza","Jueves",323,76,138,940,555,"Callao","Marco","TC. Metro",2032]
["Centro Plaza","Sábado",264,62,140,853,533,"Atocongo","Báslavi","TC Bco. Crédito",1852]
["Lago Plaza","Viernes",305,52,139,851,509,"Ate","Marco","TC. Metro",1856]
["Plaza Norte","Miércoles",257,63,135,874,483,"Ate","Marco","TC Bco. Crédito",1812]
["Dino's Market","Miércoles",325,73,162,946,534,"Ate","Isabel","TC. Metro",2040]
["Centro Plaza","Jueves",256,67,173,968,527,"Los Olivos","Yaco","Efectivo",1991]
["Centro Plaza","Martes",326,69,180,914,468,"Ate","Yaco","Efectivo",1957]
["Dino's Market","Jueves",310,52,177,807,488,"Atocongo","Yaco","TC. Metro",1834]
["Centro Plaza","Miércoles",343,74,133,951,554,"Atocongo","Marco","TC. Bco. Wiese",2055]
["Lago Plaza","Martes",311,58,138,948,466,"Ate","Yaco","Efectivo",1921]
["Assian Food","Miércoles",332,80,170,857,479,"Los Olivos","Isabel","TC. Bco. Wiese",1918]
["Centro Plaza","Jueves",318,64,166,941,492,"Atocongo","Báslavi","Efectivo",1981]
["Centro Plaza","Martes",329,68,149,815,506,"Atocongo","Otto","TC. Metro",1867]
["Lago Plaza","Miércoles",287,53,124,843,516,"Callao","Yaco","TC. Bco. Wiese",1823]
["Dino's Market","Miércoles",284,60,166,866,560,"Los Olivos","Gissela","TC. Bco. Wiese",1936]
["Plaza Norte","Martes",348,56,127,900,456,"Callao","Marco","TC. Bco. Wiese",1887]
["Plaza Norte","Martes",348,77,173,847,552,"Atocongo","Yaco","TC. Bco. Wiese",1997]
["Assian Food","Miércoles",307,73,143,933,559,"Los Olivos","Marco","TC. Metro",2015]
["Assian Food","Sábado",307,66,130,817,475,"Callao","Isabel","TC. Bco. Wiese",1795]
["Dino's Market","Miércoles",298,71,146,883,522,"Atocongo","Otto","Efectivo",1920]
["Lago Plaza","Sábado",319,79,162,929,539,"Atocongo","Marco","TC. Metro",2028]
["Assian Food","Miércoles",286,74,156,919,453,"Ate","Otto","TC. Bco. Wiese",1888]
["Dino's Market","Viernes",323,59,145,969,502,"Los Olivos","Isabel","TC. Metro",1998]
["Lago Plaza","Jueves",257,76,134,932,540,"Callao","Gissela","TC Bco. Crédito",1939]
["Centro Plaza","Martes",254,50,176,859,535,"Ate","Marco","TC Bco. Crédito",1874]
["Dino's Market","Sábado",295,74,145,896,532,"Los Olivos","Báslavi","TC. Metro",1942]
["Plaza Norte","Jueves",268,54,156,965,533,"Ate","Marco","Efectivo",1976]
["Plaza Norte","Martes",300,72,176,950,480,"Callao","Báslavi","TC. Bco. Wiese",1978]
["Centro Plaza","Viernes",250,61,170,946,477,"Los Olivos","Isabel","Efectivo",1904]
["Dino's Market","Viernes",326,70,177,841,520,"Atocongo","Gissela","TC Bco. Crédito",1934]
["Lago Plaza","Lunes",298,73,132,918,461,"Ate","Otto","TC Bco. Crédito",1882]
["Dino's Market","Lunes",273,74,139,819,488,"Callao","Gissela","Efectivo",1793]
["Centro Plaza","Martes",315,66,121,979,558,"Los Olivos","Isabel","TC. Bco. Wiese",2039]
["Plaza Norte","Lunes",345,53,155,881,534,"Callao","Otto","TC. Bco. Wiese",1968]
["Assian Food","Martes",281,50,137,888,513,"Callao","Gissela","Efectivo",1869]
["Dino's Market","Martes",323,59,149,935,496,"Callao","Yaco","TC. Metro",1962]
["Plaza Norte","Martes",289,77,149,901,518,"Atocongo","Yaco","TC. Metro",1934]
["Assian Food","Viernes",257,58,152,890,488,"Callao","Báslavi","TC. Bco. Wiese",1845]
["Lago Plaza","Jueves",299,57,123,914,484,"Atocongo","Yaco","TC Bco. Crédito",1877]
["Dino's Market","Martes",251,55,160,804,517,"Callao","Yaco","TC Bco. Crédito",1787]
["Plaza Norte","Jueves",267,51,143,969,495,"Callao","Gissela","TC. Bco. Wiese",{"$f":"SUM(C643:G643)","v":1925}]
["Assian Food","Martes",297,60,169,950,486,"Ate","Gissela","TC Bco. Crédito",1962]
["Centro Plaza","Viernes",286,68,141,856,452,"Atocongo","Gissela","TC. Bco. Wiese",1803]
["Centro Plaza","Miércoles",305,67,133,867,487,"Atocongo","Báslavi","Efectivo",1859]
["Lago Plaza","Martes",338,68,150,877,490,"Callao","Otto","TC Bco. Crédito",1923]
["Lago Plaza","Martes",303,68,133,861,533,"Los Olivos","Isabel","TC Bco. Crédito",1898]
["Lago Plaza","Viernes",324,64,126,864,532,"Callao","Marco","Efectivo",1910]
["Plaza Norte","Sábado",316,57,122,845,514,"Los Olivos","Báslavi","TC. Metro",1854]
["Plaza Norte","Miércoles",321,78,146,830,462,"Ate","Isabel","TC. Metro",1837]
["Lago Plaza","Martes",292,71,143,871,473,"Ate","Otto","TC. Bco. Wiese",1850]
["Plaza Norte","Martes",295,74,155,891,519,"Los Olivos","Otto","TC Bco. Crédito",1934]
["Plaza Norte","Viernes",272,64,130,960,546,"Callao","Yaco","Efectivo",1972]
["Lago Plaza","Miércoles",288,77,143,841,463,"Ate","Yaco","TC Bco. Crédito",1812]
["Plaza Norte","Sábado",288,66,134,938,517,"Atocongo","Báslavi","Efectivo",1943]
["Dino's Market","Martes",305,57,127,972,497,"Atocongo","Isabel","Efectivo",1958]
["Dino's Market","Martes",274,70,153,977,461,"Los Olivos","Marco","TC. Metro",1935]
["Plaza Norte","Martes",267,67,180,932,482,"Callao","Marco","TC. Bco. Wiese",1928]
["Lago Plaza","Jueves",288,66,149,840,456,"Los Olivos","Yaco","TC Bco. Crédito",1799]
["Centro Plaza","Sábado",291,76,143,855,533,"Los Olivos","Báslavi","TC. Bco. Wiese",1898]
["Plaza Norte","Lunes",257,67,162,816,480,"Callao","Isabel","TC. Metro",1782]
["Dino's Market","Jueves",274,68,137,923,560,"Ate","Gissela","Efectivo",1962]
["Assian Food","Martes",322,76,122,858,498,"Ate","Gissela","Efectivo",1876]
["Centro Plaza","Martes",281,64,145,911,467,"Callao","Isabel","TC. Metro",1868]
["Plaza Norte","Sábado",276,62,136,969,514,"Atocongo","Otto","TC. Metro",1957]
["Plaza Norte","Miércoles",283,57,175,844,513,"Atocongo","Yaco","Efectivo",1872]
["Lago Plaza","Viernes",263,76,130,971,479,"Atocongo","Báslavi","TC. Metro",1919]
["Dino's Market","Miércoles",307,57,145,960,488,"Atocongo","Isabel","TC Bco. Crédito",1957]
["Dino's Market","Viernes",267,78,131,855,544,"Callao","Báslavi","TC. Metro",1875]
["Assian Food","Martes",281,50,137,888,513,"Callao","Gissela","Efectivo",1869]
["Dino's Market","Martes",265,80,141,836,555,"Callao","Marco","TC. Metro",1877]
["Centro Plaza","Jueves",341,50,144,976,478,"Ate","Otto","TC. Bco. Wiese",1989]
["Assian Food","Miércoles",299,50,145,847,496,"Los Olivos","Isabel","Efectivo",1837]
["Plaza Norte","Sábado",322,60,168,803,488,"Callao","Gissela","TC Bco. Crédito",1841]
["Centro Plaza","Viernes",328,73,129,912,502,"Atocongo","Otto","Efectivo",1944]
["Assian Food","Martes",273,73,172,950,474,"Los Olivos","Otto","Efectivo",1942]
["Lago Plaza","Sábado",253,72,126,943,460,"Ate","Yaco","TC. Bco. Wiese",1854]
["Dino's Market","Sábado",300,79,180,919,518,"Los Olivos","Yaco","TC. Metro",1996]
["Plaza Norte","Viernes",344,57,122,970,469,"Callao","Yaco","TC. Metro",1962]
["Dino's Market","Jueves",314,70,175,903,483,"Los Olivos","Yaco","TC Bco. Crédito",1945]
["Lago Plaza","Sábado",250,57,128,817,477,"Los Olivos","Otto","TC Bco. Crédito",1729]
["Plaza Norte","Jueves",310,66,131,972,512,"Atocongo","Isabel","TC Bco. Crédito",1991]
["Plaza Norte","Lunes",277,67,145,863,527,"Atocongo","Yaco","Efectivo",1879]
["Assian Food","Miércoles",260,71,168,814,556,"Los Olivos","Otto","TC Bco. Crédito",1869]
["Assian Food","Miércoles",328,66,120,911,492,"Atocongo","Gissela","TC Bco. Crédito",1917]
["Plaza Norte","Jueves",285,60,180,804,505,"Atocongo","Yaco","TC. Metro",1834]
["Lago Plaza","Sábado",273,52,122,867,454,"Atocongo","Marco","TC Bco. Crédito",1768]
["Centro Plaza","Lunes",325,68,153,910,539,"Ate","Isabel","TC. Metro",1995]
["Plaza Norte","Jueves",251,66,174,809,559,"Ate","Yaco","TC. Bco. Wiese",1859]
["Lago Plaza","Lunes",323,65,170,885,475,"Ate","Báslavi","TC. Metro",1918]
["Assian Food","Jueves",314,70,175,903,483,"Los Olivos","Yaco","Efectivo",1945]
["Lago Plaza","Lunes",289,62,172,889,474,"Atocongo","Isabel","TC. Metro",1886]
["Lago Plaza","Jueves",259,55,149,914,482,"Ate","Yaco","TC Bco. Crédito",1859]
["Plaza Norte","Lunes",305,69,157,845,473,"Atocongo","Marco","Efectivo",1849]
["Assian Food","Miércoles",289,62,156,843,540,"Callao","Marco","Efectivo",1890]
["Lago Plaza","Viernes",254,65,165,892,476,"Callao","Yaco","TC. Bco. Wiese",1852]
["Lago Plaza","Sábado",304,65,130,961,534,"Callao","Otto","TC. Metro",1994]
["Lago Plaza","Miércoles",268,54,179,831,534,"Ate","Isabel","Efectivo",1866]
["Centro Plaza","Martes",268,78,171,913,476,"Callao","Otto","TC. Metro",1906]
["Dino's Market","Sábado",343,73,172,969,470,"Ate","Isabel","TC. Bco. Wiese",2027]
["Dino's Market","Jueves",252,76,126,965,466,"Atocongo","Yaco","TC. Bco. Wiese",1885]
["Dino's Market","Martes",304,59,165,972,559,"Los Olivos","Marco","Efectivo",2059]
["Lago Plaza","Martes",267,67,180,932,482,"Callao","Marco","Efectivo",1928]
["Centro Plaza","Jueves",333,65,133,813,558,"Callao","Otto","TC. Metro",1902]
["Dino's Market","Miércoles",330,63,132,847,481,"Atocongo","Yaco","TC Bco. Crédito",1853]
["Centro Plaza","Sábado",314,69,162,854,506,"Atocongo","Marco","TC. Bco. Wiese",{"$f":"SUM(C707:G707)","v":1905}]
["Plaza Norte","Sábado",306,77,153,939,504,"Callao","Báslavi","TC. Bco. Wiese",1979]
["Lago Plaza","Sábado",264,62,140,853,533,"Atocongo","Báslavi","Efectivo",1852]
["Plaza Norte","Miércoles",298,76,173,939,541,"Callao","Otto","TC. Bco. Wiese",2027]
["Centro Plaza","Lunes",267,80,158,827,492,"Atocongo","Báslavi","TC. Bco. Wiese",1824]
["Centro Plaza","Jueves",330,63,152,829,466,"Los Olivos","Isabel","Efectivo",1840]
["Lago Plaza","Jueves",269,74,176,818,555,"Atocongo","Báslavi","TC. Metro",1892]
["Assian Food","Martes",280,63,140,962,551,"Callao","Isabel","TC. Bco. Wiese",1996]
["Lago Plaza","Miércoles",297,74,129,852,452,"Los Olivos","Otto","Efectivo",1804]
["Assian Food","Lunes",283,69,167,829,499,"Atocongo","Yaco","TC Bco. Crédito",1847]
["Plaza Norte","Lunes",257,67,162,816,480,"Callao","Isabel","TC Bco. Crédito",1782]
["Plaza Norte","Viernes",340,65,168,920,494,"Ate","Marco","TC Bco. Crédito",1987]
["Assian Food","Martes",273,64,169,971,485,"Atocongo","Báslavi","TC. Metro",1962]
["Centro Plaza","Miércoles",251,70,127,811,544,"Ate","Yaco","Efectivo",1803]
["Dino's Market","Lunes",319,75,164,888,454,"Ate","Otto","Efectivo",1900]
["Dino's Market","Viernes",345,67,158,917,472,"Los Olivos","Otto","TC. Bco. Wiese",1959]
["Assian Food","Sábado",294,50,152,844,481,"Los Olivos","Báslavi","TC. Bco. Wiese",1821]
["Lago Plaza","Martes",346,52,180,900,558,"Los Olivos","Yaco","TC. Metro",2036]
["Dino's Market","Jueves",303,77,128,866,468,"Callao","Yaco","Efectivo",1842]
["Centro Plaza","Lunes",288,58,131,951,536,"Los Olivos","Báslavi","Efectivo",1964]
["Dino's Market","Jueves",343,68,136,934,543,"Ate","Yaco","Efectivo",2024]
["Assian Food","Sábado",277,55,169,868,461,"Atocongo","Yaco","Efectivo",1830]
["Centro Plaza","Jueves",318,74,171,804,558,"Callao","Marco","TC. Metro",1925]
["Centro Plaza","Miércoles",264,74,157,870,499,"Ate","Yaco","TC. Bco. Wiese",1864]
["Plaza Norte","Sábado",301,67,142,836,467,"Callao","Báslavi","TC Bco. Crédito",1813]
["Centro Plaza","Lunes",261,59,173,842,481,"Callao","Otto","Efectivo",1816]
["Dino's Market","Martes",338,68,150,877,490,"Callao","Otto","TC. Bco. Wiese",1923]
["Centro Plaza","Jueves",301,65,129,975,479,"Ate","Otto","TC Bco. Crédito",1949]
["Centro Plaza","Sábado",341,58,171,816,524,"Callao","Marco","Efectivo",1910]
["Dino's Market","Sábado",321,70,176,855,487,"Atocongo","Báslavi","TC. Bco. Wiese",1909]
["Assian Food","Sábado",327,75,164,940,471,"Callao","Marco","TC. Bco. Wiese",1977]
["Centro Plaza","Martes",291,80,163,924,529,"Atocongo","Gissela","TC Bco. Crédito",1987]
["Assian Food","Viernes",344,53,124,888,495,"Callao","Otto","TC Bco. Crédito",1904]
["Assian Food","Viernes",299,73,171,941,542,"Los Olivos","Otto","TC. Bco. Wiese",2026]
["Assian Food","Viernes",255,57,162,829,461,"Callao","Gissela","TC. Metro",1764]
["Plaza Norte","Jueves",280,73,136,927,558,"Callao","Otto","TC Bco. Crédito",1974]
["Lago Plaza","Sábado",338,75,134,863,514,"Callao","Báslavi","TC. Bco. Wiese",1924]
["Centro Plaza","Jueves",303,77,128,866,468,"Callao","Yaco","TC. Bco. Wiese",1842]
["Plaza Norte","Miércoles",310,59,163,935,477,"Callao","Báslavi","Efectivo",1944]
["Lago Plaza","Jueves",286,61,120,888,529,"Los Olivos","Otto","Efectivo",1884]
["Centro Plaza","Viernes",297,72,158,802,526,"Callao","Gissela","Efectivo",1855]
["Dino's Market","Sábado",288,66,134,938,517,"Atocongo","Báslavi","TC. Bco. Wiese",1943]
["Plaza Norte","Viernes",318,52,173,851,462,"Atocongo","Gissela","Efectivo",1856]
["Dino's Market","Viernes",289,75,144,966,461,"Ate","Marco","TC Bco. Crédito",1935]
["Assian Food","Martes",274,75,172,862,489,"Callao","Yaco","Efectivo",1872]
["Plaza Norte","Miércoles",269,64,130,919,560,"Callao","Isabel","TC. Metro",1942]
["Centro Plaza","Sábado",253,57,170,977,556,"Los Olivos","Yaco","TC Bco. Crédito",2013]
["Centro Plaza","Miércoles",345,56,129,958,506,"Ate","Yaco","TC. Metro",1994]
["Centro Plaza","Lunes",318,57,145,849,476,"Los Olivos","Marco","TC Bco. Crédito",1845]
["Centro Plaza","Jueves",339,71,155,815,535,"Ate","Yaco","TC. Bco. Wiese",1915]
["Lago Plaza","Lunes",297,63,156,826,511,"Atocongo","Yaco","TC. Metro",1853]
["Dino's Market","Miércoles",258,64,174,967,459,"Los Olivos","Isabel","Efectivo",1922]
["Lago Plaza","Viernes",291,52,163,885,545,"Atocongo","Gissela","Efectivo",1936]
["Plaza Norte","Jueves",315,63,151,817,529,"Atocongo","Yaco","TC Bco. Crédito",1875]
["Assian Food","Jueves",329,62,140,817,474,"Ate","Isabel","TC. Metro",1822]
["Assian Food","Martes",304,61,133,933,558,"Los Olivos","Isabel","TC Bco. Crédito",1989]
["Dino's Market","Sábado",300,77,123,946,513,"Callao","Isabel","TC. Metro",1959]
["Assian Food","Viernes",319,69,169,836,558,"Los Olivos","Gissela","TC. Bco. Wiese",1951]
["Dino's Market","Viernes",263,66,130,959,476,"Callao","Marco","TC Bco. Crédito",1894]
["Lago Plaza","Martes",294,76,148,870,450,"Los Olivos","Isabel","TC. Bco. Wiese",1838]
["Dino's Market","Viernes",326,70,177,841,520,"Atocongo","Gissela","TC. Metro",1934]
["Centro Plaza","Martes",282,66,162,964,499,"Los Olivos","Gissela","TC. Bco. Wiese",1973]
["Assian Food","Jueves",310,51,138,918,556,"Atocongo","Yaco","Efectivo",1973]
["Centro Plaza","Jueves",281,63,145,855,482,"Ate","Gissela","TC. Metro",1826]
["Lago Plaza","Jueves",330,63,152,829,466,"Los Olivos","Isabel","TC. Metro",{"$f":"SUM(C771:G771)","v":1840}]
["Plaza Norte","Viernes",307,69,133,840,538,"Los Olivos","Yaco","TC. Bco. Wiese",1887]
["Lago Plaza","Miércoles",269,68,127,937,513,"Atocongo","Isabel","TC. Metro",1914]
["Assian Food","Sábado",334,74,132,824,535,"Atocongo","Otto","TC Bco. Crédito",1899]
["Assian Food","Viernes",335,65,154,954,483,"Los Olivos","Marco","TC. Bco. Wiese",1991]
["Assian Food","Viernes",264,79,150,819,546,"Atocongo","Gissela","Efectivo",1858]
["Lago Plaza","Viernes",258,70,173,895,460,"Ate","Báslavi","Efectivo",1856]
["Centro Plaza","Martes",322,75,131,879,511,"Los Olivos","Yaco","Efectivo",1918]
["Centro Plaza","Jueves",307,51,149,888,559,"Los Olivos","Otto","TC. Metro",1954]
["Plaza Norte","Miércoles",335,51,145,944,512,"Ate","Isabel","TC. Bco. Wiese",1987]
["Centro Plaza","Miércoles",309,58,156,831,454,"Callao","Báslavi","TC Bco. Crédito",1808]
["Lago Plaza","Sábado",342,79,136,979,495,"Atocongo","Yaco","TC. Bco. Wiese",2031]
["Assian Food","Martes",259,54,136,889,517,"Callao","Gissela","TC. Bco. Wiese",1855]
["Assian Food","Lunes",330,65,165,832,450,"Callao","Gissela","TC Bco. Crédito",1842]
["Plaza Norte","Miércoles",295,52,129,898,459,"Atocongo","Otto","TC Bco. Crédito",1833]
["Lago Plaza","Sábado",309,57,180,809,534,"Atocongo","Gissela","TC. Metro",1889]
["Centro Plaza","Martes",347,69,126,971,470,"Ate","Isabel","Efectivo",1983]
["Plaza Norte","Lunes",320,72,147,838,497,"Ate","Gissela","TC. Bco. Wiese",1874]
["Plaza Norte","Jueves",308,56,136,934,510,"Los Olivos","Báslavi","TC. Bco. Wiese",1944]
["Centro Plaza","Sábado",273,62,142,934,504,"Los Olivos","Isabel","TC. Metro",1915]
["Centro Plaza","Sábado",303,71,167,868,525,"Atocongo","Yaco","TC. Bco. Wiese",1934]
["Plaza Norte","Martes",349,67,152,951,521,"Ate","Otto","TC. Metro",2040]
["Plaza Norte","Martes",335,64,175,930,504,"Ate","Báslavi","TC Bco. Crédito",2008]
["Plaza Norte","Lunes",288,58,131,951,536,"Los Olivos","Báslavi","Efectivo",1964]
["Centro Plaza","Viernes",292,53,153,969,504,"Callao","Yaco","TC. Bco. Wiese",1971]
["Dino's Market","Sábado",301,64,129,952,520,"Atocongo","Otto","Efectivo",1966]
["Dino's Market","Sábado",328,71,152,948,487,"Atocongo","Marco","TC. Bco. Wiese",1986]
["Assian Food","Jueves",295,75,161,952,498,"Los Olivos","Yaco","TC. Bco. Wiese",1981]
["Dino's Market","Martes",311,79,131,886,456,"Callao","Marco","Efectivo",1863]
["Assian Food","Martes",320,55,162,942,510,"Los Olivos","Marco","Efectivo",1989]
["Assian Food","Sábado",272,60,128,896,540,"Los Olivos","Báslavi","TC Bco. Crédito",1896]
["Plaza Norte","Sábado",256,58,144,825,498,"Los Olivos","Marco","TC. Bco. Wiese",1781]
["Plaza Norte","Martes",313,71,175,832,500,"Los Olivos","Báslavi","TC Bco. Crédito",1891]
["Centro Plaza","Lunes",311,71,151,888,541,"Callao","Báslavi","TC. Metro",1962]
["Dino's Market","Viernes",349,66,120,848,506,"Los Olivos","Marco","TC. Metro",1889]
["Assian Food","Sábado",312,52,143,908,480,"Los Olivos","Marco","TC. Metro",1895]
["Plaza Norte","Martes",320,67,143,974,518,"Atocongo","Yaco","Efectivo",2022]
["Lago Plaza","Martes",283,50,169,809,481,"Los Olivos","Otto","TC Bco. Crédito",1792]
["Assian Food","Lunes",288,50,161,979,507,"Ate","Yaco","Efectivo",1985]
["Centro Plaza","Sábado",305,67,161,958,526,"Los Olivos","Marco","TC. Metro",2017]
["Assian Food","Jueves",304,76,140,968,483,"Callao","Isabel","TC Bco. Crédito",1971]
["Assian Food","Jueves",324,67,141,885,462,"Ate","Báslavi","TC. Metro",1879]
["Centro Plaza","Martes",280,69,125,925,508,"Callao","Yaco","TC. Metro",1907]
["Assian Food","Lunes",277,70,163,821,468,"Atocongo","Yaco","TC. Bco. Wiese",1799]
["Plaza Norte","Viernes",317,55,172,911,498,"Atocongo","Yaco","TC Bco. Crédito",1953]
["Assian Food","Lunes",340,80,154,958,454,"Atocongo","Otto","TC. Metro",1986]
["Dino's Market","Viernes",289,59,159,974,546,"Ate","Yaco","Efectivo",2027]
["Dino's Market","Lunes",307,71,177,849,540,"Callao","Isabel","TC Bco. Crédito",1944]
["Assian Food","Sábado",260,76,172,971,507,"Los Olivos","Gissela","Efectivo",1986]
["Plaza Norte","Sábado",271,79,173,873,475,"Callao","Gissela","TC Bco. Crédito",1871]
["Lago Plaza","Miércoles",319,63,161,927,537,"Callao","Gissela","Efectivo",2007]
["Lago Plaza","Sábado",306,54,161,876,551,"Atocongo","Yaco","Efectivo",1948]
["Lago Plaza","Sábado",271,61,165,868,506,"Ate","Gissela","TC. Bco. Wiese",1871]
["Centro Plaza","Miércoles",287,51,171,957,559,"Atocongo","Isabel","Efectivo",2025]
["Dino's Market","Martes",273,73,172,950,474,"Los Olivos","Otto","TC. Bco. Wiese",1942]
["Dino's Market","Jueves",310,66,131,972,512,"Atocongo","Isabel","TC. Bco. Wiese",1991]
["Plaza Norte","Sábado",282,79,151,879,555,"Los Olivos","Isabel","TC. Metro",1946]
["Plaza Norte","Miércoles",341,59,177,902,545,"Atocongo","Yaco","TC Bco. Crédito",2024]
["Lago Plaza","Jueves",280,73,136,927,558,"Callao","Otto","Efectivo",1974]
["Plaza Norte","Lunes",313,54,135,951,558,"Los Olivos","Yaco","TC Bco. Crédito",2011]
["Assian Food","Martes",261,54,159,826,478,"Los Olivos","Báslavi","TC. Metro",1778]
["Plaza Norte","Martes",350,64,133,954,470,"Ate","Isabel","TC. Bco. Wiese",1971]
["Dino's Market","Sábado",285,59,130,837,478,"Callao","Gissela","TC Bco. Crédito",1789]
["Lago Plaza","Viernes",331,79,179,801,544,"Los Olivos","Otto","TC. Metro",1934]
["Assian Food","Miércoles",328,66,120,911,492,"Atocongo","Gissela","Efectivo",{"$f":"SUM(C835:G835)","v":1917}]
["Dino's Market","Jueves",251,63,142,899,508,"Los Olivos","Yaco","TC. Bco. Wiese",1863]
["Plaza Norte","Sábado",328,51,149,866,542,"Los Olivos","Isabel","TC. Metro",1936]
["Lago Plaza","Jueves",329,55,122,840,547,"Los Olivos","Gissela","Efectivo",1893]
["Plaza Norte","Miércoles",344,73,174,851,461,"Callao","Isabel","Efectivo",1903]
["Centro Plaza","Sábado",330,73,123,978,544,"Los Olivos","Otto","TC. Metro",2048]
["Plaza Norte","Sábado",315,54,159,906,530,"Atocongo","Marco","Efectivo",1964]
["Lago Plaza","Viernes",250,58,135,925,558,"Ate","Yaco","Efectivo",1926]
["Lago Plaza","Jueves",344,65,145,821,479,"Callao","Gissela","TC. Bco. Wiese",1854]
["Dino's Market","Martes",332,58,129,973,489,"Atocongo","Isabel","TC. Bco. Wiese",1981]
["Assian Food","Jueves",281,69,135,823,503,"Los Olivos","Yaco","TC. Metro",1811]
["Plaza Norte","Viernes",284,69,180,829,451,"Callao","Otto","TC Bco. Crédito",1813]
["Centro Plaza","Sábado",260,76,172,971,507,"Los Olivos","Gissela","TC. Bco. Wiese",1986]
["Plaza Norte","Miércoles",284,60,166,866,560,"Los Olivos","Gissela","Efectivo",1936]
["Centro Plaza","Viernes",344,57,122,970,469,"Callao","Yaco","TC. Metro",1962]
["Dino's Market","Sábado",278,79,123,862,477,"Atocongo","Isabel","TC. Bco. Wiese",1819]
["Lago Plaza","Jueves",314,56,149,828,548,"Ate","Otto","TC Bco. Crédito",1895]
["Lago Plaza","Sábado",306,59,164,878,461,"Atocongo","Isabel","TC. Bco. Wiese",1868]
["Centro Plaza","Viernes",255,57,162,829,461,"Callao","Gissela","TC Bco. Crédito",1764]
["Lago Plaza","Sábado",306,59,164,878,461,"Atocongo","Isabel","TC Bco. Crédito",1868]
["Dino's Market","Martes",338,74,122,913,471,"Ate","Marco","TC Bco. Crédito",1918]
["Centro Plaza","Lunes",342,78,154,917,541,"Los Olivos","Isabel","Efectivo",2032]
["Centro Plaza","Jueves",263,79,129,857,494,"Atocongo","Gissela","TC. Bco. Wiese",1822]
["Centro Plaza","Martes",315,66,121,979,558,"Los Olivos","Isabel","TC. Bco. Wiese",2039]
["Plaza Norte","Miércoles",322,53,122,831,501,"Atocongo","Otto","TC. Metro",1829]
["Assian Food","Jueves",344,55,140,834,560,"Los Olivos","Yaco","TC Bco. Crédito",1933]
["Lago Plaza","Miércoles",283,70,160,896,531,"Callao","Báslavi","TC. Bco. Wiese",1940]
["Plaza Norte","Lunes",264,67,173,833,537,"Callao","Otto","TC Bco. Crédito",1874]
["Assian Food","Miércoles",345,79,137,834,507,"Callao","Marco","TC Bco. Crédito",1902]
["Assian Food","Jueves",346,62,147,902,491,"Ate","Yaco","TC. Bco. Wiese",1948]
["Assian Food","Martes",259,54,152,961,522,"Ate","Marco","TC Bco. Crédito",1948]
["Plaza Norte","Sábado",328,51,149,866,542,"Los Olivos","Isabel","TC. Bco. Wiese",1936]
["Centro Plaza","Miércoles",260,60,179,813,459,"Los Olivos","Otto","Efectivo",1771]
["Lago Plaza","Martes",312,78,132,933,454,"Los Olivos","Báslavi","TC. Bco. Wiese",1909]
["Lago Plaza","Miércoles",290,58,162,904,484,"Callao","Marco","TC Bco. Crédito",1898]
["Plaza Norte","Lunes",287,71,176,890,473,"Callao","Marco","TC. Metro",1897]
["Lago Plaza","Sábado",299,61,177,841,533,"Ate","Otto","TC. Metro",1911]
["Assian Food","Miércoles",295,52,129,898,459,"Atocongo","Otto","TC. Bco. Wiese",1833]
["Lago Plaza","Martes",254,69,122,966,504,"Los Olivos","Gissela","TC. Bco. Wiese",1915]
["Lago Plaza","Sábado",298,71,139,956,465,"Callao","Gissela","Efectivo",1929]
["Dino's Market","Viernes",282,74,170,944,533,"Atocongo","Otto","Efectivo",2003]
["Assian Food","Martes",320,67,143,974,518,"Atocongo","Yaco","Efectivo",2022]
["Lago Plaza","Martes",349,67,152,951,521,"Ate","Otto","TC Bco. Crédito",2040]
["Lago Plaza","Viernes",250,61,170,946,477,"Los Olivos","Isabel","TC. Metro",1904]
["Lago Plaza","Jueves",341,68,128,811,552,"Ate","Isabel","TC. Metro",1900]
["Assian Food","Sábado",281,67,171,869,504,"Ate","Báslavi","Efectivo",1892]
["Dino's Market","Jueves",295,50,148,913,532,"Ate","Marco","TC. Bco. Wiese",1938]
["Plaza Norte","Miércoles",286,74,156,919,453,"Ate","Otto","TC Bco. Crédito",1888]
["Plaza Norte","Sábado",308,75,171,909,513,"Atocongo","Marco","TC. Metro",1976]
["Plaza Norte","Jueves",278,72,128,914,473,"Atocongo","Yaco","TC. Metro",1865]
["Assian Food","Miércoles",260,68,158,825,472,"Ate","Isabel","TC Bco. Crédito",1783]
["Centro Plaza","Miércoles",308,69,135,826,487,"Ate","Gissela","TC Bco. Crédito",1825]
["Plaza Norte","Martes",315,72,138,822,456,"Ate","Otto","Efectivo",1803]
["Lago Plaza","Lunes",284,74,157,895,509,"Los Olivos","Yaco","TC. Metro",1919]
["Plaza Norte","Sábado",294,50,152,844,481,"Los Olivos","Báslavi","TC Bco. Crédito",1821]
["Lago Plaza","Martes",265,54,176,820,496,"Callao","Isabel","Efectivo",1811]
["Dino's Market","Sábado",276,73,121,946,524,"Callao","Isabel","TC. Metro",1940]
["Lago Plaza","Lunes",254,67,126,804,522,"Callao","Otto","TC Bco. Crédito",1773]
["Assian Food","Jueves",298,61,140,976,488,"Callao","Isabel","TC. Bco. Wiese",1963]
["Dino's Market","Viernes",336,57,159,914,462,"Callao","Isabel","TC Bco. Crédito",1928]
["Dino's Market","Jueves",308,63,146,945,501,"Los Olivos","Otto","TC Bco. Crédito",1963]
["Dino's Market","Miércoles",256,69,126,825,514,"Ate","Otto","Efectivo",1790]
["Lago Plaza","Lunes",279,53,173,838,462,"Atocongo","Yaco","TC Bco. Crédito",1805]
["Plaza Norte","Viernes",297,56,160,949,545,"Los Olivos","Isabel","TC. Bco. Wiese",2007]
["Plaza Norte","Jueves",312,50,135,934,466,"Atocongo","Isabel","TC. Metro",{"$f":"SUM(C899:G899)","v":1897}]
["Assian Food","Martes",325,56,135,882,476,"Ate","Isabel","TC. Bco. Wiese",1874]
["Assian Food","Lunes",289,78,172,810,526,"Ate","Marco","TC. Metro",1875]
["Assian Food","Sábado",305,70,133,883,454,"Callao","Yaco","TC. Metro",1845]
["Assian Food","Miércoles",299,50,137,947,452,"Atocongo","Isabel","TC Bco. Crédito",1885]
["Dino's Market","Sábado",345,69,135,958,531,"Los Olivos","Marco","TC Bco. Crédito",2038]
["Plaza Norte","Sábado",313,58,152,967,461,"Ate","Otto","TC. Bco. Wiese",1951]
["Lago Plaza","Jueves",308,51,146,864,542,"Los Olivos","Báslavi","TC. Bco. Wiese",1911]
["Centro Plaza","Sábado",283,66,143,863,553,"Atocongo","Gissela","TC. Bco. Wiese",1908]
["Dino's Market","Viernes",332,50,174,872,517,"Los Olivos","Otto","TC Bco. Crédito",1945]
["Dino's Market","Sábado",280,79,134,865,551,"Callao","Isabel","TC Bco. Crédito",1909]
["Lago Plaza","Sábado",305,70,133,883,454,"Callao","Yaco","TC Bco. Crédito",1845]
["Dino's Market","Miércoles",261,58,166,920,489,"Callao","Marco","TC. Metro",1894]
["Assian Food","Lunes",338,68,128,824,460,"Los Olivos","Marco","TC Bco. Crédito",1818]
["Plaza Norte","Jueves",295,75,161,952,498,"Los Olivos","Yaco","TC. Bco. Wiese",1981]
["Lago Plaza","Lunes",267,53,167,885,475,"Callao","Otto","Efectivo",1847]
["Plaza Norte","Jueves",281,75,120,857,523,"Atocongo","Isabel","TC Bco. Crédito",1856]
["Dino's Market","Martes",295,67,133,969,456,"Los Olivos","Isabel","TC. Metro",1920]
["Assian Food","Viernes",299,73,171,941,542,"Los Olivos","Otto","TC. Metro",2026]
["Centro Plaza","Martes",274,56,162,959,519,"Ate","Marco","TC. Bco. Wiese",1970]
["Dino's Market","Viernes",281,66,132,904,554,"Callao","Báslavi","Efectivo",1937]
["Plaza Norte","Jueves",262,73,139,906,462,"Atocongo","Yaco","TC. Metro",1842]
["Lago Plaza","Martes",320,55,162,942,510,"Los Olivos","Marco","TC. Bco. Wiese",1989]
["Centro Plaza","Jueves",272,50,161,948,489,"Atocongo","Isabel","TC Bco. Crédito",1920]
["Dino's Market","Martes",254,56,171,967,504,"Callao","Marco","Efectivo",1952]
["Plaza Norte","Sábado",319,79,162,929,539,"Atocongo","Marco","Efectivo",2028]
["Assian Food","Lunes",284,74,157,895,509,"Los Olivos","Yaco","TC Bco. Crédito",1919]
["Dino's Market","Viernes",309,78,157,938,532,"Atocongo","Otto","Efectivo",2014]
["Lago Plaza","Sábado",317,66,167,809,524,"Los Olivos","Otto","TC. Metro",1883]
["Centro Plaza","Viernes",305,76,132,884,533,"Atocongo","Otto","TC. Metro",1930]
["Centro Plaza","Lunes",298,77,145,889,470,"Atocongo","Yaco","TC. Bco. Wiese",1879]
["Assian Food","Sábado",270,71,132,925,555,"Callao","Gissela","TC. Bco. Wiese",1953]
["Lago Plaza","Jueves",302,69,142,877,455,"Ate","Báslavi","TC Bco. Crédito",1845]
["Assian Food","Lunes",291,67,140,899,504,"Ate","Gissela","Efectivo",1901]
["Assian Food","Martes",262,68,178,816,486,"Ate","Yaco","Efectivo",1810]
["Plaza Norte","Miércoles",267,65,167,935,520,"Callao","Yaco","TC Bco. Crédito",1954]
["Plaza Norte","Viernes",263,76,130,971,479,"Atocongo","Báslavi","TC. Bco. Wiese",1919]
["Plaza Norte","Viernes",338,57,174,827,492,"Los Olivos","Isabel","Efectivo",1888]
["Dino's Market","Jueves",309,65,147,907,481,"Callao","Isabel","TC Bco. Crédito",1909]
["Plaza Norte","Lunes",317,79,158,813,464,"Ate","Marco","TC Bco. Crédito",1831]
["Lago Plaza","Martes",262,70,128,834,550,"Ate","Marco","TC. Metro",1844]
["Centro Plaza","Lunes",267,70,138,823,461,"Los Olivos","Isabel","TC. Bco. Wiese",1759]
["Dino's Market","Martes",334,58,126,823,471,"Ate","Otto","TC. Metro",1812]
["Assian Food","Lunes",336,77,169,951,456,"Ate","Báslavi","TC. Metro",1989]
["Assian Food","Lunes",267,53,167,885,475,"Callao","Otto","Efectivo",1847]
["Plaza Norte","Viernes",331,52,136,940,450,"Ate","Báslavi","Efectivo",1909]
["Plaza Norte","Martes",280,63,140,962,551,"Callao","Isabel","TC Bco. Crédito",1996]
["Lago Plaza","Miércoles",317,67,147,869,475,"Los Olivos","Marco","TC Bco. Crédito",1875]
["Assian Food","Sábado",260,58,175,894,505,"Los Olivos","Yaco","TC. Bco. Wiese",1892]
["Centro Plaza","Miércoles",265,80,134,918,554,"Ate","Marco","TC. Metro",1951]
["Dino's Market","Miércoles",312,63,129,945,543,"Los Olivos","Báslavi","TC. Metro",1992]
["Lago Plaza","Sábado",324,72,165,925,464,"Callao","Marco","TC Bco. Crédito",1950]
["Plaza Norte","Miércoles",347,65,142,958,480,"Callao","Gissela","TC. Bco. Wiese",1992]
["Assian Food","Viernes",272,64,130,960,546,"Callao","Yaco","Efectivo",1972]
["Lago Plaza","Jueves",315,63,151,817,529,"Atocongo","Yaco","TC Bco. Crédito",1875]
["Assian Food","Sábado",289,68,162,833,469,"Los Olivos","Gissela","TC. Bco. Wiese",1821]
["Plaza Norte","Jueves",348,75,123,913,501,"Los Olivos","Báslavi","TC. Bco. Wiese",1960]
["Dino's Market","Martes",294,61,166,824,488,"Atocongo","Otto","TC. Metro",1833]
["Dino's Market","Martes",277,79,169,974,554,"Callao","Gissela","Efectivo",2053]
["Plaza Norte","Sábado",341,80,167,896,476,"Atocongo","Gissela","TC Bco. Crédito",1960]
["Centro Plaza","Sábado",309,62,125,962,558,"Ate","Isabel","TC Bco. Crédito",2016]
["Plaza Norte","Miércoles",260,60,179,813,459,"Los Olivos","Otto","Efectivo",1771]
["Assian Food","Jueves",325,55,122,864,527,"Los Olivos","Báslavi","TC Bco. Crédito",1893]
["Lago Plaza","Martes",323,66,162,932,530,"Ate","Yaco","TC. Bco. Wiese",2013]
["Lago Plaza","Sábado",346,60,158,972,536,"Callao","Marco","Efectivo",{"$f":"SUM(C963:G963)","v":2072}]
["Centro Plaza","Viernes",280,76,149,916,456,"Los Olivos","Otto","Efectivo",1877]
["Dino's Market","Viernes",347,71,149,916,532,"Los Olivos","Gissela","TC. Metro",2015]
["Assian Food","Sábado",261,67,137,853,534,"Los Olivos","Báslavi","TC Bco. Crédito",1852]
["Lago Plaza","Viernes",297,72,158,802,526,"Callao","Gissela","Efectivo",1855]
["Centro Plaza","Lunes",267,69,174,927,480,"Atocongo","Isabel","Efectivo",1917]
["Assian Food","Lunes",271,71,148,910,506,"Ate","Marco","TC. Bco. Wiese",1906]
["Dino's Market","Sábado",313,58,152,967,461,"Ate","Otto","Efectivo",1951]
["Lago Plaza","Viernes",289,57,155,939,472,"Ate","Gissela","TC. Metro",1912]
["Plaza Norte","Lunes",300,59,161,978,506,"Atocongo","Otto","TC. Bco. Wiese",2004]
["Plaza Norte","Martes",310,73,128,829,517,"Atocongo","Gissela","TC Bco. Crédito",1857]
["Plaza Norte","Viernes",315,65,123,937,542,"Atocongo","Isabel","Efectivo",1982]
["Dino's Market","Lunes",305,74,153,871,559,"Atocongo","Marco","TC. Bco. Wiese",1962]
["Plaza Norte","Martes",345,76,166,841,451,"Los Olivos","Marco","TC. Bco. Wiese",1879]
["Centro Plaza","Viernes",279,52,132,959,479,"Atocongo","Gissela","Efectivo",1901]
["Plaza Norte","Martes",250,80,168,920,512,"Los Olivos","Marco","TC. Bco. Wiese",1930]
["Dino's Market","Lunes",269,77,165,825,560,"Callao","Yaco","Efectivo",1896]
["Lago Plaza","Jueves",304,76,140,968,483,"Callao","Isabel","TC. Metro",1971]
["Centro Plaza","Lunes",347,67,173,948,521,"Ate","Gissela","Efectivo",2056]
["Dino's Market","Viernes",260,58,168,952,475,"Callao","Marco","TC. Metro",1913]
["Dino's Market","Jueves",256,67,152,850,474,"Atocongo","Isabel","TC Bco. Crédito",1799]
["Plaza Norte","Lunes",324,54,179,819,541,"Atocongo","Yaco","TC Bco. Crédito",1917]
["Plaza Norte","Martes",265,80,141,836,555,"Callao","Marco","Efectivo",1877]
["Assian Food","Lunes",251,73,123,956,558,"Callao","Yaco","TC. Bco. Wiese",1961]
["Plaza Norte","Martes",311,73,145,910,554,"Los Olivos","Yaco","TC. Metro",1993]
["Assian Food","Miércoles",314,64,167,865,519,"Atocongo","Gissela","TC Bco. Crédito",1929]
["Dino's Market","Lunes",279,63,137,864,508,"Los Olivos","Gissela","TC. Metro",1851]
["Dino's Market","Sábado",335,65,129,816,488,"Ate","Gissela","TC. Bco. Wiese",1833]
["Dino's Market","Viernes",315,62,149,923,545,"Atocongo","Gissela","TC. Bco. Wiese",1994]
["Assian Food","Miércoles",274,66,129,866,547,"Los Olivos","Otto","TC. Bco. Wiese",1882]
["Dino's Market","Lunes",329,66,131,909,450,"Callao","Isabel","TC Bco. Crédito",1885]
["Centro Plaza","Martes",311,74,154,926,559,"Ate","Yaco","Efectivo",2024]
["Dino's Market","Martes",321,59,123,868,536,"Los Olivos","Marco","TC. Metro",1907]
["Centro Plaza","Martes",297,80,163,932,481,"Los Olivos","Marco","Efectivo",1953]
["Plaza Norte","Lunes",348,71,134,980,488,"Callao","Báslavi","TC. Bco. Wiese",2021]
["Assian Food","Martes",266,68,139,896,483,"Atocongo","Gissela","TC Bco. Crédito",1852]
["Plaza Norte","Martes",262,53,157,947,553,"Atocongo","Gissela","Efectivo",1972]
["Centro Plaza","Martes",297,54,128,923,501,"Ate","Otto","TC. Metro",1903]
["Dino's Market","Lunes",315,52,175,957,467,"Atocongo","Báslavi","TC. Bco. Wiese",1966]
["Lago Plaza","Sábado",312,70,153,830,499,"Callao","Yaco","TC. Bco. Wiese",1864]
["Lago Plaza","Viernes",321,73,159,943,553,"Los Olivos","Báslavi","TC. Metro",2049]
["Dino's Market","Sábado",300,62,151,932,492,"Ate","Gissela","TC. Metro",1937]
["Dino's Market","Martes",302,70,180,811,452,"Ate","Marco","TC Bco. Crédito",1815]
["Lago Plaza","Sábado",273,64,150,818,560,"Callao","Isabel","TC Bco. Crédito",1865]
["Plaza Norte","Jueves",340,50,176,944,532,"Atocongo","Marco","Efectivo",2042]
["Dino's Market","Miércoles",254,51,162,866,533,"Callao","Marco","TC. Bco. Wiese",1866]
["Plaza Norte","Viernes",313,53,147,905,499,"Ate","Otto","TC. Metro",1917]
["Centro Plaza","Jueves",341,68,128,811,552,"Ate","Isabel","Efectivo",1900]
["Lago Plaza","Lunes",285,58,123,931,534,"Los Olivos","Marco","TC. Bco. Wiese",1931]
["Assian Food","Martes",305,80,127,945,492,"Los Olivos","Gissela","TC. Metro",1949]
["Plaza Norte","Lunes",313,54,135,951,558,"Los Olivos","Yaco","TC Bco. Crédito",2011]
["Dino's Market","Sábado",342,79,136,979,495,"Atocongo","Yaco","TC Bco. Crédito",2031]
["Dino's Market","Miércoles",345,56,129,958,506,"Ate","Yaco","TC. Bco. Wiese",1994]
["Plaza Norte","Martes",290,50,140,880,527,"Callao","Isabel","TC. Bco. Wiese",1887]
["Assian Food","Sábado",334,64,147,820,499,"Ate","Marco","TC Bco. Crédito",1864]
["Lago Plaza","Miércoles",300,64,149,963,521,"Los Olivos","Yaco","TC Bco. Crédito",1997]
["Assian Food","Jueves",324,75,163,866,458,"Atocongo","Yaco","Efectivo",1886]
["Dino's Market","Martes",332,58,129,973,489,"Atocongo","Isabel","TC. Metro",1981]
["Centro Plaza","Miércoles",325,73,162,946,534,"Ate","Isabel","Efectivo",2040]
["Plaza Norte","Martes",304,59,126,865,537,"Atocongo","Yaco","TC Bco. Crédito",1891]
["Assian Food","Sábado",348,66,138,904,472,"Los Olivos","Yaco","Efectivo",1928]
["Dino's Market","Viernes",313,74,166,821,483,"Atocongo","Marco","TC Bco. Crédito",1857]
["Dino's Market","Miércoles",344,72,141,861,545,"Los Olivos","Marco","TC. Metro",1963]
["Centro Plaza","Miércoles",300,74,146,895,534,"Ate","Yaco","TC. Bco. Wiese",1949]
["Plaza Norte","Sábado",328,52,179,824,547,"Los Olivos","Báslavi","TC Bco. Crédito",{"$f":"SUM(C1027:G1027)","v":1930}]
["Lago Plaza","Sábado",263,59,129,816,530,"Ate","Otto","TC Bco. Crédito",1797]
["Centro Plaza","Viernes",266,59,173,828,468,"Callao","Yaco","TC. Metro",1794]
["Plaza Norte","Martes",343,66,124,979,553,"Atocongo","Otto","TC. Bco. Wiese",2065]
["Plaza Norte","Lunes",274,62,131,883,474,"Callao","Gissela","Efectivo",1824]
["Plaza Norte","Jueves",339,52,156,822,544,"Ate","Báslavi","TC. Metro",1913]
["Dino's Market","Miércoles",273,69,178,822,526,"Los Olivos","Gissela","TC. Bco. Wiese",1868]
["Lago Plaza","Miércoles",341,59,177,902,545,"Atocongo","Yaco","TC. Metro",2024]
["Lago Plaza","Viernes",313,52,141,804,467,"Atocongo","Isabel","TC. Bco. Wiese",1777]
["Dino's Market","Lunes",283,59,166,976,541,"Callao","Gissela","TC Bco. Crédito",2025]
["Assian Food","Jueves",306,76,147,908,513,"Ate","Báslavi","TC. Metro",1950]
["Dino's Market","Miércoles",307,73,143,933,559,"Los Olivos","Marco","TC. Metro",2015]
["Lago Plaza","Jueves",251,78,173,860,485,"Callao","Gissela","Efectivo",1847]
["Assian Food","Jueves",299,73,163,876,518,"Callao","Yaco","TC Bco. Crédito",1929]
["Lago Plaza","Martes",304,61,133,933,558,"Los Olivos","Isabel","TC. Metro",1989]
["Lago Plaza","Viernes",269,54,162,865,514,"Los Olivos","Báslavi","Efectivo",1864]
["Lago Plaza","Viernes",344,53,124,888,495,"Callao","Otto","TC. Bco. Wiese",1904]
["Plaza Norte","Viernes",285,72,178,968,458,"Atocongo","Isabel","TC Bco. Crédito",1961]
["Plaza Norte","Miércoles",261,58,139,856,516,"Atocongo","Yaco","Efectivo",1830]
["Centro Plaza","Sábado",300,73,170,837,521,"Ate","Isabel","TC. Bco. Wiese",1901]
["Plaza Norte","Lunes",278,56,145,943,460,"Callao","Otto","Efectivo",1882]
["Lago Plaza","Viernes",350,60,178,934,495,"Atocongo","Isabel","TC. Bco. Wiese",2017]
["Lago Plaza","Viernes",271,63,121,923,505,"Atocongo","Isabel","TC Bco. Crédito",1883]
["Dino's Market","Sábado",276,62,136,969,514,"Atocongo","Otto","TC Bco. Crédito",1957]
["Assian Food","Martes",338,74,122,913,471,"Ate","Marco","TC Bco. Crédito",1918]
["Lago Plaza","Sábado",343,58,155,835,549,"Atocongo","Marco","TC. Bco. Wiese",1940]
["Assian Food","Martes",289,77,149,901,518,"Atocongo","Yaco","TC. Bco. Wiese",1934]
["Plaza Norte","Jueves",306,78,149,802,531,"Callao","Marco","Efectivo",1866]
["Centro Plaza","Viernes",250,70,154,889,520,"Ate","Yaco","TC. Metro",1883]
["Centro Plaza","Viernes",315,56,164,880,500,"Callao","Marco","TC. Bco. Wiese",1915]
["Centro Plaza","Jueves",255,63,159,848,486,"Atocongo","Gissela","Efectivo",1811]
["Lago Plaza","Sábado",264,71,151,912,538,"Atocongo","Isabel","TC. Metro",1936]
["Dino's Market","Sábado",273,62,142,934,504,"Los Olivos","Isabel","TC. Bco. Wiese",1915]
["Plaza Norte","Viernes",333,62,168,889,537,"Atocongo","Isabel","TC. Metro",1989]
["Centro Plaza","Martes",338,53,159,807,545,"Atocongo","Isabel","Efectivo",1902]
["Dino's Market","Viernes",274,65,149,953,517,"Callao","Yaco","TC. Bco. Wiese",1958]
["Plaza Norte","Viernes",311,53,125,933,470,"Atocongo","Isabel","Efectivo",1892]
["Dino's Market","Lunes",257,50,165,921,508,"Atocongo","Marco","TC. Metro",1901]
["Assian Food","Lunes",299,62,175,881,461,"Atocongo","Otto","TC Bco. Crédito",1878]
["Assian Food","Miércoles",333,64,167,802,461,"Los Olivos","Gissela","Efectivo",1827]
["Lago Plaza","Sábado",304,53,121,805,475,"Ate","Marco","TC. Bco. Wiese",1758]
["Assian Food","Jueves",346,53,140,900,484,"Ate","Isabel","Efectivo",1923]
["Centro Plaza","Martes",289,73,179,866,458,"Atocongo","Yaco","Efectivo",1865]
["Assian Food","Martes",341,77,123,834,537,"Callao","Yaco","TC Bco. Crédito",1912]
["Assian Food","Lunes",252,53,155,897,550,"Los Olivos","Isabel","TC. Metro",1907]
["Centro Plaza","Martes",276,80,123,923,525,"Callao","Báslavi","TC Bco. Crédito",1927]
["Lago Plaza","Martes",319,50,152,958,558,"Callao","Báslavi","Efectivo",2037]
["Dino's Market","Sábado",347,52,149,932,479,"Los Olivos","Báslavi","TC. Bco. Wiese",1959]
["Assian Food","Sábado",275,53,136,942,538,"Los Olivos","Isabel","TC. Metro",1944]
["Dino's Market","Sábado",257,70,167,854,517,"Atocongo","Otto","Efectivo",1865]
["Lago Plaza","Miércoles",256,69,126,825,514,"Ate","Otto","TC. Bco. Wiese",1790]
["Assian Food","Viernes",273,78,120,828,477,"Ate","Gissela","TC. Bco. Wiese",1776]
["Dino's Market","Lunes",299,62,175,881,461,"Atocongo","Otto","TC Bco. Crédito",1878]
["Dino's Market","Jueves",299,73,163,876,518,"Callao","Yaco","TC Bco. Crédito",1929]
["Plaza Norte","Viernes",279,57,135,890,552,"Los Olivos","Yaco","TC Bco. Crédito",1913]
["Dino's Market","Jueves",288,68,156,907,537,"Ate","Marco","TC Bco. Crédito",1956]
["Assian Food","Martes",297,54,128,923,501,"Ate","Otto","TC. Metro",1903]
["Centro Plaza","Martes",340,75,131,928,464,"Callao","Báslavi","TC Bco. Crédito",1938]
["Plaza Norte","Lunes",289,64,180,904,479,"Los Olivos","Báslavi","TC Bco. Crédito",1916]
["Assian Food","Lunes",258,80,179,827,498,"Atocongo","Marco","TC. Metro",1842]
["Lago Plaza","Martes",322,76,122,858,498,"Ate","Gissela","TC Bco. Crédito",1876]
["Dino's Market","Sábado",300,62,151,932,492,"Ate","Gissela","TC Bco. Crédito",1937]
["Dino's Market","Lunes",273,58,158,942,549,"Callao","Isabel","TC Bco. Crédito",1980]
["Dino's Market","Viernes",284,69,180,829,451,"Callao","Otto","Efectivo",1813]
["Assian Food","Viernes",253,78,178,810,456,"Ate","Otto","Efectivo",{"$f":"SUM(C1091:G1091)","v":1775}]
["Dino's Market","Martes",274,70,164,900,494,"Ate","Otto","TC. Bco. Wiese",1902]
["Plaza Norte","Sábado",280,79,134,865,551,"Callao","Isabel","TC. Metro",1909]
["Centro Plaza","Viernes",343,65,131,830,547,"Callao","Isabel","Efectivo",1916]
["Assian Food","Viernes",282,58,141,852,516,"Los Olivos","Gissela","TC. Bco. Wiese",1849]
["Plaza Norte","Miércoles",282,70,129,949,479,"Atocongo","Gissela","Efectivo",1909]
["Lago Plaza","Viernes",326,80,160,951,469,"Los Olivos","Báslavi","TC Bco. Crédito",1986]
["Lago Plaza","Jueves",272,50,161,948,489,"Atocongo","Isabel","TC. Bco. Wiese",1920]
["Lago Plaza","Viernes",280,72,143,905,461,"Los Olivos","Otto","TC Bco. Crédito",1861]
["Dino's Market","Martes",292,71,143,871,473,"Ate","Otto","Efectivo",1850]
["Assian Food","Martes",335,64,175,930,504,"Ate","Báslavi","TC. Metro",2008]
["Plaza Norte","Lunes",254,67,126,804,522,"Callao","Otto","Efectivo",1773]
["Centro Plaza","Jueves",332,59,127,842,522,"Ate","Otto","Efectivo",1882]
["Centro Plaza","Jueves",307,67,123,864,455,"Ate","Yaco","TC. Metro",1816]
["Dino's Market","Sábado",304,53,121,805,475,"Ate","Marco","TC Bco. Crédito",1758]
["Lago Plaza","Martes",283,50,169,809,481,"Los Olivos","Otto","Efectivo",1792]
["Plaza Norte","Sábado",266,72,177,937,475,"Atocongo","Isabel","Efectivo",1927]
["Assian Food","Sábado",278,79,123,862,477,"Atocongo","Isabel","TC. Bco. Wiese",1819]
["Assian Food","Lunes",289,64,180,904,479,"Los Olivos","Báslavi","TC Bco. Crédito",1916]
["Lago Plaza","Viernes",338,73,142,874,550,"Ate","Otto","TC Bco. Crédito",1977]
["Centro Plaza","Jueves",283,52,154,871,513,"Atocongo","Isabel","TC. Bco. Wiese",1873]
["Plaza Norte","Sábado",299,78,129,814,527,"Callao","Isabel","TC Bco. Crédito",1847]
["Plaza Norte","Miércoles",287,77,166,860,546,"Los Olivos","Otto","TC. Bco. Wiese",1936]
["Lago Plaza","Jueves",267,78,156,853,538,"Callao","Isabel","TC Bco. Crédito",1892]
["Plaza Norte","Sábado",321,73,123,884,473,"Atocongo","Isabel","TC Bco. Crédito",1874]
["Centro Plaza","Lunes",299,76,121,873,554,"Los Olivos","Gissela","TC Bco. Crédito",1923]
["Centro Plaza","Sábado",308,59,123,972,547,"Callao","Isabel","TC. Metro",2009]
["Lago Plaza","Sábado",323,66,179,822,511,"Callao","Báslavi","TC. Bco. Wiese",1901]
["Dino's Market","Lunes",273,74,139,819,488,"Callao","Gissela","TC. Bco. Wiese",1793]
["Dino's Market","Lunes",294,80,121,948,465,"Atocongo","Gissela","TC Bco. Crédito",1908]
["Assian Food","Viernes",347,71,149,916,532,"Los Olivos","Gissela","TC. Metro",2015]
["Assian Food","Jueves",259,55,149,914,482,"Ate","Yaco","TC Bco. Crédito",1859]
["Assian Food","Sábado",313,63,161,818,503,"Callao","Yaco","TC Bco. Crédito",1858]
["Lago Plaza","Lunes",348,60,121,969,558,"Atocongo","Marco","Efectivo",2056]
["Dino's Market","Sábado",300,79,180,919,518,"Los Olivos","Yaco","Efectivo",1996]
["Dino's Market","Miércoles",293,77,169,803,510,"Ate","Yaco","TC Bco. Crédito",1852]
["Centro Plaza","Miércoles",316,52,161,878,461,"Ate","Otto","TC. Metro",1868]
["Lago Plaza","Jueves",342,60,143,918,534,"Callao","Báslavi","TC. Metro",1997]
["Dino's Market","Jueves",283,52,154,871,513,"Atocongo","Isabel","TC. Bco. Wiese",1873]
["Assian Food","Viernes",263,66,130,959,476,"Callao","Marco","TC. Metro",1894]
["Plaza Norte","Sábado",337,52,180,839,547,"Callao","Báslavi","TC Bco. Crédito",1955]
["Dino's Market","Lunes",342,57,165,895,497,"Atocongo","Isabel","TC. Bco. Wiese",1956]
["Lago Plaza","Viernes",294,75,126,903,489,"Callao","Otto","TC Bco. Crédito",1887]
["Dino's Market","Viernes",345,61,120,914,545,"Los Olivos","Báslavi","TC. Metro",1985]
["Dino's Market","Viernes",259,62,171,923,509,"Los Olivos","Otto","TC. Metro",1924]
["Plaza Norte","Jueves",332,59,127,842,522,"Ate","Otto","TC. Bco. Wiese",1882]
["Lago Plaza","Martes",305,57,127,972,497,"Atocongo","Isabel","TC. Bco. Wiese",1958]
["Assian Food","Viernes",295,50,148,833,518,"Callao","Yaco","TC. Metro",1844]
["Dino's Market","Sábado",339,54,152,963,453,"Los Olivos","Marco","TC Bco. Crédito",1961]
["Centro Plaza","Miércoles",324,78,152,950,462,"Atocongo","Marco","TC Bco. Crédito",1966]
["Dino's Market","Lunes",349,54,171,966,476,"Los Olivos","Marco","Efectivo",2016]
["Assian Food","Viernes",323,79,142,943,529,"Atocongo","Marco","TC Bco. Crédito",2016]
["Plaza Norte","Viernes",323,59,145,969,502,"Los Olivos","Isabel","TC. Metro",1998]
["Lago Plaza","Viernes",321,57,142,811,560,"Callao","Otto","Efectivo",1891]
["Lago Plaza","Viernes",331,52,136,940,450,"Ate","Báslavi","TC. Metro",1909]
["Assian Food","Viernes",281,66,132,904,554,"Callao","Báslavi","TC. Metro",1937]
["Dino's Market","Viernes",318,52,173,851,462,"Atocongo","Gissela","TC. Metro",1856]
["Plaza Norte","Miércoles",256,62,153,890,549,"Atocongo","Báslavi","TC. Bco. Wiese",1910]
["Assian Food","Martes",280,53,179,970,461,"Atocongo","Otto","TC. Bco. Wiese",1943]
["Assian Food","Jueves",298,50,121,934,522,"Ate","Gissela","TC. Bco. Wiese",1925]
["Assian Food","Miércoles",350,54,164,914,534,"Ate","Isabel","Efectivo",2016]
["Dino's Market","Viernes",311,69,125,913,519,"Callao","Isabel","Efectivo",1937]
["Dino's Market","Viernes",324,68,146,964,496,"Ate","Isabel","Efectivo",1998]
["Dino's Market","Martes",250,71,126,913,539,"Callao","Marco","TC. Metro",1899]
["Plaza Norte","Miércoles",346,65,162,825,506,"Callao","Gissela","Efectivo",{"$f":"SUM(C1155:G1155)","v":1904}]
["Lago Plaza","Sábado",342,73,122,900,507,"Atocongo","Marco","TC. Bco. Wiese",1944]
["Centro Plaza","Miércoles",340,72,169,876,531,"Ate","Marco","TC. Bco. Wiese",1988]
["Lago Plaza","Viernes",345,60,138,846,550,"Atocongo","Isabel","Efectivo",1939]
["Lago Plaza","Lunes",311,51,131,887,537,"Atocongo","Otto","TC. Bco. Wiese",1917]
["Plaza Norte","Jueves",298,61,132,858,553,"Los Olivos","Otto","Efectivo",1902]
["Centro Plaza","Lunes",336,77,179,813,543,"Callao","Gissela","TC. Metro",1948]
["Lago Plaza","Jueves",268,78,152,807,477,"Ate","Isabel","TC. Bco. Wiese",1782]
["Assian Food","Viernes",311,69,125,913,519,"Callao","Isabel","Efectivo",1937]
["Centro Plaza","Miércoles",255,58,135,883,476,"Ate","Otto","TC. Bco. Wiese",1807]
["Lago Plaza","Miércoles",327,75,140,856,500,"Ate","Isabel","TC. Bco. Wiese",1898]
["Plaza Norte","Sábado",322,60,168,803,488,"Callao","Gissela","TC. Bco. Wiese",1841]
["Assian Food","Jueves",268,54,156,965,533,"Ate","Marco","TC. Metro",1976]
["Assian Food","Martes",315,72,138,822,456,"Ate","Otto","TC Bco. Crédito",1803]
["Dino's Market","Sábado",284,50,162,812,552,"Los Olivos","Gissela","TC. Metro",1860]
["Assian Food","Miércoles",301,80,149,803,550,"Ate","Isabel","TC. Metro",1883]
["Dino's Market","Sábado",270,71,132,925,555,"Callao","Gissela","TC. Bco. Wiese",1953]
["Dino's Market","Martes",310,58,136,833,489,"Atocongo","Gissela","TC. Metro",1826]
["Lago Plaza","Viernes",262,55,156,936,497,"Los Olivos","Marco","TC. Metro",1906]
["Assian Food","Viernes",293,58,141,865,490,"Atocongo","Gissela","Efectivo",1847]
["Dino's Market","Viernes",336,77,123,877,530,"Los Olivos","Marco","Efectivo",1943]
["Lago Plaza","Viernes",301,79,122,967,505,"Callao","Marco","TC. Metro",1974]
["Lago Plaza","Lunes",258,80,179,827,498,"Atocongo","Marco","TC. Bco. Wiese",1842]
["Dino's Market","Sábado",272,60,128,896,540,"Los Olivos","Báslavi","TC. Bco. Wiese",1896]
["Centro Plaza","Miércoles",303,50,137,861,479,"Callao","Báslavi","TC. Metro",1830]
["Plaza Norte","Jueves",299,57,123,914,484,"Atocongo","Yaco","Efectivo",1877]
["Plaza Norte","Miércoles",264,74,157,870,499,"Ate","Yaco","TC Bco. Crédito",1864]
["Plaza Norte","Sábado",263,59,129,816,530,"Ate","Otto","TC. Bco. Wiese",1797]
["Plaza Norte","Jueves",250,80,177,850,498,"Callao","Marco","TC Bco. Crédito",1855]
["Assian Food","Sábado",303,59,177,974,509,"Atocongo","Báslavi","TC Bco. Crédito",2022]
["Centro Plaza","Miércoles",257,63,135,874,483,"Ate","Marco","TC. Metro",1812]
["Lago Plaza","Lunes",300,59,161,978,506,"Atocongo","Otto","TC. Bco. Wiese",2004]
["Lago Plaza","Viernes",349,72,142,972,505,"Callao","Yaco","TC. Bco. Wiese",2040]
["Centro Plaza","Martes",264,76,175,969,465,"Ate","Isabel","Efectivo",1949]
["Centro Plaza","Lunes",320,72,147,838,497,"Ate","Gissela","TC. Bco. Wiese",1874]
["Dino's Market","Jueves",302,69,177,886,525,"Los Olivos","Gissela","TC Bco. Crédito",1959]
["Dino's Market","Martes",281,64,176,834,551,"Los Olivos","Gissela","TC. Bco. Wiese",1906]
["Plaza Norte","Jueves",256,67,173,968,527,"Los Olivos","Yaco","Efectivo",1991]
["Dino's Market","Viernes",260,58,168,952,475,"Callao","Marco","TC Bco. Crédito",1913]
["Centro Plaza","Jueves",286,61,120,888,529,"Los Olivos","Otto","Efectivo",1884]
["Centro Plaza","Martes",290,55,124,916,476,"Callao","Otto","TC Bco. Crédito",1861]
["Assian Food","Lunes",317,71,164,902,466,"Los Olivos","Isabel","TC. Bco. Wiese",1920]
["Lago Plaza","Jueves",314,56,149,828,548,"Ate","Otto","Efectivo",1895]
["Plaza Norte","Miércoles",293,77,169,803,510,"Ate","Yaco","Efectivo",1852]
["Assian Food","Miércoles",271,57,131,955,499,"Callao","Marco","TC. Metro",1913]
["Centro Plaza","Martes",254,56,171,967,504,"Callao","Marco","TC. Metro",1952]
["Plaza Norte","Viernes",339,53,178,936,484,"Atocongo","Otto","Efectivo",1990]
["Lago Plaza","Sábado",271,61,165,868,506,"Ate","Gissela","Efectivo",1871]
["Dino's Market","Miércoles",271,76,168,886,454,"Callao","Otto","TC. Metro",1855]
["Plaza Norte","Sábado",298,71,139,956,465,"Callao","Gissela","Efectivo",1929]
["Plaza Norte","Viernes",337,59,124,837,513,"Ate","Báslavi","TC Bco. Crédito",1870]
["Lago Plaza","Jueves",308,51,146,864,542,"Los Olivos","Báslavi","TC. Metro",1911]
["Lago Plaza","Miércoles",286,76,133,875,555,"Callao","Gissela","Efectivo",1925]
["Plaza Norte","Lunes",330,65,165,832,450,"Callao","Gissela","TC. Metro",1842]
["Centro Plaza","Martes",316,62,120,885,461,"Los Olivos","Marco","TC Bco. Crédito",1844]
["Assian Food","Sábado",299,61,177,841,533,"Ate","Otto","TC. Metro",1911]
["Lago Plaza","Lunes",313,58,172,805,508,"Atocongo","Gissela","TC. Metro",1856]
["Lago Plaza","Sábado",261,67,137,853,534,"Los Olivos","Báslavi","TC. Metro",1852]
["Lago Plaza","Lunes",311,51,131,887,537,"Atocongo","Otto","TC. Metro",1917]
["Plaza Norte","Martes",329,68,149,815,506,"Atocongo","Otto","TC. Metro",1867]
["Assian Food","Martes",350,52,152,911,484,"Ate","Yaco","TC. Metro",1949]
["Lago Plaza","Jueves",325,59,135,968,529,"Atocongo","Otto","Efectivo",2016]
["Centro Plaza","Miércoles",336,58,127,895,498,"Ate","Yaco","TC. Metro",1914]
["Dino's Market","Jueves",283,54,174,970,501,"Ate","Yaco","TC. Metro",1982]
["Assian Food","Jueves",335,53,124,829,466,"Los Olivos","Gissela","TC Bco. Crédito",{"$f":"SUM(C1219:G1219)","v":1807}]
["Dino's Market","Jueves",267,58,135,801,510,"Atocongo","Marco","TC. Metro",1771]
["Plaza Norte","Jueves",316,80,126,866,524,"Callao","Isabel","TC Bco. Crédito",1912]
["Assian Food","Jueves",309,51,165,900,483,"Atocongo","Báslavi","Efectivo",1908]
["Centro Plaza","Martes",321,59,123,868,536,"Los Olivos","Marco","TC. Metro",1907]
["Plaza Norte","Lunes",333,59,150,871,521,"Callao","Marco","TC Bco. Crédito",1934]
["Assian Food","Martes",304,59,126,865,537,"Atocongo","Yaco","TC Bco. Crédito",1891]
["Dino's Market","Martes",310,57,173,855,462,"Ate","Marco","Efectivo",1857]
["Lago Plaza","Viernes",264,72,145,882,470,"Callao","Yaco","TC Bco. Crédito",1833]
["Centro Plaza","Miércoles",305,67,139,957,480,"Callao","Báslavi","TC. Bco. Wiese",1948]
["Lago Plaza","Sábado",255,73,156,887,521,"Atocongo","Gissela","TC. Metro",1892]
["Dino's Market","Lunes",255,69,145,862,538,"Los Olivos","Otto","TC. Bco. Wiese",1869]
["Centro Plaza","Sábado",296,76,125,965,454,"Callao","Báslavi","Efectivo",1916]
["Plaza Norte","Miércoles",328,72,153,825,456,"Callao","Báslavi","TC Bco. Crédito",1834]
["Assian Food","Miércoles",325,53,169,906,451,"Callao","Yaco","Efectivo",1904]
["Centro Plaza","Viernes",329,72,175,979,533,"Callao","Báslavi","TC. Metro",2088]
["Plaza Norte","Miércoles",250,51,165,951,499,"Callao","Báslavi","TC. Bco. Wiese",1916]
["Dino's Market","Martes",280,66,147,836,558,"Los Olivos","Báslavi","Efectivo",1887]
["Lago Plaza","Lunes",342,78,154,917,541,"Los Olivos","Isabel","TC Bco. Crédito",2032]
["Assian Food","Sábado",350,56,159,805,530,"Los Olivos","Yaco","Efectivo",1900]
["Centro Plaza","Jueves",272,76,148,815,503,"Ate","Otto","TC. Bco. Wiese",1814]
["Assian Food","Martes",251,53,164,930,478,"Atocongo","Isabel","TC. Bco. Wiese",1876]
["Plaza Norte","Viernes",347,68,170,828,514,"Atocongo","Báslavi","TC. Metro",1927]
["Dino's Market","Sábado",347,52,149,932,479,"Los Olivos","Báslavi","TC Bco. Crédito",1959]
["Dino's Market","Miércoles",346,59,125,885,513,"Callao","Yaco","TC Bco. Crédito",1928]
["Lago Plaza","Viernes",252,53,177,967,479,"Ate","Báslavi","TC Bco. Crédito",1928]
["Plaza Norte","Lunes",347,67,173,948,521,"Ate","Gissela","TC. Metro",2056]
["Dino's Market","Sábado",343,58,155,835,549,"Atocongo","Marco","TC Bco. Crédito",1940]
["Centro Plaza","Sábado",287,61,146,967,549,"Los Olivos","Gissela","TC. Bco. Wiese",2010]

{"sheet":"Macro 07 Consolidar","index":11,"n_rows":11,"n_cols":6,"rows_kept":11,"cut":false,"hidden":false,"merged":[]}
[]
[]
[]
[]
[]
[]
[]
[]
[]
[]
[null,null,null,null,null,"El libro a consolidar debe estar abierto"]